Workbook

Sheet Aceuil
D26: GESTIONNAIRE COMMERCIAL

Sheet Produits
D6: Index | E6: Produits | F6: Categories | G6: UDM | H6: Cout unitaire | I6: Prix unitaire
D7: P001 | E7: Crème pour les pieds | F7: Soins du Corps | G7: mL | H7: 1479 | I7: 2304.641933
D8: P002 | E8: Eye-liner waterproof | F8: Maquillage | G8: mL | H8: 1489 | I8: 2285.529633
D9: P003 | E9: Contour des yeux | F9: Soins du Visage | G9: mL | H9: 1416 | I9: 2194.270807
D10: P004 | E10: Spray thermo-protecteur | F10: Soins Capillaires | G10: mL | H10: 1372 | I10: 2121.59816
D11: P005 | E11: Sérum anti-âge | F11: Soins du Visage | G11: mL | H11: 1372 | I11: 2349.156481
D12: P006 | E12: Déodorant naturel | F12: Soins du Corps | G12: mL | H12: 1440 | I12: 2318.392529
D13: P007 | E13: Mousse volume | F13: Soins Capillaires | G13: mL | H13: 1479 | I13: 2313.735015
D14: P008 | E14: Lotion tonique | F14: Soins du Visage | G14: mL | H14: 1489 | I14: 2290.019394
D15: P009 | E15: Gommage corps | F15: Soins du Corps | G15: g | H15: 1307 | I15: 2171.294262
D16: P010 | E16: Base de maquillage | F16: Maquillage | G16: mL | H16: 1479 | I16: 2214.617178
D17: P011 | E17: Eau micellaire | F17: Soins du Visage | G17: mL | H17: 1489 | I17: 2295.317797
D18: P012 | E18: Gel coiffant | F18: Soins Capillaires | G18: mL | H18: 1423 | I18: 2300.505128
D19: P013 | E19: Gel nettoyant visage | F19: Soins du Visage | G19: mL | H19: 1416 | I19: 2198.207154
D20: P014 | E20: Crème coiffante | F20: Soins Capillaires | G20: mL | H20: 1479 | I20: 2409.547712
D21: P015 | E21: Poudre libre fixante | F21: Maquillage | G21: g | H21: 1442 | I21: 2304.641933
D22: P016 | E22: BB crème | F22: Soins du Visage | G22: mL | H22: 1307 | I22: 2285.529633
D23: P017 | E23: Spray rafraîchissant | F23: Soins du Corps | G23: mL | H23: 1440 | I23: 2194.270807
D24: P018 | E24: Rouge à lèvres mat | F24: Maquillage | G24: g | H24: 1372 | I24: 2121.59816
D25: P019 | E25: Shampooing fortifiant | F25: Soins Capillaires | G25: mL | H25: 1442 | I25: 2349.156481
D26: P020 | E26: Lotion anti-chute | F26: Soins Capillaires | G26: mL | H26: 1416 | I26: 2318.392529
D27: P021 | E27: Huile nourrissante | F27: Soins du Corps | G27: mL | H27: 1489 | I27: 2313.735015
D28: P022 | E28: Masque capillaire | F28: Soins Capillaires | G28: mL | H28: 1307 | I28: 2290.019394
D29: P023 | E29: Masque purifiant | F29: Soins du Visage | G29: g | H29: 1457 | I29: 2171.294262
D30: P024 | E30: Correcteur anti-cernes | F30: Maquillage | G30: mL | H30: 1419 | I30: 2214.617178
D31: P025 | E31: Cire coiffante | F31: Soins Capillaires | G31: g | H31: 1440 | I31: 2295.317797
D32: P026 | E32: Crème anti-rides | F32: Soins du Visage | G32: mL | H32: 1307 | I32: 2300.505128
D33: P027 | E33: Vernis à ongles | F33: Maquillage | G33: mL | H33: 1457 | I33: 2198.207154
D34: P028 | E34: Beurre corporel | F34: Soins du Corps | G34: g | H34: 1457 | I34: 2409.547712
D35: P029 | E35: Palette de fards | F35: Maquillage | G35: g | H35: 1416 | I35: 2304.641933
D36: P030 | E36: Lotion après-soleil | F36: Soins du Corps | G36: mL | H36: 1489 | I36: 2285.529633
D37: P031 | E37: Lait corporel | F37: Soins du Corps | G37: mL | H37: 1448 | I37: 2194.270807
D38: P032 | E38: Fond de teint | F38: Maquillage | G38: mL | H38: 1307 | I38: 2121.59816
D39: P033 | E39: Gommage exfoliant | F39: Soins du Visage | G39: g | H39: 1456 | I39: 2349.156481
D40: P034 | E40: Blush rosé | F40: Maquillage | G40: g | H40: 1448 | I40: 2318.392529
D41: P035 | E41: Après-shampooing doux | F41: Soins Capillaires | G41: mL | H41: 1456 | I41: 2313.735015
D42: P036 | E42: Huile capillaire | F42: Soins Capillaires | G42: mL | H42: 1419 | I42: 2290.019394
D43: P037 | E43: Sérum réparateur | F43: Soins Capillaires | G43: mL | H43: 1307 | I43: 2171.294262
D44: P038 | E44: Crème raffermissante | F44: Soins du Corps | G44: mL | H44: 1307 | I44: 2214.617178
D45: P039 | E45: Crème pour les mains | F45: Soins du Corps | G45: mL | H45: 1440 | I45: 2295.317797
D46: P040 | E46: Shampoing sec | F46: Soins Capillaires | G46: mL | H46: 1456 | I46: 2300.505128
D47: P041 | E47: Gel douche hydratant | F47: Soins du Corps | G47: mL | H47: 1456 | I47: 2198.207154
D48: P042 | E48: Crème hydratante | F48: Soins du Visage | G48: mL | H48: 1448 | I48: 2409.547712
D49: P043 | E49: Crayon à sourcils | F49: Maquillage | G49: g | H49: 1440 | I49: 2304.641933
D50: P044 | E50: Spray thermo-protecteur | F50: Soins Capillaires | G50: mL | H50: 1423 | I50: 2285.529633
D51: P045 | E51: Palette de fards | F51: Maquillage | G51: g | H51: 1440 | I51: 2194.270807
D52: P046 | E52: Huile démaquillante | F52: Soins du Visage | G52: mL | H52: 1438 | I52: 2121.59816
D53: P047 | E53: Mascara volumisant | F53: Maquillage | G53: mL | H53: 1307 | I53: 2349.156481
D54: P048 | E54: Cire coiffante | F54: Soins Capillaires | G54: g | H54: 1347 | I54: 2318.392529
D55: P049 | E55: Lotion anti-chute | F55: Soins Capillaires | G55: mL | H55: 1448 | I55: 2313.735015
D56: P050 | E56: Poudre libre fixante | F56: Maquillage | G56: g | H56: 1438 | I56: 2290.019394

Sheet clients
E2: AUJOURD' HUI : | F2: =TODAY() -> 2025-06-15
D5: Date | E5: Index | F5: Quantite | G5: Canal | H5: Mode de payement | I5: Taux de reduction
D6: 2023-12-30 | E6: P040 | F6: 18 | G6: Grossiste | H6: Carte | I6: 0
D7: 2023-12-31 | E7: P034 | F7: 17 | G7: Détail | H7: Mobile Money | I7: 0
D8: 2024-01-01 | E8: P003 | F8: 12 | G8: Détail | H8: Mobile Money | I8: 0
D9: 2024-01-02 | E9: P010 | F9: 20 | G9: Détail | H9: Espèces | I9: 0
D10: 2024-01-03 | E10: P038 | F10: 7 | G10: Détail | H10: Espèces | I10: 0
D11: 2024-01-03 | E11: P011 | F11: 10 | G11: Grossiste | H11: Espèces | I11: 0
D12: 2024-01-05 | E12: P040 | F12: 17 | G12: Grossiste | H12: Carte | I12: 0
D13: 2024-01-06 | E13: P034 | F13: 17 | G13: Détail | H13: Mobile Money | I13: 0
D14: 2024-01-07 | E14: P004 | F14: 9 | G14: Grossiste | H14: Carte | I14: 0
D15: 2024-01-08 | E15: P040 | F15: 3 | G15: Grossiste | H15: Mobile Money | I15: 0
D16: 2024-01-09 | E16: P006 | F16: 19 | G16: Détail | H16: Espèces | I16: 0
D17: 2024-01-10 | E17: P041 | F17: 9 | G17: Grossiste | H17: Carte | I17: 0
D18: 2024-01-11 | E18: P045 | F18: 15 | G18: Grossiste | H18: Carte | I18: 0
D19: 2024-01-12 | E19: P040 | F19: 4 | G19: Détail | H19: Espèces | I19: 0
D20: 2024-01-13 | E20: P029 | F20: 6 | G20: Détail | H20: Carte | I20: 0
D21: 2024-01-14 | E21: P004 | F21: 2 | G21: Détail | H21: Carte | I21: 0
D22: 2024-01-15 | E22: P011 | F22: 15 | G22: Grossiste | H22: Mobile Money | I22: 0
D23: 2024-01-16 | E23: P038 | F23: 5 | G23: Détail | H23: Carte | I23: 0
D24: 2024-01-17 | E24: P043 | F24: 19 | G24: Grossiste | H24: Mobile Money | I24: 0
D25: 2024-01-18 | E25: P017 | F25: 13 | G25: Grossiste | H25: Mobile Money | I25: 0
D26: 2024-01-19 | E26: P006 | F26: 10 | G26: Grossiste | H26: Espèces | I26: 0
D27: 2024-01-19 | E27: P032 | F27: 19 | G27: Détail | H27: Espèces | I27: 0
D28: 2024-01-20 | E28: P033 | F28: 12 | G28: Détail | H28: Carte | I28: 0
D29: 2024-01-20 | E29: P016 | F29: 8 | G29: Grossiste | H29: Espèces | I29: 0
D30: 2024-01-21 | E30: P039 | F30: 18 | G30: Détail | H30: Carte | I30: 0
D31: 2024-01-21 | E31: P032 | F31: 4 | G31: Grossiste | H31: Espèces | I31: 0
D32: 2024-01-21 | E32: P005 | F32: 6 | G32: Grossiste | H32: Mobile Money | I32: 0
D33: 2024-01-21 | E33: P033 | F33: 5 | G33: Détail | H33: Mobile Money | I33: 0
D34: 2024-01-22 | E34: P045 | F34: 20 | G34: Grossiste | H34: Espèces | I34: 0
D35: 2024-01-22 | E35: P048 | F35: 3 | G35: Grossiste | H35: Espèces | I35: 0
D36: 2024-01-23 | E36: P050 | F36: 7 | G36: Grossiste | H36: Carte | I36: 0
D37: 2024-01-24 | E37: P018 | F37: 5 | G37: Détail | H37: Mobile Money | I37: 0
D38: 2024-01-24 | E38: P007 | F38: 8 | G38: Détail | H38: Mobile Money | I38: 0
D39: 2024-01-25 | E39: P022 | F39: 20 | G39: Détail | H39: Espèces | I39: 0
D40: 2024-01-25 | E40: P021 | F40: 5 | G40: Détail | H40: Espèces | I40: 0
D41: 2024-01-25 | E41: P044 | F41: 7 | G41: Grossiste | H41: Espèces | I41: 0
D42: 2024-01-26 | E42: P018 | F42: 14 | G42: Grossiste | H42: Carte | I42: 0
D43: 2024-01-26 | E43: P018 | F43: 4 | G43: Détail | H43: Mobile Money | I43: 0
D44: 2024-01-27 | E44: P025 | F44: 2 | G44: Grossiste | H44: Carte | I44: 0
D45: 2024-01-27 | E45: P021 | F45: 8 | G45: Grossiste | H45: Mobile Money | I45: 0
D46: 2024-01-27 | E46: P021 | F46: 3 | G46: Détail | H46: Espèces | I46: 0
D47: 2024-01-28 | E47: P008 | F47: 4 | G47: Grossiste | H47: Carte | I47: 0
D48: 2024-01-28 | E48: P011 | F48: 11 | G48: Grossiste | H48: Carte | I48: 0
D49: 2024-01-29 | E49: P041 | F49: 13 | G49: Détail | H49: Espèces | I49: 0
D50: 2024-01-29 | E50: P039 | F50: 5 | G50: Détail | H50: Carte | I50: 0
D51: 2024-01-29 | E51: P014 | F51: 11 | G51: Détail | H51: Carte | I51: 0
D52: 2024-01-29 | E52: P018 | F52: 9 | G52: Grossiste | H52: Mobile Money | I52: 0
D53: 2024-01-30 | E53: P023 | F53: 11 | G53: Détail | H53: Carte | I53: 0
D54: 2024-01-30 | E54: P050 | F54: 4 | G54: Grossiste | H54: Mobile Money | I54: 0
D55: 2024-01-30 | E55: P042 | F55: 10 | G55: Grossiste | H55: Mobile Money | I55: 0
D56: 2024-01-31 | E56: P002 | F56: 9 | G56: Grossiste | H56: Espèces | I56: 0
D57: 2024-01-31 | E57: P001 | F57: 18 | G57: Détail | H57: Espèces | I57: 0
D58: 2024-02-01 | E58: P040 | F58: 17 | G58: Détail | H58: Carte | I58: 0
D59: 2024-02-02 | E59: P034 | F59: 17 | G59: Grossiste | H59: Espèces | I59: 0
D60: 2024-02-03 | E60: P004 | F60: 9 | G60: Détail | H60: Carte | I60: 0
D61: 2024-02-04 | E61: P040 | F61: 3 | G61: Grossiste | H61: Espèces | I61: 0
D62: 2024-02-05 | E62: P006 | F62: 19 | G62: Grossiste | H62: Mobile Money | I62: 0
D63: 2024-02-06 | E63: P041 | F63: 9 | G63: Détail | H63: Mobile Money | I63: 0
D64: 2024-02-07 | E64: P045 | F64: 15 | G64: Grossiste | H64: Espèces | I64: 0
D65: 2024-02-08 | E65: P040 | F65: 4 | G65: Grossiste | H65: Espèces | I65: 0
D66: 2024-02-09 | E66: P029 | F66: 6 | G66: Grossiste | H66: Carte | I66: 0
D67: 2024-02-10 | E67: P004 | F67: 2 | G67: Détail | H67: Mobile Money | I67: 0
D68: 2024-02-11 | E68: P011 | F68: 15 | G68: Détail | H68: Mobile Money | I68: 0
D69: 2024-02-12 | E69: P038 | F69: 5 | G69: Détail | H69: Espèces | I69: 0
D70: 2024-02-13 | E70: P043 | F70: 19 | G70: Détail | H70: Espèces | I70: 0
D71: 2024-02-14 | E71: P017 | F71: 13 | G71: Grossiste | H71: Espèces | I71: 0
D72: 2024-02-15 | E72: P006 | F72: 10 | G72: Grossiste | H72: Carte | I72: 0
D73: 2024-02-16 | E73: P032 | F73: 19 | G73: Détail | H73: Mobile Money | I73: 0
D74: 2024-02-17 | E74: P033 | F74: 12 | G74: Grossiste | H74: Carte | I74: 0
D75: 2024-02-18 | E75: P016 | F75: 8 | G75: Grossiste | H75: Mobile Money | I75: 0
D76: 2024-02-19 | E76: P039 | F76: 18 | G76: Détail | H76: Espèces | I76: 0
D77: 2024-02-20 | E77: P032 | F77: 4 | G77: Grossiste | H77: Carte | I77: 0
D78: 2024-02-21 | E78: P005 | F78: 6 | G78: Grossiste | H78: Carte | I78: 0
D79: 2024-02-22 | E79: P033 | F79: 5 | G79: Détail | H79: Espèces | I79: 0
D80: 2024-02-23 | E80: P045 | F80: 20 | G80: Détail | H80: Carte | I80: 0
D81: 2024-02-24 | E81: P048 | F81: 3 | G81: Détail | H81: Carte | I81: 0
D82: 2024-02-25 | E82: P050 | F82: 7 | G82: Grossiste | H82: Mobile Money | I82: 0
D83: 2024-02-26 | E83: P018 | F83: 5 | G83: Détail | H83: Carte | I83: 0
D84: 2024-02-27 | E84: P007 | F84: 8 | G84: Grossiste | H84: Mobile Money | I84: 0
D85: 2024-02-28 | E85: P022 | F85: 20 | G85: Grossiste | H85: Mobile Money | I85: 0
D86: 2024-03-01 | E86: P021 | F86: 5 | G86: Grossiste | H86: Espèces | I86: 0
D87: 2024-03-02 | E87: P044 | F87: 7 | G87: Détail | H87: Espèces | I87: 0
D88: 2024-03-03 | E88: P018 | F88: 14 | G88: Détail | H88: Carte | I88: 0
D89: 2024-03-04 | E89: P018 | F89: 4 | G89: Grossiste | H89: Espèces | I89: 0
D90: 2024-03-05 | E90: P025 | F90: 2 | G90: Détail | H90: Carte | I90: 0
D91: 2024-03-06 | E91: P021 | F91: 8 | G91: Grossiste | H91: Espèces | I91: 0
D92: 2024-03-07 | E92: P021 | F92: 3 | G92: Grossiste | H92: Mobile Money | I92: 0
D93: 2024-03-08 | E93: P008 | F93: 4 | G93: Détail | H93: Mobile Money | I93: 0
D94: 2024-03-09 | E94: P011 | F94: 11 | G94: Grossiste | H94: Espèces | I94: 0
D95: 2024-03-10 | E95: P041 | F95: 13 | G95: Grossiste | H95: Espèces | I95: 0
D96: 2024-03-11 | E96: P039 | F96: 5 | G96: Grossiste | H96: Carte | I96: 0
D97: 2024-03-12 | E97: P014 | F97: 11 | G97: Détail | H97: Mobile Money | I97: 0
D98: 2024-03-13 | E98: P018 | F98: 9 | G98: Détail | H98: Mobile Money | I98: 0
D99: 2024-03-14 | E99: P023 | F99: 11 | G99: Détail | H99: Espèces | I99: 0
D100: 2024-03-15 | E100: P050 | F100: 4 | G100: Détail | H100: Espèces | I100: 0
D101: 2024-03-16 | E101: P042 | F101: 10 | G101: Grossiste | H101: Espèces | I101: 0
D102: 2024-03-17 | E102: P002 | F102: 9 | G102: Grossiste | H102: Carte | I102: 0
D103: 2024-03-18 | E103: P001 | F103: 18 | G103: Détail | H103: Mobile Money | I103: 0
D104: 2024-03-19 | E104: P003 | F104: 12 | G104: Grossiste | H104: Carte | I104: 0
D105: 2024-03-20 | E105: P010 | F105: 20 | G105: Grossiste | H105: Mobile Money | I105: 0
D106: 2024-03-21 | E106: P038 | F106: 7 | G106: Détail | H106: Espèces | I106: 0
D107: 2024-03-22 | E107: P011 | F107: 10 | G107: Grossiste | H107: Carte | I107: 0
D108: 2024-03-23 | E108: P040 | F108: 17 | G108: Grossiste | H108: Carte | I108: 0
D109: 2024-03-24 | E109: P034 | F109: 17 | G109: Détail | H109: Espèces | I109: 0
D110: 2024-03-25 | E110: P004 | F110: 9 | G110: Détail | H110: Carte | I110: 0
D111: 2024-03-26 | E111: P040 | F111: 3 | G111: Détail | H111: Carte | I111: 0
D112: 2024-03-27 | E112: P006 | F112: 19 | G112: Grossiste | H112: Mobile Money | I112: 0
D113: 2024-03-28 | E113: P041 | F113: 9 | G113: Détail | H113: Carte | I113: 0
D114: 2024-03-29 | E114: P045 | F114: 15 | G114: Grossiste | H114: Mobile Money | I114: 0
D115: 2024-03-30 | E115: P040 | F115: 4 | G115: Grossiste | H115: Mobile Money | I115: 0
D116: 2024-03-31 | E116: P029 | F116: 6 | G116: Grossiste | H116: Espèces | I116: 0
D117: 2024-04-01 | E117: P004 | F117: 2 | G117: Détail | H117: Espèces | I117: 0
D118: 2024-04-02 | E118: P011 | F118: 15 | G118: Détail | H118: Carte | I118: 0
D119: 2024-04-03 | E119: P038 | F119: 5 | G119: Grossiste | H119: Espèces | I119: 0
D120: 2024-04-04 | E120: P043 | F120: 19 | G120: Détail | H120: Carte | I120: 0
D121: 2024-04-05 | E121: P017 | F121: 13 | G121: Grossiste | H121: Espèces | I121: 0
D122: 2024-04-06 | E122: P006 | F122: 10 | G122: Grossiste | H122: Mobile Money | I122: 0
D123: 2024-04-07 | E123: P032 | F123: 19 | G123: Détail | H123: Mobile Money | I123: 0
D124: 2024-04-08 | E124: P033 | F124: 12 | G124: Grossiste | H124: Espèces | I124: 0
D125: 2024-04-09 | E125: P016 | F125: 8 | G125: Grossiste | H125: Espèces | I125: 0
D126: 2024-04-10 | E126: P039 | F126: 18 | G126: Grossiste | H126: Carte | I126: 0
D127: 2024-04-11 | E127: P032 | F127: 4 | G127: Détail | H127: Mobile Money | I127: 0
D128: 2024-04-12 | E128: P005 | F128: 6 | G128: Détail | H128: Mobile Money | I128: 0
D129: 2024-04-13 | E129: P033 | F129: 5 | G129: Détail | H129: Espèces | I129: 0
D130: 2024-04-14 | E130: P045 | F130: 20 | G130: Détail | H130: Espèces | I130: 0
D131: 2024-04-15 | E131: P048 | F131: 3 | G131: Grossiste | H131: Espèces | I131: 0
D132: 2024-04-16 | E132: P050 | F132: 7 | G132: Grossiste | H132: Carte | I132: 0
D133: 2024-04-17 | E133: P018 | F133: 5 | G133: Détail | H133: Mobile Money | I133: 0
D134: 2024-04-18 | E134: P007 | F134: 8 | G134: Grossiste | H134: Carte | I134: 0
D135: 2024-04-19 | E135: P022 | F135: 20 | G135: Grossiste | H135: Mobile Money | I135: 0
D136: 2024-04-20 | E136: P021 | F136: 5 | G136: Détail | H136: Espèces | I136: 0
D137: 2024-04-21 | E137: P044 | F137: 7 | G137: Grossiste | H137: Carte | I137: 0
D138: 2024-04-22 | E138: P018 | F138: 14 | G138: Grossiste | H138: Carte | I138: 0
D139: 2024-04-23 | E139: P018 | F139: 4 | G139: Détail | H139: Espèces | I139: 0
D140: 2024-04-24 | E140: P025 | F140: 2 | G140: Détail | H140: Carte | I140: 0
D141: 2024-04-25 | E141: P021 | F141: 8 | G141: Détail | H141: Carte | I141: 0
D142: 2024-04-26 | E142: P021 | F142: 3 | G142: Grossiste | H142: Mobile Money | I142: 0
D143: 2024-04-27 | E143: P008 | F143: 4 | G143: Détail | H143: Carte | I143: 0
D144: 2024-04-28 | E144: P011 | F144: 11 | G144: Grossiste | H144: Mobile Money | I144: 0
D145: 2024-04-29 | E145: P041 | F145: 13 | G145: Grossiste | H145: Mobile Money | I145: 0
D146: 2024-04-30 | E146: P039 | F146: 5 | G146: Grossiste | H146: Espèces | I146: 0
D147: 2024-05-01 | E147: P014 | F147: 11 | G147: Détail | H147: Espèces | I147: 0
D148: 2024-05-02 | E148: P018 | F148: 9 | G148: Détail | H148: Carte | I148: 0
D149: 2024-05-03 | E149: P023 | F149: 11 | G149: Grossiste | H149: Espèces | I149: 0
D150: 2024-05-04 | E150: P050 | F150: 4 | G150: Détail | H150: Carte | I150: 0
D151: 2024-05-05 | E151: P042 | F151: 10 | G151: Grossiste | H151: Espèces | I151: 0
D152: 2024-05-06 | E152: P002 | F152: 9 | G152: Grossiste | H152: Mobile Money | I152: 0
D153: 2024-05-07 | E153: P001 | F153: 18 | G153: Détail | H153: Mobile Money | I153: 0
D154: 2024-05-08 | E154: P040 | F154: 17 | G154: Grossiste | H154: Espèces | I154: 0
D155: 2024-05-09 | E155: P034 | F155: 17 | G155: Grossiste | H155: Espèces | I155: 0
D156: 2024-05-10 | E156: P004 | F156: 9 | G156: Grossiste | H156: Carte | I156: 0
D157: 2024-05-11 | E157: P040 | F157: 3 | G157: Détail | H157: Mobile Money | I157: 0
D158: 2024-05-12 | E158: P006 | F158: 19 | G158: Détail | H158: Mobile Money | I158: 0
D159: 2024-05-13 | E159: P041 | F159: 9 | G159: Détail | H159: Espèces | I159: 0
D160: 2024-05-14 | E160: P045 | F160: 15 | G160: Détail | H160: Espèces | I160: 0
D161: 2024-05-15 | E161: P040 | F161: 4 | G161: Grossiste | H161: Espèces | I161: 0
D162: 2024-05-16 | E162: P029 | F162: 6 | G162: Grossiste | H162: Carte | I162: 0
D163: 2024-05-17 | E163: P004 | F163: 2 | G163: Détail | H163: Mobile Money | I163: 0
D164: 2024-05-18 | E164: P011 | F164: 15 | G164: Grossiste | H164: Carte | I164: 0
D165: 2024-05-19 | E165: P038 | F165: 5 | G165: Grossiste | H165: Mobile Money | I165: 0
D166: 2024-05-20 | E166: P043 | F166: 19 | G166: Détail | H166: Espèces | I166: 0
D167: 2024-05-21 | E167: P017 | F167: 13 | G167: Grossiste | H167: Carte | I167: 0
D168: 2024-05-22 | E168: P006 | F168: 10 | G168: Grossiste | H168: Carte | I168: 0
D169: 2024-05-23 | E169: P032 | F169: 19 | G169: Détail | H169: Espèces | I169: 0
D170: 2024-05-24 | E170: P033 | F170: 12 | G170: Détail | H170: Carte | I170: 0
D171: 2024-05-25 | E171: P016 | F171: 8 | G171: Détail | H171: Carte | I171: 0
D172: 2024-05-26 | E172: P039 | F172: 18 | G172: Grossiste | H172: Mobile Money | I172: 0
D173: 2024-05-27 | E173: P032 | F173: 4 | G173: Détail | H173: Carte | I173: 0
D174: 2024-05-28 | E174: P005 | F174: 6 | G174: Grossiste | H174: Mobile Money | I174: 0
D175: 2024-05-29 | E175: P033 | F175: 5 | G175: Grossiste | H175: Mobile Money | I175: 0
D176: 2024-05-30 | E176: P045 | F176: 20 | G176: Grossiste | H176: Espèces | I176: 0
D177: 2024-05-31 | E177: P048 | F177: 3 | G177: Détail | H177: Espèces | I177: 0
D178: 2024-06-01 | E178: P050 | F178: 7 | G178: Détail | H178: Carte | I178: 0
D179: 2024-06-02 | E179: P018 | F179: 5 | G179: Grossiste | H179: Espèces | I179: 0
D180: 2024-06-03 | E180: P007 | F180: 8 | G180: Détail | H180: Carte | I180: 0
D181: 2024-06-04 | E181: P022 | F181: 20 | G181: Grossiste | H181: Espèces | I181: 0
D182: 2024-06-05 | E182: P021 | F182: 5 | G182: Grossiste | H182: Mobile Money | I182: 0
D183: 2024-06-06 | E183: P044 | F183: 7 | G183: Détail | H183: Mobile Money | I183: 0
D184: 2024-06-07 | E184: P018 | F184: 14 | G184: Grossiste | H184: Espèces | I184: 0
D185: 2024-06-08 | E185: P018 | F185: 4 | G185: Grossiste | H185: Espèces | I185: 0
D186: 2024-06-09 | E186: P025 | F186: 2 | G186: Grossiste | H186: Carte | I186: 0
D187: 2024-06-10 | E187: P021 | F187: 8 | G187: Détail | H187: Mobile Money | I187: 0
D188: 2024-06-11 | E188: P021 | F188: 3 | G188: Détail | H188: Mobile Money | I188: 0
D189: 2024-06-12 | E189: P008 | F189: 4 | G189: Détail | H189: Espèces | I189: 0
D190: 2024-06-13 | E190: P011 | F190: 11 | G190: Détail | H190: Espèces | I190: 0
D191: 2024-06-14 | E191: P041 | F191: 13 | G191: Grossiste | H191: Espèces | I191: 0
D192: 2024-06-15 | E192: P039 | F192: 5 | G192: Grossiste | H192: Carte | I192: 0
D193: 2024-06-16 | E193: P014 | F193: 11 | G193: Détail | H193: Mobile Money | I193: 0
D194: 2024-06-17 | E194: P018 | F194: 9 | G194: Grossiste | H194: Carte | I194: 0
D195: 2024-06-18 | E195: P023 | F195: 11 | G195: Grossiste | H195: Mobile Money | I195: 0
D196: 2024-06-19 | E196: P050 | F196: 4 | G196: Détail | H196: Espèces | I196: 0
D197: 2024-06-20 | E197: P042 | F197: 10 | G197: Grossiste | H197: Carte | I197: 0
D198: 2024-06-21 | E198: P002 | F198: 9 | G198: Grossiste | H198: Carte | I198: 0
D199: 2024-06-22 | E199: P001 | F199: 18 | G199: Détail | H199: Espèces | I199: 0
D200: 2024-06-23 | E200: P021 | F200: 5 | G200: Détail | H200: Carte | I200: 0
D201: 2024-06-24 | E201: P044 | F201: 7 | G201: Détail | H201: Carte | I201: 0
D202: 2024-06-25 | E202: P018 | F202: 14 | G202: Grossiste | H202: Mobile Money | I202: 0
D203: 2024-06-26 | E203: P018 | F203: 4 | G203: Détail | H203: Carte | I203: 0
... 94 more rows

Sheet Tablefusions
E8: Date | F8: Index | G8: Quantite | H8: Canal | I8: Mode de payement | J8: Taux de reduction | K8: Catégories | L8: Produits | M8: UDM | N8: Cout unitaire | O8: Prix unitaire | P8: Cout d'achat | Q8: Prix de vente | R8: Jour | S8: Mois | T8: Année
E9: 2023-12-03 | F9: P040 | G9: 17 | H9: Grossiste | I9: Carte | J9: 0 | K9: =IFERROR(VLOOKUP(coustomerdata5[[#This Row],[Index]],database[],2,0),"") -> Shampoing sec | L9: =IFERROR(VLOOKUP(coustomerdata5[[#This Row],[Index]],database[],3,0),"") -> Soins Capillaires | M9: =IFERROR(VLOOKUP(coustomerdata5[[#This Row],[Index]],database[],4,0),"") -> mL | N9: =IFERROR(VLOOKUP(coustomerdata5[[#This Row],[Index]],database[],5,0),"") -> 1456 | O9: =IFERROR(VLOOKUP(coustomerdata5[[#This Row],[Index]],database[],6,0),"") -> 2300.505128 | P9: =IFERROR(coustomerdata5[[#This Row],[Cout unitaire]]*coustomerdata5[[#This Row],[Quantite]],"") -> 24752 | Q9: =IFERROR(coustomerdata5[[#This Row],[Quantite]]*coustomerdata5[[#This Row],[Prix unitaire]]*(1-coustomerdata5[[#This Row],[Taux de reduction]]),"") -> 39108.58718 | R9: =DAY(coustomerdata5[[#This Row],[Date]]) -> 3 | S9: =TEXT(coustomerdata5[[#This Row],[Date]], "mmm") -> déc | T9: =TEXT(coustomerdata5[[#This Row],[Date]], "aaaa") -> 2023
E10: 2023-12-04 | F10: P034 | G10: 4 | H10: Détail | I10: Mobile Money | J10: 0 | K10: =IFERROR(VLOOKUP(coustomerdata5[[#This Row],[Index]],database[],2,0),"") -> Blush rosé | L10: =IFERROR(VLOOKUP(coustomerdata5[[#This Row],[Index]],database[],3,0),"") -> Maquillage | M10: =IFERROR(VLOOKUP(coustomerdata5[[#This Row],[Index]],database[],4,0),"") -> g | N10: =IFERROR(VLOOKUP(coustomerdata5[[#This Row],[Index]],database[],5,0),"") -> 1448 | O10: =IFERROR(VLOOKUP(coustomerdata5[[#This Row],[Index]],database[],6,0),"") -> 2318.392529 | P10: =IFERROR(coustomerdata5[[#This Row],[Cout unitaire]]*coustomerdata5[[#This Row],[Quantite]],"") -> 5792 | Q10: =IFERROR(coustomerdata5[[#This Row],[Quantite]]*coustomerdata5[[#This Row],[Prix unitaire]]*(1-coustomerdata5[[#This Row],[Taux de reduction]]),"") -> 9273.570115 | R10: =DAY(coustomerdata5[[#This Row],[Date]]) -> 4 | S10: =TEXT(coustomerdata5[[#This Row],[Date]], "mmm") -> déc | T10: =TEXT(coustomerdata5[[#This Row],[Date]], "aaaa") -> 2023
E11: 2023-12-05 | F11: P003 | G11: 18 | H11: Détail | I11: Mobile Money | J11: 0 | K11: =IFERROR(VLOOKUP(coustomerdata5[[#This Row],[Index]],database[],2,0),"") -> Contour des yeux | L11: =IFERROR(VLOOKUP(coustomerdata5[[#This Row],[Index]],database[],3,0),"") -> Soins du Visage | M11: =IFERROR(VLOOKUP(coustomerdata5[[#This Row],[Index]],database[],4,0),"") -> mL | N11: =IFERROR(VLOOKUP(coustomerdata5[[#This Row],[Index]],database[],5,0),"") -> 1416 | O11: =IFERROR(VLOOKUP(coustomerdata5[[#This Row],[Index]],database[],6,0),"") -> 2194.270807 | P11: =IFERROR(coustomerdata5[[#This Row],[Cout unitaire]]*coustomerdata5[[#This Row],[Quantite]],"") -> 25488 | Q11: =IFERROR(coustomerdata5[[#This Row],[Quantite]]*coustomerdata5[[#This Row],[Prix unitaire]]*(1-coustomerdata5[[#This Row],[Taux de reduction]]),"") -> 39496.87453 | R11: =DAY(coustomerdata5[[#This Row],[Date]]) -> 5 | S11: =TEXT(coustomerdata5[[#This Row],[Date]], "mmm") -> déc | T11: =TEXT(coustomerdata5[[#This Row],[Date]], "aaaa") -> 2023
E12: 2023-12-06 | F12: P010 | G12: 5 | H12: Détail | I12: Espèces | J12: 0 | K12: =IFERROR(VLOOKUP(coustomerdata5[[#This Row],[Index]],database[],2,0),"") -> Base de maquillage | L12: =IFERROR(VLOOKUP(coustomerdata5[[#This Row],[Index]],database[],3,0),"") -> Maquillage | M12: =IFERROR(VLOOKUP(coustomerdata5[[#This Row],[Index]],database[],4,0),"") -> mL | N12: =IFERROR(VLOOKUP(coustomerdata5[[#This Row],[Index]],database[],5,0),"") -> 1479 | O12: =IFERROR(VLOOKUP(coustomerdata5[[#This Row],[Index]],database[],6,0),"") -> 2214.617178 | P12: =IFERROR(coustomerdata5[[#This Row],[Cout unitaire]]*coustomerdata5[[#This Row],[Quantite]],"") -> 7395 | Q12: =IFERROR(coustomerdata5[[#This Row],[Quantite]]*coustomerdata5[[#This Row],[Prix unitaire]]*(1-coustomerdata5[[#This Row],[Taux de reduction]]),"") -> 11073.08589 | R12: =DAY(coustomerdata5[[#This Row],[Date]]) -> 6 | S12: =TEXT(coustomerdata5[[#This Row],[Date]], "mmm") -> déc | T12: =TEXT(coustomerdata5[[#This Row],[Date]], "aaaa") -> 2023
E13: 2023-12-07 | F13: P038 | G13: 7 | H13: Détail | I13: Espèces | J13: 0 | K13: =IFERROR(VLOOKUP(coustomerdata5[[#This Row],[Index]],database[],2,0),"") -> Crème raffermissante | L13: =IFERROR(VLOOKUP(coustomerdata5[[#This Row],[Index]],database[],3,0),"") -> Soins du Corps | M13: =IFERROR(VLOOKUP(coustomerdata5[[#This Row],[Index]],database[],4,0),"") -> mL | N13: =IFERROR(VLOOKUP(coustomerdata5[[#This Row],[Index]],database[],5,0),"") -> 1307 | O13: =IFERROR(VLOOKUP(coustomerdata5[[#This Row],[Index]],database[],6,0),"") -> 2214.617178 | P13: =IFERROR(coustomerdata5[[#This Row],[Cout unitaire]]*coustomerdata5[[#This Row],[Quantite]],"") -> 9149 | Q13: =IFERROR(coustomerdata5[[#This Row],[Quantite]]*coustomerdata5[[#This Row],[Prix unitaire]]*(1-coustomerdata5[[#This Row],[Taux de reduction]]),"") -> 15502.32025 | R13: =DAY(coustomerdata5[[#This Row],[Date]]) -> 7 | S13: =TEXT(coustomerdata5[[#This Row],[Date]], "mmm") -> déc | T13: =TEXT(coustomerdata5[[#This Row],[Date]], "aaaa") -> 2023
E14: 2023-12-08 | F14: P011 | G14: 3 | H14: Grossiste | I14: Espèces | J14: 0 | K14: =IFERROR(VLOOKUP(coustomerdata5[[#This Row],[Index]],database[],2,0),"") -> Eau micellaire | L14: =IFERROR(VLOOKUP(coustomerdata5[[#This Row],[Index]],database[],3,0),"") -> Soins du Visage | M14: =IFERROR(VLOOKUP(coustomerdata5[[#This Row],[Index]],database[],4,0),"") -> mL | N14: =IFERROR(VLOOKUP(coustomerdata5[[#This Row],[Index]],database[],5,0),"") -> 1489 | O14: =IFERROR(VLOOKUP(coustomerdata5[[#This Row],[Index]],database[],6,0),"") -> 2295.317797 | P14: =IFERROR(coustomerdata5[[#This Row],[Cout unitaire]]*coustomerdata5[[#This Row],[Quantite]],"") -> 4467 | Q14: =IFERROR(coustomerdata5[[#This Row],[Quantite]]*coustomerdata5[[#This Row],[Prix unitaire]]*(1-coustomerdata5[[#This Row],[Taux de reduction]]),"") -> 6885.95339 | R14: =DAY(coustomerdata5[[#This Row],[Date]]) -> 8 | S14: =TEXT(coustomerdata5[[#This Row],[Date]], "mmm") -> déc | T14: =TEXT(coustomerdata5[[#This Row],[Date]], "aaaa") -> 2023
E15: 2023-12-09 | F15: P040 | G15: 7 | H15: Grossiste | I15: Carte | J15: 0 | K15: =IFERROR(VLOOKUP(coustomerdata5[[#This Row],[Index]],database[],2,0),"") -> Shampoing sec | L15: =IFERROR(VLOOKUP(coustomerdata5[[#This Row],[Index]],database[],3,0),"") -> Soins Capillaires | M15: =IFERROR(VLOOKUP(coustomerdata5[[#This Row],[Index]],database[],4,0),"") -> mL | N15: =IFERROR(VLOOKUP(coustomerdata5[[#This Row],[Index]],database[],5,0),"") -> 1456 | O15: =IFERROR(VLOOKUP(coustomerdata5[[#This Row],[Index]],database[],6,0),"") -> 2300.505128 | P15: =IFERROR(coustomerdata5[[#This Row],[Cout unitaire]]*coustomerdata5[[#This Row],[Quantite]],"") -> 10192 | Q15: =IFERROR(coustomerdata5[[#This Row],[Quantite]]*coustomerdata5[[#This Row],[Prix unitaire]]*(1-coustomerdata5[[#This Row],[Taux de reduction]]),"") -> 16103.5359 | R15: =DAY(coustomerdata5[[#This Row],[Date]]) -> 9 | S15: =TEXT(coustomerdata5[[#This Row],[Date]], "mmm") -> déc | T15: =TEXT(coustomerdata5[[#This Row],[Date]], "aaaa") -> 2023
E16: 2023-12-10 | F16: P034 | G16: 14 | H16: Détail | I16: Mobile Money | J16: 0 | K16: =IFERROR(VLOOKUP(coustomerdata5[[#This Row],[Index]],database[],2,0),"") -> Blush rosé | L16: =IFERROR(VLOOKUP(coustomerdata5[[#This Row],[Index]],database[],3,0),"") -> Maquillage | M16: =IFERROR(VLOOKUP(coustomerdata5[[#This Row],[Index]],database[],4,0),"") -> g | N16: =IFERROR(VLOOKUP(coustomerdata5[[#This Row],[Index]],database[],5,0),"") -> 1448 | O16: =IFERROR(VLOOKUP(coustomerdata5[[#This Row],[Index]],database[],6,0),"") -> 2318.392529 | P16: =IFERROR(coustomerdata5[[#This Row],[Cout unitaire]]*coustomerdata5[[#This Row],[Quantite]],"") -> 20272 | Q16: =IFERROR(coustomerdata5[[#This Row],[Quantite]]*coustomerdata5[[#This Row],[Prix unitaire]]*(1-coustomerdata5[[#This Row],[Taux de reduction]]),"") -> 32457.4954 | R16: =DAY(coustomerdata5[[#This Row],[Date]]) -> 10 | S16: =TEXT(coustomerdata5[[#This Row],[Date]], "mmm") -> déc | T16: =TEXT(coustomerdata5[[#This Row],[Date]], "aaaa") -> 2023
E17: 2023-12-11 | F17: P004 | G17: 5 | H17: Grossiste | I17: Carte | J17: 0 | K17: =IFERROR(VLOOKUP(coustomerdata5[[#This Row],[Index]],database[],2,0),"") -> Spray thermo-protecteur | L17: =IFERROR(VLOOKUP(coustomerdata5[[#This Row],[Index]],database[],3,0),"") -> Soins Capillaires | M17: =IFERROR(VLOOKUP(coustomerdata5[[#This Row],[Index]],database[],4,0),"") -> mL | N17: =IFERROR(VLOOKUP(coustomerdata5[[#This Row],[Index]],database[],5,0),"") -> 1372 | O17: =IFERROR(VLOOKUP(coustomerdata5[[#This Row],[Index]],database[],6,0),"") -> 2121.59816 | P17: =IFERROR(coustomerdata5[[#This Row],[Cout unitaire]]*coustomerdata5[[#This Row],[Quantite]],"") -> 6860 | Q17: =IFERROR(coustomerdata5[[#This Row],[Quantite]]*coustomerdata5[[#This Row],[Prix unitaire]]*(1-coustomerdata5[[#This Row],[Taux de reduction]]),"") -> 10607.9908 | R17: =DAY(coustomerdata5[[#This Row],[Date]]) -> 11 | S17: =TEXT(coustomerdata5[[#This Row],[Date]], "mmm") -> déc | T17: =TEXT(coustomerdata5[[#This Row],[Date]], "aaaa") -> 2023
E18: 2023-12-12 | F18: P040 | G18: 15 | H18: Grossiste | I18: Mobile Money | J18: 0 | K18: =IFERROR(VLOOKUP(coustomerdata5[[#This Row],[Index]],database[],2,0),"") -> Shampoing sec | L18: =IFERROR(VLOOKUP(coustomerdata5[[#This Row],[Index]],database[],3,0),"") -> Soins Capillaires | M18: =IFERROR(VLOOKUP(coustomerdata5[[#This Row],[Index]],database[],4,0),"") -> mL | N18: =IFERROR(VLOOKUP(coustomerdata5[[#This Row],[Index]],database[],5,0),"") -> 1456 | O18: =IFERROR(VLOOKUP(coustomerdata5[[#This Row],[Index]],database[],6,0),"") -> 2300.505128 | P18: =IFERROR(coustomerdata5[[#This Row],[Cout unitaire]]*coustomerdata5[[#This Row],[Quantite]],"") -> 21840 | Q18: =IFERROR(coustomerdata5[[#This Row],[Quantite]]*coustomerdata5[[#This Row],[Prix unitaire]]*(1-coustomerdata5[[#This Row],[Taux de reduction]]),"") -> 34507.57692 | R18: =DAY(coustomerdata5[[#This Row],[Date]]) -> 12 | S18: =TEXT(coustomerdata5[[#This Row],[Date]], "mmm") -> déc | T18: =TEXT(coustomerdata5[[#This Row],[Date]], "aaaa") -> 2023
E19: 2023-12-13 | F19: P006 | G19: 8 | H19: Détail | I19: Espèces | J19: 0 | K19: =IFERROR(VLOOKUP(coustomerdata5[[#This Row],[Index]],database[],2,0),"") -> Déodorant naturel | L19: =IFERROR(VLOOKUP(coustomerdata5[[#This Row],[Index]],database[],3,0),"") -> Soins du Corps | M19: =IFERROR(VLOOKUP(coustomerdata5[[#This Row],[Index]],database[],4,0),"") -> mL | N19: =IFERROR(VLOOKUP(coustomerdata5[[#This Row],[Index]],database[],5,0),"") -> 1440 | O19: =IFERROR(VLOOKUP(coustomerdata5[[#This Row],[Index]],database[],6,0),"") -> 2318.392529 | P19: =IFERROR(coustomerdata5[[#This Row],[Cout unitaire]]*coustomerdata5[[#This Row],[Quantite]],"") -> 11520 | Q19: =IFERROR(coustomerdata5[[#This Row],[Quantite]]*coustomerdata5[[#This Row],[Prix unitaire]]*(1-coustomerdata5[[#This Row],[Taux de reduction]]),"") -> 18547.14023 | R19: =DAY(coustomerdata5[[#This Row],[Date]]) -> 13 | S19: =TEXT(coustomerdata5[[#This Row],[Date]], "mmm") -> déc | T19: =TEXT(coustomerdata5[[#This Row],[Date]], "aaaa") -> 2023
E20: 2023-12-14 | F20: P041 | G20: 8 | H20: Grossiste | I20: Carte | J20: 0 | K20: =IFERROR(VLOOKUP(coustomerdata5[[#This Row],[Index]],database[],2,0),"") -> Gel douche hydratant | L20: =IFERROR(VLOOKUP(coustomerdata5[[#This Row],[Index]],database[],3,0),"") -> Soins du Corps | M20: =IFERROR(VLOOKUP(coustomerdata5[[#This Row],[Index]],database[],4,0),"") -> mL | N20: =IFERROR(VLOOKUP(coustomerdata5[[#This Row],[Index]],database[],5,0),"") -> 1456 | O20: =IFERROR(VLOOKUP(coustomerdata5[[#This Row],[Index]],database[],6,0),"") -> 2198.207154 | P20: =IFERROR(coustomerdata5[[#This Row],[Cout unitaire]]*coustomerdata5[[#This Row],[Quantite]],"") -> 11648 | Q20: =IFERROR(coustomerdata5[[#This Row],[Quantite]]*coustomerdata5[[#This Row],[Prix unitaire]]*(1-coustomerdata5[[#This Row],[Taux de reduction]]),"") -> 17585.65723 | R20: =DAY(coustomerdata5[[#This Row],[Date]]) -> 14 | S20: =TEXT(coustomerdata5[[#This Row],[Date]], "mmm") -> déc | T20: =TEXT(coustomerdata5[[#This Row],[Date]], "aaaa") -> 2023
E21: 2023-12-15 | F21: P045 | G21: 3 | H21: Grossiste | I21: Carte | J21: 0 | K21: =IFERROR(VLOOKUP(coustomerdata5[[#This Row],[Index]],database[],2,0),"") -> Palette de fards | L21: =IFERROR(VLOOKUP(coustomerdata5[[#This Row],[Index]],database[],3,0),"") -> Maquillage | M21: =IFERROR(VLOOKUP(coustomerdata5[[#This Row],[Index]],database[],4,0),"") -> g | N21: =IFERROR(VLOOKUP(coustomerdata5[[#This Row],[Index]],database[],5,0),"") -> 1440 | O21: =IFERROR(VLOOKUP(coustomerdata5[[#This Row],[Index]],database[],6,0),"") -> 2194.270807 | P21: =IFERROR(coustomerdata5[[#This Row],[Cout unitaire]]*coustomerdata5[[#This Row],[Quantite]],"") -> 4320 | Q21: =IFERROR(coustomerdata5[[#This Row],[Quantite]]*coustomerdata5[[#This Row],[Prix unitaire]]*(1-coustomerdata5[[#This Row],[Taux de reduction]]),"") -> 6582.812422 | R21: =DAY(coustomerdata5[[#This Row],[Date]]) -> 15 | S21: =TEXT(coustomerdata5[[#This Row],[Date]], "mmm") -> déc | T21: =TEXT(coustomerdata5[[#This Row],[Date]], "aaaa") -> 2023
E22: 2023-12-16 | F22: P040 | G22: 16 | H22: Détail | I22: Espèces | J22: 0 | K22: =IFERROR(VLOOKUP(coustomerdata5[[#This Row],[Index]],database[],2,0),"") -> Shampoing sec | L22: =IFERROR(VLOOKUP(coustomerdata5[[#This Row],[Index]],database[],3,0),"") -> Soins Capillaires | M22: =IFERROR(VLOOKUP(coustomerdata5[[#This Row],[Index]],database[],4,0),"") -> mL | N22: =IFERROR(VLOOKUP(coustomerdata5[[#This Row],[Index]],database[],5,0),"") -> 1456 | O22: =IFERROR(VLOOKUP(coustomerdata5[[#This Row],[Index]],database[],6,0),"") -> 2300.505128 | P22: =IFERROR(coustomerdata5[[#This Row],[Cout unitaire]]*coustomerdata5[[#This Row],[Quantite]],"") -> 23296 | Q22: =IFERROR(coustomerdata5[[#This Row],[Quantite]]*coustomerdata5[[#This Row],[Prix unitaire]]*(1-coustomerdata5[[#This Row],[Taux de reduction]]),"") -> 36808.08205 | R22: =DAY(coustomerdata5[[#This Row],[Date]]) -> 16 | S22: =TEXT(coustomerdata5[[#This Row],[Date]], "mmm") -> déc | T22: =TEXT(coustomerdata5[[#This Row],[Date]], "aaaa") -> 2023
E23: 2023-12-17 | F23: P029 | G23: 5 | H23: Détail | I23: Carte | J23: 0 | K23: =IFERROR(VLOOKUP(coustomerdata5[[#This Row],[Index]],database[],2,0),"") -> Palette de fards | L23: =IFERROR(VLOOKUP(coustomerdata5[[#This Row],[Index]],database[],3,0),"") -> Maquillage | M23: =IFERROR(VLOOKUP(coustomerdata5[[#This Row],[Index]],database[],4,0),"") -> g | N23: =IFERROR(VLOOKUP(coustomerdata5[[#This Row],[Index]],database[],5,0),"") -> 1416 | O23: =IFERROR(VLOOKUP(coustomerdata5[[#This Row],[Index]],database[],6,0),"") -> 2304.641933 | P23: =IFERROR(coustomerdata5[[#This Row],[Cout unitaire]]*coustomerdata5[[#This Row],[Quantite]],"") -> 7080 | Q23: =IFERROR(coustomerdata5[[#This Row],[Quantite]]*coustomerdata5[[#This Row],[Prix unitaire]]*(1-coustomerdata5[[#This Row],[Taux de reduction]]),"") -> 11523.20967 | R23: =DAY(coustomerdata5[[#This Row],[Date]]) -> 17 | S23: =TEXT(coustomerdata5[[#This Row],[Date]], "mmm") -> déc | T23: =TEXT(coustomerdata5[[#This Row],[Date]], "aaaa") -> 2023
E24: 2023-12-18 | F24: P004 | G24: 2 | H24: Détail | I24: Carte | J24: 0 | K24: =IFERROR(VLOOKUP(coustomerdata5[[#This Row],[Index]],database[],2,0),"") -> Spray thermo-protecteur | L24: =IFERROR(VLOOKUP(coustomerdata5[[#This Row],[Index]],database[],3,0),"") -> Soins Capillaires | M24: =IFERROR(VLOOKUP(coustomerdata5[[#This Row],[Index]],database[],4,0),"") -> mL | N24: =IFERROR(VLOOKUP(coustomerdata5[[#This Row],[Index]],database[],5,0),"") -> 1372 | O24: =IFERROR(VLOOKUP(coustomerdata5[[#This Row],[Index]],database[],6,0),"") -> 2121.59816 | P24: =IFERROR(coustomerdata5[[#This Row],[Cout unitaire]]*coustomerdata5[[#This Row],[Quantite]],"") -> 2744 | Q24: =IFERROR(coustomerdata5[[#This Row],[Quantite]]*coustomerdata5[[#This Row],[Prix unitaire]]*(1-coustomerdata5[[#This Row],[Taux de reduction]]),"") -> 4243.196319 | R24: =DAY(coustomerdata5[[#This Row],[Date]]) -> 18 | S24: =TEXT(coustomerdata5[[#This Row],[Date]], "mmm") -> déc | T24: =TEXT(coustomerdata5[[#This Row],[Date]], "aaaa") -> 2023
E25: 2023-12-19 | F25: P011 | G25: 18 | H25: Grossiste | I25: Mobile Money | J25: 0 | K25: =IFERROR(VLOOKUP(coustomerdata5[[#This Row],[Index]],database[],2,0),"") -> Eau micellaire | L25: =IFERROR(VLOOKUP(coustomerdata5[[#This Row],[Index]],database[],3,0),"") -> Soins du Visage | M25: =IFERROR(VLOOKUP(coustomerdata5[[#This Row],[Index]],database[],4,0),"") -> mL | N25: =IFERROR(VLOOKUP(coustomerdata5[[#This Row],[Index]],database[],5,0),"") -> 1489 | O25: =IFERROR(VLOOKUP(coustomerdata5[[#This Row],[Index]],database[],6,0),"") -> 2295.317797 | P25: =IFERROR(coustomerdata5[[#This Row],[Cout unitaire]]*coustomerdata5[[#This Row],[Quantite]],"") -> 26802 | Q25: =IFERROR(coustomerdata5[[#This Row],[Quantite]]*coustomerdata5[[#This Row],[Prix unitaire]]*(1-coustomerdata5[[#This Row],[Taux de reduction]]),"") -> 41315.72034 | R25: =DAY(coustomerdata5[[#This Row],[Date]]) -> 19 | S25: =TEXT(coustomerdata5[[#This Row],[Date]], "mmm") -> déc | T25: =TEXT(coustomerdata5[[#This Row],[Date]], "aaaa") -> 2023
E26: 2023-12-20 | F26: P038 | G26: 6 | H26: Détail | I26: Carte | J26: 0 | K26: =IFERROR(VLOOKUP(coustomerdata5[[#This Row],[Index]],database[],2,0),"") -> Crème raffermissante | L26: =IFERROR(VLOOKUP(coustomerdata5[[#This Row],[Index]],database[],3,0),"") -> Soins du Corps | M26: =IFERROR(VLOOKUP(coustomerdata5[[#This Row],[Index]],database[],4,0),"") -> mL | N26: =IFERROR(VLOOKUP(coustomerdata5[[#This Row],[Index]],database[],5,0),"") -> 1307 | O26: =IFERROR(VLOOKUP(coustomerdata5[[#This Row],[Index]],database[],6,0),"") -> 2214.617178 | P26: =IFERROR(coustomerdata5[[#This Row],[Cout unitaire]]*coustomerdata5[[#This Row],[Quantite]],"") -> 7842 | Q26: =IFERROR(coustomerdata5[[#This Row],[Quantite]]*coustomerdata5[[#This Row],[Prix unitaire]]*(1-coustomerdata5[[#This Row],[Taux de reduction]]),"") -> 13287.70307 | R26: =DAY(coustomerdata5[[#This Row],[Date]]) -> 20 | S26: =TEXT(coustomerdata5[[#This Row],[Date]], "mmm") -> déc | T26: =TEXT(coustomerdata5[[#This Row],[Date]], "aaaa") -> 2023
E27: 2023-12-21 | F27: P043 | G27: 12 | H27: Grossiste | I27: Mobile Money | J27: 0 | K27: =IFERROR(VLOOKUP(coustomerdata5[[#This Row],[Index]],database[],2,0),"") -> Crayon à sourcils | L27: =IFERROR(VLOOKUP(coustomerdata5[[#This Row],[Index]],database[],3,0),"") -> Maquillage | M27: =IFERROR(VLOOKUP(coustomerdata5[[#This Row],[Index]],database[],4,0),"") -> g | N27: =IFERROR(VLOOKUP(coustomerdata5[[#This Row],[Index]],database[],5,0),"") -> 1440 | O27: =IFERROR(VLOOKUP(coustomerdata5[[#This Row],[Index]],database[],6,0),"") -> 2304.641933 | P27: =IFERROR(coustomerdata5[[#This Row],[Cout unitaire]]*coustomerdata5[[#This Row],[Quantite]],"") -> 17280 | Q27: =IFERROR(coustomerdata5[[#This Row],[Quantite]]*coustomerdata5[[#This Row],[Prix unitaire]]*(1-coustomerdata5[[#This Row],[Taux de reduction]]),"") -> 27655.7032 | R27: =DAY(coustomerdata5[[#This Row],[Date]]) -> 21 | S27: =TEXT(coustomerdata5[[#This Row],[Date]], "mmm") -> déc | T27: =TEXT(coustomerdata5[[#This Row],[Date]], "aaaa") -> 2023
E28: 2023-12-22 | F28: P017 | G28: 5 | H28: Grossiste | I28: Mobile Money | J28: 0 | K28: =IFERROR(VLOOKUP(coustomerdata5[[#This Row],[Index]],database[],2,0),"") -> Spray rafraîchissant | L28: =IFERROR(VLOOKUP(coustomerdata5[[#This Row],[Index]],database[],3,0),"") -> Soins du Corps | M28: =IFERROR(VLOOKUP(coustomerdata5[[#This Row],[Index]],database[],4,0),"") -> mL | N28: =IFERROR(VLOOKUP(coustomerdata5[[#This Row],[Index]],database[],5,0),"") -> 1440 | O28: =IFERROR(VLOOKUP(coustomerdata5[[#This Row],[Index]],database[],6,0),"") -> 2194.270807 | P28: =IFERROR(coustomerdata5[[#This Row],[Cout unitaire]]*coustomerdata5[[#This Row],[Quantite]],"") -> 7200 | Q28: =IFERROR(coustomerdata5[[#This Row],[Quantite]]*coustomerdata5[[#This Row],[Prix unitaire]]*(1-coustomerdata5[[#This Row],[Taux de reduction]]),"") -> 10971.35404 | R28: =DAY(coustomerdata5[[#This Row],[Date]]) -> 22 | S28: =TEXT(coustomerdata5[[#This Row],[Date]], "mmm") -> déc | T28: =TEXT(coustomerdata5[[#This Row],[Date]], "aaaa") -> 2023
E29: 2023-12-23 | F29: P006 | G29: 1 | H29: Grossiste | I29: Espèces | J29: 0 | K29: =IFERROR(VLOOKUP(coustomerdata5[[#This Row],[Index]],database[],2,0),"") -> Déodorant naturel | L29: =IFERROR(VLOOKUP(coustomerdata5[[#This Row],[Index]],database[],3,0),"") -> Soins du Corps | M29: =IFERROR(VLOOKUP(coustomerdata5[[#This Row],[Index]],database[],4,0),"") -> mL | N29: =IFERROR(VLOOKUP(coustomerdata5[[#This Row],[Index]],database[],5,0),"") -> 1440 | O29: =IFERROR(VLOOKUP(coustomerdata5[[#This Row],[Index]],database[],6,0),"") -> 2318.392529 | P29: =IFERROR(coustomerdata5[[#This Row],[Cout unitaire]]*coustomerdata5[[#This Row],[Quantite]],"") -> 1440 | Q29: =IFERROR(coustomerdata5[[#This Row],[Quantite]]*coustomerdata5[[#This Row],[Prix unitaire]]*(1-coustomerdata5[[#This Row],[Taux de reduction]]),"") -> 2318.392529 | R29: =DAY(coustomerdata5[[#This Row],[Date]]) -> 23 | S29: =TEXT(coustomerdata5[[#This Row],[Date]], "mmm") -> déc | T29: =TEXT(coustomerdata5[[#This Row],[Date]], "aaaa") -> 2023
E30: 2023-12-24 | F30: P032 | G30: 6 | H30: Détail | I30: Espèces | J30: 0 | K30: =IFERROR(VLOOKUP(coustomerdata5[[#This Row],[Index]],database[],2,0),"") -> Fond de teint | L30: =IFERROR(VLOOKUP(coustomerdata5[[#This Row],[Index]],database[],3,0),"") -> Maquillage | M30: =IFERROR(VLOOKUP(coustomerdata5[[#This Row],[Index]],database[],4,0),"") -> mL | N30: =IFERROR(VLOOKUP(coustomerdata5[[#This Row],[Index]],database[],5,0),"") -> 1307 | O30: =IFERROR(VLOOKUP(coustomerdata5[[#This Row],[Index]],database[],6,0),"") -> 2121.59816 | P30: =IFERROR(coustomerdata5[[#This Row],[Cout unitaire]]*coustomerdata5[[#This Row],[Quantite]],"") -> 7842 | Q30: =IFERROR(coustomerdata5[[#This Row],[Quantite]]*coustomerdata5[[#This Row],[Prix unitaire]]*(1-coustomerdata5[[#This Row],[Taux de reduction]]),"") -> 12729.58896 | R30: =DAY(coustomerdata5[[#This Row],[Date]]) -> 24 | S30: =TEXT(coustomerdata5[[#This Row],[Date]], "mmm") -> déc | T30: =TEXT(coustomerdata5[[#This Row],[Date]], "aaaa") -> 2023
E31: 2023-12-25 | F31: P033 | G31: 9 | H31: Détail | I31: Carte | J31: 0 | K31: =IFERROR(VLOOKUP(coustomerdata5[[#This Row],[Index]],database[],2,0),"") -> Gommage exfoliant | L31: =IFERROR(VLOOKUP(coustomerdata5[[#This Row],[Index]],database[],3,0),"") -> Soins du Visage | M31: =IFERROR(VLOOKUP(coustomerdata5[[#This Row],[Index]],database[],4,0),"") -> g | N31: =IFERROR(VLOOKUP(coustomerdata5[[#This Row],[Index]],database[],5,0),"") -> 1456 | O31: =IFERROR(VLOOKUP(coustomerdata5[[#This Row],[Index]],database[],6,0),"") -> 2349.156481 | P31: =IFERROR(coustomerdata5[[#This Row],[Cout unitaire]]*coustomerdata5[[#This Row],[Quantite]],"") -> 13104 | Q31: =IFERROR(coustomerdata5[[#This Row],[Quantite]]*coustomerdata5[[#This Row],[Prix unitaire]]*(1-coustomerdata5[[#This Row],[Taux de reduction]]),"") -> 21142.40833 | R31: =DAY(coustomerdata5[[#This Row],[Date]]) -> 25 | S31: =TEXT(coustomerdata5[[#This Row],[Date]], "mmm") -> déc | T31: =TEXT(coustomerdata5[[#This Row],[Date]], "aaaa") -> 2023
E32: 2023-12-26 | F32: P016 | G32: 1 | H32: Grossiste | I32: Espèces | J32: 0 | K32: =IFERROR(VLOOKUP(coustomerdata5[[#This Row],[Index]],database[],2,0),"") -> BB crème | L32: =IFERROR(VLOOKUP(coustomerdata5[[#This Row],[Index]],database[],3,0),"") -> Soins du Visage | M32: =IFERROR(VLOOKUP(coustomerdata5[[#This Row],[Index]],database[],4,0),"") -> mL | N32: =IFERROR(VLOOKUP(coustomerdata5[[#This Row],[Index]],database[],5,0),"") -> 1307 | O32: =IFERROR(VLOOKUP(coustomerdata5[[#This Row],[Index]],database[],6,0),"") -> 2285.529633 | P32: =IFERROR(coustomerdata5[[#This Row],[Cout unitaire]]*coustomerdata5[[#This Row],[Quantite]],"") -> 1307 | Q32: =IFERROR(coustomerdata5[[#This Row],[Quantite]]*coustomerdata5[[#This Row],[Prix unitaire]]*(1-coustomerdata5[[#This Row],[Taux de reduction]]),"") -> 2285.529633 | R32: =DAY(coustomerdata5[[#This Row],[Date]]) -> 26 | S32: =TEXT(coustomerdata5[[#This Row],[Date]], "mmm") -> déc | T32: =TEXT(coustomerdata5[[#This Row],[Date]], "aaaa") -> 2023
E33: 2023-12-27 | F33: P039 | G33: 3 | H33: Détail | I33: Carte | J33: 0 | K33: =IFERROR(VLOOKUP(coustomerdata5[[#This Row],[Index]],database[],2,0),"") -> Crème pour les mains | L33: =IFERROR(VLOOKUP(coustomerdata5[[#This Row],[Index]],database[],3,0),"") -> Soins du Corps | M33: =IFERROR(VLOOKUP(coustomerdata5[[#This Row],[Index]],database[],4,0),"") -> mL | N33: =IFERROR(VLOOKUP(coustomerdata5[[#This Row],[Index]],database[],5,0),"") -> 1440 | O33: =IFERROR(VLOOKUP(coustomerdata5[[#This Row],[Index]],database[],6,0),"") -> 2295.317797 | P33: =IFERROR(coustomerdata5[[#This Row],[Cout unitaire]]*coustomerdata5[[#This Row],[Quantite]],"") -> 4320 | Q33: =IFERROR(coustomerdata5[[#This Row],[Quantite]]*coustomerdata5[[#This Row],[Prix unitaire]]*(1-coustomerdata5[[#This Row],[Taux de reduction]]),"") -> 6885.95339 | R33: =DAY(coustomerdata5[[#This Row],[Date]]) -> 27 | S33: =TEXT(coustomerdata5[[#This Row],[Date]], "mmm") -> déc | T33: =TEXT(coustomerdata5[[#This Row],[Date]], "aaaa") -> 2023
E34: 2024-01-01 | F34: P032 | G34: 7 | H34: Grossiste | I34: Espèces | J34: 0 | K34: =IFERROR(VLOOKUP(coustomerdata5[[#This Row],[Index]],database[],2,0),"") -> Fond de teint | L34: =IFERROR(VLOOKUP(coustomerdata5[[#This Row],[Index]],database[],3,0),"") -> Maquillage | M34: =IFERROR(VLOOKUP(coustomerdata5[[#This Row],[Index]],database[],4,0),"") -> mL | N34: =IFERROR(VLOOKUP(coustomerdata5[[#This Row],[Index]],database[],5,0),"") -> 1307 | O34: =IFERROR(VLOOKUP(coustomerdata5[[#This Row],[Index]],database[],6,0),"") -> 2121.59816 | P34: =IFERROR(coustomerdata5[[#This Row],[Cout unitaire]]*coustomerdata5[[#This Row],[Quantite]],"") -> 9149 | Q34: =IFERROR(coustomerdata5[[#This Row],[Quantite]]*coustomerdata5[[#This Row],[Prix unitaire]]*(1-coustomerdata5[[#This Row],[Taux de reduction]]),"") -> 14851.18712 | R34: =DAY(coustomerdata5[[#This Row],[Date]]) -> 1 | S34: =TEXT(coustomerdata5[[#This Row],[Date]], "mmm") -> janv | T34: =TEXT(coustomerdata5[[#This Row],[Date]], "aaaa") -> 2024
E35: 2024-01-02 | F35: P005 | G35: 4 | H35: Grossiste | I35: Mobile Money | J35: 0 | K35: =IFERROR(VLOOKUP(coustomerdata5[[#This Row],[Index]],database[],2,0),"") -> Sérum anti-âge | L35: =IFERROR(VLOOKUP(coustomerdata5[[#This Row],[Index]],database[],3,0),"") -> Soins du Visage | M35: =IFERROR(VLOOKUP(coustomerdata5[[#This Row],[Index]],database[],4,0),"") -> mL | N35: =IFERROR(VLOOKUP(coustomerdata5[[#This Row],[Index]],database[],5,0),"") -> 1372 | O35: =IFERROR(VLOOKUP(coustomerdata5[[#This Row],[Index]],database[],6,0),"") -> 2349.156481 | P35: =IFERROR(coustomerdata5[[#This Row],[Cout unitaire]]*coustomerdata5[[#This Row],[Quantite]],"") -> 5488 | Q35: =IFERROR(coustomerdata5[[#This Row],[Quantite]]*coustomerdata5[[#This Row],[Prix unitaire]]*(1-coustomerdata5[[#This Row],[Taux de reduction]]),"") -> 9396.625926 | R35: =DAY(coustomerdata5[[#This Row],[Date]]) -> 2 | S35: =TEXT(coustomerdata5[[#This Row],[Date]], "mmm") -> janv | T35: =TEXT(coustomerdata5[[#This Row],[Date]], "aaaa") -> 2024
E36: 2024-01-16 | F36: P033 | G36: 9 | H36: Détail | I36: Mobile Money | J36: 0 | K36: =IFERROR(VLOOKUP(coustomerdata5[[#This Row],[Index]],database[],2,0),"") -> Gommage exfoliant | L36: =IFERROR(VLOOKUP(coustomerdata5[[#This Row],[Index]],database[],3,0),"") -> Soins du Visage | M36: =IFERROR(VLOOKUP(coustomerdata5[[#This Row],[Index]],database[],4,0),"") -> g | N36: =IFERROR(VLOOKUP(coustomerdata5[[#This Row],[Index]],database[],5,0),"") -> 1456 | O36: =IFERROR(VLOOKUP(coustomerdata5[[#This Row],[Index]],database[],6,0),"") -> 2349.156481 | P36: =IFERROR(coustomerdata5[[#This Row],[Cout unitaire]]*coustomerdata5[[#This Row],[Quantite]],"") -> 13104 | Q36: =IFERROR(coustomerdata5[[#This Row],[Quantite]]*coustomerdata5[[#This Row],[Prix unitaire]]*(1-coustomerdata5[[#This Row],[Taux de reduction]]),"") -> 21142.40833 | R36: =DAY(coustomerdata5[[#This Row],[Date]]) -> 16 | S36: =TEXT(coustomerdata5[[#This Row],[Date]], "mmm") -> janv | T36: =TEXT(coustomerdata5[[#This Row],[Date]], "aaaa") -> 2024
E37: 2024-01-20 | F37: P045 | G37: 3 | H37: Grossiste | I37: Espèces | J37: 0 | K37: =IFERROR(VLOOKUP(coustomerdata5[[#This Row],[Index]],database[],2,0),"") -> Palette de fards | L37: =IFERROR(VLOOKUP(coustomerdata5[[#This Row],[Index]],database[],3,0),"") -> Maquillage | M37: =IFERROR(VLOOKUP(coustomerdata5[[#This Row],[Index]],database[],4,0),"") -> g | N37: =IFERROR(VLOOKUP(coustomerdata5[[#This Row],[Index]],database[],5,0),"") -> 1440 | O37: =IFERROR(VLOOKUP(coustomerdata5[[#This Row],[Index]],database[],6,0),"") -> 2194.270807 | P37: =IFERROR(coustomerdata5[[#This Row],[Cout unitaire]]*coustomerdata5[[#This Row],[Quantite]],"") -> 4320 | Q37: =IFERROR(coustomerdata5[[#This Row],[Quantite]]*coustomerdata5[[#This Row],[Prix unitaire]]*(1-coustomerdata5[[#This Row],[Taux de reduction]]),"") -> 6582.812422 | R37: =DAY(coustomerdata5[[#This Row],[Date]]) -> 20 | S37: =TEXT(coustomerdata5[[#This Row],[Date]], "mmm") -> janv | T37: =TEXT(coustomerdata5[[#This Row],[Date]], "aaaa") -> 2024
E38: 2024-01-22 | F38: P048 | G38: 5 | H38: Grossiste | I38: Espèces | J38: 0 | K38: =IFERROR(VLOOKUP(coustomerdata5[[#This Row],[Index]],database[],2,0),"") -> Cire coiffante | L38: =IFERROR(VLOOKUP(coustomerdata5[[#This Row],[Index]],database[],3,0),"") -> Soins Capillaires | M38: =IFERROR(VLOOKUP(coustomerdata5[[#This Row],[Index]],database[],4,0),"") -> g | N38: =IFERROR(VLOOKUP(coustomerdata5[[#This Row],[Index]],database[],5,0),"") -> 1347 | O38: =IFERROR(VLOOKUP(coustomerdata5[[#This Row],[Index]],database[],6,0),"") -> 2318.392529 | P38: =IFERROR(coustomerdata5[[#This Row],[Cout unitaire]]*coustomerdata5[[#This Row],[Quantite]],"") -> 6735 | Q38: =IFERROR(coustomerdata5[[#This Row],[Quantite]]*coustomerdata5[[#This Row],[Prix unitaire]]*(1-coustomerdata5[[#This Row],[Taux de reduction]]),"") -> 11591.96264 | R38: =DAY(coustomerdata5[[#This Row],[Date]]) -> 22 | S38: =TEXT(coustomerdata5[[#This Row],[Date]], "mmm") -> janv | T38: =TEXT(coustomerdata5[[#This Row],[Date]], "aaaa") -> 2024
E39: 2024-01-23 | F39: P050 | G39: 3 | H39: Grossiste | I39: Carte | J39: 0 | K39: =IFERROR(VLOOKUP(coustomerdata5[[#This Row],[Index]],database[],2,0),"") -> Poudre libre fixante | L39: =IFERROR(VLOOKUP(coustomerdata5[[#This Row],[Index]],database[],3,0),"") -> Maquillage | M39: =IFERROR(VLOOKUP(coustomerdata5[[#This Row],[Index]],database[],4,0),"") -> g | N39: =IFERROR(VLOOKUP(coustomerdata5[[#This Row],[Index]],database[],5,0),"") -> 1438 | O39: =IFERROR(VLOOKUP(coustomerdata5[[#This Row],[Index]],database[],6,0),"") -> 2290.019394 | P39: =IFERROR(coustomerdata5[[#This Row],[Cout unitaire]]*coustomerdata5[[#This Row],[Quantite]],"") -> 4314 | Q39: =IFERROR(coustomerdata5[[#This Row],[Quantite]]*coustomerdata5[[#This Row],[Prix unitaire]]*(1-coustomerdata5[[#This Row],[Taux de reduction]]),"") -> 6870.058182 | R39: =DAY(coustomerdata5[[#This Row],[Date]]) -> 23 | S39: =TEXT(coustomerdata5[[#This Row],[Date]], "mmm") -> janv | T39: =TEXT(coustomerdata5[[#This Row],[Date]], "aaaa") -> 2024
E40: 2024-01-24 | F40: P018 | G40: 7 | H40: Détail | I40: Mobile Money | J40: 0 | K40: =IFERROR(VLOOKUP(coustomerdata5[[#This Row],[Index]],database[],2,0),"") -> Rouge à lèvres mat | L40: =IFERROR(VLOOKUP(coustomerdata5[[#This Row],[Index]],database[],3,0),"") -> Maquillage | M40: =IFERROR(VLOOKUP(coustomerdata5[[#This Row],[Index]],database[],4,0),"") -> g | N40: =IFERROR(VLOOKUP(coustomerdata5[[#This Row],[Index]],database[],5,0),"") -> 1372 | O40: =IFERROR(VLOOKUP(coustomerdata5[[#This Row],[Index]],database[],6,0),"") -> 2121.59816 | P40: =IFERROR(coustomerdata5[[#This Row],[Cout unitaire]]*coustomerdata5[[#This Row],[Quantite]],"") -> 9604 | Q40: =IFERROR(coustomerdata5[[#This Row],[Quantite]]*coustomerdata5[[#This Row],[Prix unitaire]]*(1-coustomerdata5[[#This Row],[Taux de reduction]]),"") -> 14851.18712 | R40: =DAY(coustomerdata5[[#This Row],[Date]]) -> 24 | S40: =TEXT(coustomerdata5[[#This Row],[Date]], "mmm") -> janv | T40: =TEXT(coustomerdata5[[#This Row],[Date]], "aaaa") -> 2024
E41: 2024-01-24 | F41: P007 | G41: 5 | H41: Détail | I41: Mobile Money | J41: 0 | K41: =IFERROR(VLOOKUP(coustomerdata5[[#This Row],[Index]],database[],2,0),"") -> Mousse volume | L41: =IFERROR(VLOOKUP(coustomerdata5[[#This Row],[Index]],database[],3,0),"") -> Soins Capillaires | M41: =IFERROR(VLOOKUP(coustomerdata5[[#This Row],[Index]],database[],4,0),"") -> mL | N41: =IFERROR(VLOOKUP(coustomerdata5[[#This Row],[Index]],database[],5,0),"") -> 1479 | O41: =IFERROR(VLOOKUP(coustomerdata5[[#This Row],[Index]],database[],6,0),"") -> 2313.735015 | P41: =IFERROR(coustomerdata5[[#This Row],[Cout unitaire]]*coustomerdata5[[#This Row],[Quantite]],"") -> 7395 | Q41: =IFERROR(coustomerdata5[[#This Row],[Quantite]]*coustomerdata5[[#This Row],[Prix unitaire]]*(1-coustomerdata5[[#This Row],[Taux de reduction]]),"") -> 11568.67508 | R41: =DAY(coustomerdata5[[#This Row],[Date]]) -> 24 | S41: =TEXT(coustomerdata5[[#This Row],[Date]], "mmm") -> janv | T41: =TEXT(coustomerdata5[[#This Row],[Date]], "aaaa") -> 2024
E42: 2024-01-25 | F42: P022 | G42: 9 | H42: Détail | I42: Espèces | J42: 0 | K42: =IFERROR(VLOOKUP(coustomerdata5[[#This Row],[Index]],database[],2,0),"") -> Masque capillaire | L42: =IFERROR(VLOOKUP(coustomerdata5[[#This Row],[Index]],database[],3,0),"") -> Soins Capillaires | M42: =IFERROR(VLOOKUP(coustomerdata5[[#This Row],[Index]],database[],4,0),"") -> mL | N42: =IFERROR(VLOOKUP(coustomerdata5[[#This Row],[Index]],database[],5,0),"") -> 1307 | O42: =IFERROR(VLOOKUP(coustomerdata5[[#This Row],[Index]],database[],6,0),"") -> 2290.019394 | P42: =IFERROR(coustomerdata5[[#This Row],[Cout unitaire]]*coustomerdata5[[#This Row],[Quantite]],"") -> 11763 | Q42: =IFERROR(coustomerdata5[[#This Row],[Quantite]]*coustomerdata5[[#This Row],[Prix unitaire]]*(1-coustomerdata5[[#This Row],[Taux de reduction]]),"") -> 20610.17455 | R42: =DAY(coustomerdata5[[#This Row],[Date]]) -> 25 | S42: =TEXT(coustomerdata5[[#This Row],[Date]], "mmm") -> janv | T42: =TEXT(coustomerdata5[[#This Row],[Date]], "aaaa") -> 2024
E43: 2024-01-25 | F43: P021 | G43: 7 | H43: Détail | I43: Espèces | J43: 0 | K43: =IFERROR(VLOOKUP(coustomerdata5[[#This Row],[Index]],database[],2,0),"") -> Huile nourrissante | L43: =IFERROR(VLOOKUP(coustomerdata5[[#This Row],[Index]],database[],3,0),"") -> Soins du Corps | M43: =IFERROR(VLOOKUP(coustomerdata5[[#This Row],[Index]],database[],4,0),"") -> mL | N43: =IFERROR(VLOOKUP(coustomerdata5[[#This Row],[Index]],database[],5,0),"") -> 1489 | O43: =IFERROR(VLOOKUP(coustomerdata5[[#This Row],[Index]],database[],6,0),"") -> 2313.735015 | P43: =IFERROR(coustomerdata5[[#This Row],[Cout unitaire]]*coustomerdata5[[#This Row],[Quantite]],"") -> 10423 | Q43: =IFERROR(coustomerdata5[[#This Row],[Quantite]]*coustomerdata5[[#This Row],[Prix unitaire]]*(1-coustomerdata5[[#This Row],[Taux de reduction]]),"") -> 16196.14511 | R43: =DAY(coustomerdata5[[#This Row],[Date]]) -> 25 | S43: =TEXT(coustomerdata5[[#This Row],[Date]], "mmm") -> janv | T43: =TEXT(coustomerdata5[[#This Row],[Date]], "aaaa") -> 2024
E44: 2024-01-25 | F44: P044 | G44: 2 | H44: Grossiste | I44: Espèces | J44: 0 | K44: =IFERROR(VLOOKUP(coustomerdata5[[#This Row],[Index]],database[],2,0),"") -> Spray thermo-protecteur | L44: =IFERROR(VLOOKUP(coustomerdata5[[#This Row],[Index]],database[],3,0),"") -> Soins Capillaires | M44: =IFERROR(VLOOKUP(coustomerdata5[[#This Row],[Index]],database[],4,0),"") -> mL | N44: =IFERROR(VLOOKUP(coustomerdata5[[#This Row],[Index]],database[],5,0),"") -> 1423 | O44: =IFERROR(VLOOKUP(coustomerdata5[[#This Row],[Index]],database[],6,0),"") -> 2285.529633 | P44: =IFERROR(coustomerdata5[[#This Row],[Cout unitaire]]*coustomerdata5[[#This Row],[Quantite]],"") -> 2846 | Q44: =IFERROR(coustomerdata5[[#This Row],[Quantite]]*coustomerdata5[[#This Row],[Prix unitaire]]*(1-coustomerdata5[[#This Row],[Taux de reduction]]),"") -> 4571.059266 | R44: =DAY(coustomerdata5[[#This Row],[Date]]) -> 25 | S44: =TEXT(coustomerdata5[[#This Row],[Date]], "mmm") -> janv | T44: =TEXT(coustomerdata5[[#This Row],[Date]], "aaaa") -> 2024
E45: 2024-01-26 | F45: P018 | G45: 4 | H45: Grossiste | I45: Carte | J45: 0 | K45: =IFERROR(VLOOKUP(coustomerdata5[[#This Row],[Index]],database[],2,0),"") -> Rouge à lèvres mat | L45: =IFERROR(VLOOKUP(coustomerdata5[[#This Row],[Index]],database[],3,0),"") -> Maquillage | M45: =IFERROR(VLOOKUP(coustomerdata5[[#This Row],[Index]],database[],4,0),"") -> g | N45: =IFERROR(VLOOKUP(coustomerdata5[[#This Row],[Index]],database[],5,0),"") -> 1372 | O45: =IFERROR(VLOOKUP(coustomerdata5[[#This Row],[Index]],database[],6,0),"") -> 2121.59816 | P45: =IFERROR(coustomerdata5[[#This Row],[Cout unitaire]]*coustomerdata5[[#This Row],[Quantite]],"") -> 5488 | Q45: =IFERROR(coustomerdata5[[#This Row],[Quantite]]*coustomerdata5[[#This Row],[Prix unitaire]]*(1-coustomerdata5[[#This Row],[Taux de reduction]]),"") -> 8486.392638 | R45: =DAY(coustomerdata5[[#This Row],[Date]]) -> 26 | S45: =TEXT(coustomerdata5[[#This Row],[Date]], "mmm") -> janv | T45: =TEXT(coustomerdata5[[#This Row],[Date]], "aaaa") -> 2024
E46: 2024-01-26 | F46: P018 | G46: 9 | H46: Détail | I46: Mobile Money | J46: 0 | K46: =IFERROR(VLOOKUP(coustomerdata5[[#This Row],[Index]],database[],2,0),"") -> Rouge à lèvres mat | L46: =IFERROR(VLOOKUP(coustomerdata5[[#This Row],[Index]],database[],3,0),"") -> Maquillage | M46: =IFERROR(VLOOKUP(coustomerdata5[[#This Row],[Index]],database[],4,0),"") -> g | N46: =IFERROR(VLOOKUP(coustomerdata5[[#This Row],[Index]],database[],5,0),"") -> 1372 | O46: =IFERROR(VLOOKUP(coustomerdata5[[#This Row],[Index]],database[],6,0),"") -> 2121.59816 | P46: =IFERROR(coustomerdata5[[#This Row],[Cout unitaire]]*coustomerdata5[[#This Row],[Quantite]],"") -> 12348 | Q46: =IFERROR(coustomerdata5[[#This Row],[Quantite]]*coustomerdata5[[#This Row],[Prix unitaire]]*(1-coustomerdata5[[#This Row],[Taux de reduction]]),"") -> 19094.38344 | R46: =DAY(coustomerdata5[[#This Row],[Date]]) -> 26 | S46: =TEXT(coustomerdata5[[#This Row],[Date]], "mmm") -> janv | T46: =TEXT(coustomerdata5[[#This Row],[Date]], "aaaa") -> 2024
E47: 2024-01-27 | F47: P025 | G47: 2 | H47: Grossiste | I47: Carte | J47: 0 | K47: =IFERROR(VLOOKUP(coustomerdata5[[#This Row],[Index]],database[],2,0),"") -> Cire coiffante | L47: =IFERROR(VLOOKUP(coustomerdata5[[#This Row],[Index]],database[],3,0),"") -> Soins Capillaires | M47: =IFERROR(VLOOKUP(coustomerdata5[[#This Row],[Index]],database[],4,0),"") -> g | N47: =IFERROR(VLOOKUP(coustomerdata5[[#This Row],[Index]],database[],5,0),"") -> 1440 | O47: =IFERROR(VLOOKUP(coustomerdata5[[#This Row],[Index]],database[],6,0),"") -> 2295.317797 | P47: =IFERROR(coustomerdata5[[#This Row],[Cout unitaire]]*coustomerdata5[[#This Row],[Quantite]],"") -> 2880 | Q47: =IFERROR(coustomerdata5[[#This Row],[Quantite]]*coustomerdata5[[#This Row],[Prix unitaire]]*(1-coustomerdata5[[#This Row],[Taux de reduction]]),"") -> 4590.635593 | R47: =DAY(coustomerdata5[[#This Row],[Date]]) -> 27 | S47: =TEXT(coustomerdata5[[#This Row],[Date]], "mmm") -> janv | T47: =TEXT(coustomerdata5[[#This Row],[Date]], "aaaa") -> 2024
E48: 2024-01-27 | F48: P021 | G48: 9 | H48: Grossiste | I48: Mobile Money | J48: 0 | K48: =IFERROR(VLOOKUP(coustomerdata5[[#This Row],[Index]],database[],2,0),"") -> Huile nourrissante | L48: =IFERROR(VLOOKUP(coustomerdata5[[#This Row],[Index]],database[],3,0),"") -> Soins du Corps | M48: =IFERROR(VLOOKUP(coustomerdata5[[#This Row],[Index]],database[],4,0),"") -> mL | N48: =IFERROR(VLOOKUP(coustomerdata5[[#This Row],[Index]],database[],5,0),"") -> 1489 | O48: =IFERROR(VLOOKUP(coustomerdata5[[#This Row],[Index]],database[],6,0),"") -> 2313.735015 | P48: =IFERROR(coustomerdata5[[#This Row],[Cout unitaire]]*coustomerdata5[[#This Row],[Quantite]],"") -> 13401 | Q48: =IFERROR(coustomerdata5[[#This Row],[Quantite]]*coustomerdata5[[#This Row],[Prix unitaire]]*(1-coustomerdata5[[#This Row],[Taux de reduction]]),"") -> 20823.61514 | R48: =DAY(coustomerdata5[[#This Row],[Date]]) -> 27 | S48: =TEXT(coustomerdata5[[#This Row],[Date]], "mmm") -> janv | T48: =TEXT(coustomerdata5[[#This Row],[Date]], "aaaa") -> 2024
E49: 2024-01-27 | F49: P021 | G49: 5 | H49: Détail | I49: Espèces | J49: 0 | K49: =IFERROR(VLOOKUP(coustomerdata5[[#This Row],[Index]],database[],2,0),"") -> Huile nourrissante | L49: =IFERROR(VLOOKUP(coustomerdata5[[#This Row],[Index]],database[],3,0),"") -> Soins du Corps | M49: =IFERROR(VLOOKUP(coustomerdata5[[#This Row],[Index]],database[],4,0),"") -> mL | N49: =IFERROR(VLOOKUP(coustomerdata5[[#This Row],[Index]],database[],5,0),"") -> 1489 | O49: =IFERROR(VLOOKUP(coustomerdata5[[#This Row],[Index]],database[],6,0),"") -> 2313.735015 | P49: =IFERROR(coustomerdata5[[#This Row],[Cout unitaire]]*coustomerdata5[[#This Row],[Quantite]],"") -> 7445 | Q49: =IFERROR(coustomerdata5[[#This Row],[Quantite]]*coustomerdata5[[#This Row],[Prix unitaire]]*(1-coustomerdata5[[#This Row],[Taux de reduction]]),"") -> 11568.67508 | R49: =DAY(coustomerdata5[[#This Row],[Date]]) -> 27 | S49: =TEXT(coustomerdata5[[#This Row],[Date]], "mmm") -> janv | T49: =TEXT(coustomerdata5[[#This Row],[Date]], "aaaa") -> 2024
E50: 2024-01-28 | F50: P008 | G50: 2 | H50: Grossiste | I50: Carte | J50: 0 | K50: =IFERROR(VLOOKUP(coustomerdata5[[#This Row],[Index]],database[],2,0),"") -> Lotion tonique | L50: =IFERROR(VLOOKUP(coustomerdata5[[#This Row],[Index]],database[],3,0),"") -> Soins du Visage | M50: =IFERROR(VLOOKUP(coustomerdata5[[#This Row],[Index]],database[],4,0),"") -> mL | N50: =IFERROR(VLOOKUP(coustomerdata5[[#This Row],[Index]],database[],5,0),"") -> 1489 | O50: =IFERROR(VLOOKUP(coustomerdata5[[#This Row],[Index]],database[],6,0),"") -> 2290.019394 | P50: =IFERROR(coustomerdata5[[#This Row],[Cout unitaire]]*coustomerdata5[[#This Row],[Quantite]],"") -> 2978 | Q50: =IFERROR(coustomerdata5[[#This Row],[Quantite]]*coustomerdata5[[#This Row],[Prix unitaire]]*(1-coustomerdata5[[#This Row],[Taux de reduction]]),"") -> 4580.038788 | R50: =DAY(coustomerdata5[[#This Row],[Date]]) -> 28 | S50: =TEXT(coustomerdata5[[#This Row],[Date]], "mmm") -> janv | T50: =TEXT(coustomerdata5[[#This Row],[Date]], "aaaa") -> 2024
E51: 2024-01-28 | F51: P011 | G51: 4 | H51: Grossiste | I51: Carte | J51: 0 | K51: =IFERROR(VLOOKUP(coustomerdata5[[#This Row],[Index]],database[],2,0),"") -> Eau micellaire | L51: =IFERROR(VLOOKUP(coustomerdata5[[#This Row],[Index]],database[],3,0),"") -> Soins du Visage | M51: =IFERROR(VLOOKUP(coustomerdata5[[#This Row],[Index]],database[],4,0),"") -> mL | N51: =IFERROR(VLOOKUP(coustomerdata5[[#This Row],[Index]],database[],5,0),"") -> 1489 | O51: =IFERROR(VLOOKUP(coustomerdata5[[#This Row],[Index]],database[],6,0),"") -> 2295.317797 | P51: =IFERROR(coustomerdata5[[#This Row],[Cout unitaire]]*coustomerdata5[[#This Row],[Quantite]],"") -> 5956 | Q51: =IFERROR(coustomerdata5[[#This Row],[Quantite]]*coustomerdata5[[#This Row],[Prix unitaire]]*(1-coustomerdata5[[#This Row],[Taux de reduction]]),"") -> 9181.271186 | R51: =DAY(coustomerdata5[[#This Row],[Date]]) -> 28 | S51: =TEXT(coustomerdata5[[#This Row],[Date]], "mmm") -> janv | T51: =TEXT(coustomerdata5[[#This Row],[Date]], "aaaa") -> 2024
E52: 2024-01-29 | F52: P041 | G52: 7 | H52: Détail | I52: Espèces | J52: 0 | K52: =IFERROR(VLOOKUP(coustomerdata5[[#This Row],[Index]],database[],2,0),"") -> Gel douche hydratant | L52: =IFERROR(VLOOKUP(coustomerdata5[[#This Row],[Index]],database[],3,0),"") -> Soins du Corps | M52: =IFERROR(VLOOKUP(coustomerdata5[[#This Row],[Index]],database[],4,0),"") -> mL | N52: =IFERROR(VLOOKUP(coustomerdata5[[#This Row],[Index]],database[],5,0),"") -> 1456 | O52: =IFERROR(VLOOKUP(coustomerdata5[[#This Row],[Index]],database[],6,0),"") -> 2198.207154 | P52: =IFERROR(coustomerdata5[[#This Row],[Cout unitaire]]*coustomerdata5[[#This Row],[Quantite]],"") -> 10192 | Q52: =IFERROR(coustomerdata5[[#This Row],[Quantite]]*coustomerdata5[[#This Row],[Prix unitaire]]*(1-coustomerdata5[[#This Row],[Taux de reduction]]),"") -> 15387.45008 | R52: =DAY(coustomerdata5[[#This Row],[Date]]) -> 29 | S52: =TEXT(coustomerdata5[[#This Row],[Date]], "mmm") -> janv | T52: =TEXT(coustomerdata5[[#This Row],[Date]], "aaaa") -> 2024
E53: 2024-01-29 | F53: P039 | G53: 8 | H53: Détail | I53: Carte | J53: 0 | K53: =IFERROR(VLOOKUP(coustomerdata5[[#This Row],[Index]],database[],2,0),"") -> Crème pour les mains | L53: =IFERROR(VLOOKUP(coustomerdata5[[#This Row],[Index]],database[],3,0),"") -> Soins du Corps | M53: =IFERROR(VLOOKUP(coustomerdata5[[#This Row],[Index]],database[],4,0),"") -> mL | N53: =IFERROR(VLOOKUP(coustomerdata5[[#This Row],[Index]],database[],5,0),"") -> 1440 | O53: =IFERROR(VLOOKUP(coustomerdata5[[#This Row],[Index]],database[],6,0),"") -> 2295.317797 | P53: =IFERROR(coustomerdata5[[#This Row],[Cout unitaire]]*coustomerdata5[[#This Row],[Quantite]],"") -> 11520 | Q53: =IFERROR(coustomerdata5[[#This Row],[Quantite]]*coustomerdata5[[#This Row],[Prix unitaire]]*(1-coustomerdata5[[#This Row],[Taux de reduction]]),"") -> 18362.54237 | R53: =DAY(coustomerdata5[[#This Row],[Date]]) -> 29 | S53: =TEXT(coustomerdata5[[#This Row],[Date]], "mmm") -> janv | T53: =TEXT(coustomerdata5[[#This Row],[Date]], "aaaa") -> 2024
E54: 2024-01-29 | F54: P014 | G54: 3 | H54: Détail | I54: Carte | J54: 0 | K54: =IFERROR(VLOOKUP(coustomerdata5[[#This Row],[Index]],database[],2,0),"") -> Crème coiffante | L54: =IFERROR(VLOOKUP(coustomerdata5[[#This Row],[Index]],database[],3,0),"") -> Soins Capillaires | M54: =IFERROR(VLOOKUP(coustomerdata5[[#This Row],[Index]],database[],4,0),"") -> mL | N54: =IFERROR(VLOOKUP(coustomerdata5[[#This Row],[Index]],database[],5,0),"") -> 1479 | O54: =IFERROR(VLOOKUP(coustomerdata5[[#This Row],[Index]],database[],6,0),"") -> 2409.547712 | P54: =IFERROR(coustomerdata5[[#This Row],[Cout unitaire]]*coustomerdata5[[#This Row],[Quantite]],"") -> 4437 | Q54: =IFERROR(coustomerdata5[[#This Row],[Quantite]]*coustomerdata5[[#This Row],[Prix unitaire]]*(1-coustomerdata5[[#This Row],[Taux de reduction]]),"") -> 7228.643137 | R54: =DAY(coustomerdata5[[#This Row],[Date]]) -> 29 | S54: =TEXT(coustomerdata5[[#This Row],[Date]], "mmm") -> janv | T54: =TEXT(coustomerdata5[[#This Row],[Date]], "aaaa") -> 2024
E55: 2024-01-29 | F55: P018 | G55: 1 | H55: Grossiste | I55: Mobile Money | J55: 0 | K55: =IFERROR(VLOOKUP(coustomerdata5[[#This Row],[Index]],database[],2,0),"") -> Rouge à lèvres mat | L55: =IFERROR(VLOOKUP(coustomerdata5[[#This Row],[Index]],database[],3,0),"") -> Maquillage | M55: =IFERROR(VLOOKUP(coustomerdata5[[#This Row],[Index]],database[],4,0),"") -> g | N55: =IFERROR(VLOOKUP(coustomerdata5[[#This Row],[Index]],database[],5,0),"") -> 1372 | O55: =IFERROR(VLOOKUP(coustomerdata5[[#This Row],[Index]],database[],6,0),"") -> 2121.59816 | P55: =IFERROR(coustomerdata5[[#This Row],[Cout unitaire]]*coustomerdata5[[#This Row],[Quantite]],"") -> 1372 | Q55: =IFERROR(coustomerdata5[[#This Row],[Quantite]]*coustomerdata5[[#This Row],[Prix unitaire]]*(1-coustomerdata5[[#This Row],[Taux de reduction]]),"") -> 2121.59816 | R55: =DAY(coustomerdata5[[#This Row],[Date]]) -> 29 | S55: =TEXT(coustomerdata5[[#This Row],[Date]], "mmm") -> janv | T55: =TEXT(coustomerdata5[[#This Row],[Date]], "aaaa") -> 2024
E56: 2024-01-30 | F56: P023 | G56: 4 | H56: Détail | I56: Carte | J56: 0 | K56: =IFERROR(VLOOKUP(coustomerdata5[[#This Row],[Index]],database[],2,0),"") -> Masque purifiant | L56: =IFERROR(VLOOKUP(coustomerdata5[[#This Row],[Index]],database[],3,0),"") -> Soins du Visage | M56: =IFERROR(VLOOKUP(coustomerdata5[[#This Row],[Index]],database[],4,0),"") -> g | N56: =IFERROR(VLOOKUP(coustomerdata5[[#This Row],[Index]],database[],5,0),"") -> 1457 | O56: =IFERROR(VLOOKUP(coustomerdata5[[#This Row],[Index]],database[],6,0),"") -> 2171.294262 | P56: =IFERROR(coustomerdata5[[#This Row],[Cout unitaire]]*coustomerdata5[[#This Row],[Quantite]],"") -> 5828 | Q56: =IFERROR(coustomerdata5[[#This Row],[Quantite]]*coustomerdata5[[#This Row],[Prix unitaire]]*(1-coustomerdata5[[#This Row],[Taux de reduction]]),"") -> 8685.177049 | R56: =DAY(coustomerdata5[[#This Row],[Date]]) -> 30 | S56: =TEXT(coustomerdata5[[#This Row],[Date]], "mmm") -> janv | T56: =TEXT(coustomerdata5[[#This Row],[Date]], "aaaa") -> 2024
E57: 2024-01-30 | F57: P050 | G57: 2 | H57: Grossiste | I57: Mobile Money | J57: 0 | K57: =IFERROR(VLOOKUP(coustomerdata5[[#This Row],[Index]],database[],2,0),"") -> Poudre libre fixante | L57: =IFERROR(VLOOKUP(coustomerdata5[[#This Row],[Index]],database[],3,0),"") -> Maquillage | M57: =IFERROR(VLOOKUP(coustomerdata5[[#This Row],[Index]],database[],4,0),"") -> g | N57: =IFERROR(VLOOKUP(coustomerdata5[[#This Row],[Index]],database[],5,0),"") -> 1438 | O57: =IFERROR(VLOOKUP(coustomerdata5[[#This Row],[Index]],database[],6,0),"") -> 2290.019394 | P57: =IFERROR(coustomerdata5[[#This Row],[Cout unitaire]]*coustomerdata5[[#This Row],[Quantite]],"") -> 2876 | Q57: =IFERROR(coustomerdata5[[#This Row],[Quantite]]*coustomerdata5[[#This Row],[Prix unitaire]]*(1-coustomerdata5[[#This Row],[Taux de reduction]]),"") -> 4580.038788 | R57: =DAY(coustomerdata5[[#This Row],[Date]]) -> 30 | S57: =TEXT(coustomerdata5[[#This Row],[Date]], "mmm") -> janv | T57: =TEXT(coustomerdata5[[#This Row],[Date]], "aaaa") -> 2024
E58: 2024-01-30 | F58: P042 | G58: 8 | H58: Grossiste | I58: Mobile Money | J58: 0 | K58: =IFERROR(VLOOKUP(coustomerdata5[[#This Row],[Index]],database[],2,0),"") -> Crème hydratante | L58: =IFERROR(VLOOKUP(coustomerdata5[[#This Row],[Index]],database[],3,0),"") -> Soins du Visage | M58: =IFERROR(VLOOKUP(coustomerdata5[[#This Row],[Index]],database[],4,0),"") -> mL | N58: =IFERROR(VLOOKUP(coustomerdata5[[#This Row],[Index]],database[],5,0),"") -> 1448 | O58: =IFERROR(VLOOKUP(coustomerdata5[[#This Row],[Index]],database[],6,0),"") -> 2409.547712 | P58: =IFERROR(coustomerdata5[[#This Row],[Cout unitaire]]*coustomerdata5[[#This Row],[Quantite]],"") -> 11584 | Q58: =IFERROR(coustomerdata5[[#This Row],[Quantite]]*coustomerdata5[[#This Row],[Prix unitaire]]*(1-coustomerdata5[[#This Row],[Taux de reduction]]),"") -> 19276.3817 | R58: =DAY(coustomerdata5[[#This Row],[Date]]) -> 30 | S58: =TEXT(coustomerdata5[[#This Row],[Date]], "mmm") -> janv | T58: =TEXT(coustomerdata5[[#This Row],[Date]], "aaaa") -> 2024
E59: 2024-01-31 | F59: P002 | G59: 4 | H59: Grossiste | I59: Espèces | J59: 0 | K59: =IFERROR(VLOOKUP(coustomerdata5[[#This Row],[Index]],database[],2,0),"") -> Eye-liner waterproof | L59: =IFERROR(VLOOKUP(coustomerdata5[[#This Row],[Index]],database[],3,0),"") -> Maquillage | M59: =IFERROR(VLOOKUP(coustomerdata5[[#This Row],[Index]],database[],4,0),"") -> mL | N59: =IFERROR(VLOOKUP(coustomerdata5[[#This Row],[Index]],database[],5,0),"") -> 1489 | O59: =IFERROR(VLOOKUP(coustomerdata5[[#This Row],[Index]],database[],6,0),"") -> 2285.529633 | P59: =IFERROR(coustomerdata5[[#This Row],[Cout unitaire]]*coustomerdata5[[#This Row],[Quantite]],"") -> 5956 | Q59: =IFERROR(coustomerdata5[[#This Row],[Quantite]]*coustomerdata5[[#This Row],[Prix unitaire]]*(1-coustomerdata5[[#This Row],[Taux de reduction]]),"") -> 9142.118531 | R59: =DAY(coustomerdata5[[#This Row],[Date]]) -> 31 | S59: =TEXT(coustomerdata5[[#This Row],[Date]], "mmm") -> janv | T59: =TEXT(coustomerdata5[[#This Row],[Date]], "aaaa") -> 2024
E60: 2024-01-31 | F60: P001 | G60: 2 | H60: Détail | I60: Espèces | J60: 0 | K60: =IFERROR(VLOOKUP(coustomerdata5[[#This Row],[Index]],database[],2,0),"") -> Crème pour les pieds | L60: =IFERROR(VLOOKUP(coustomerdata5[[#This Row],[Index]],database[],3,0),"") -> Soins du Corps | M60: =IFERROR(VLOOKUP(coustomerdata5[[#This Row],[Index]],database[],4,0),"") -> mL | N60: =IFERROR(VLOOKUP(coustomerdata5[[#This Row],[Index]],database[],5,0),"") -> 1479 | O60: =IFERROR(VLOOKUP(coustomerdata5[[#This Row],[Index]],database[],6,0),"") -> 2304.641933 | P60: =IFERROR(coustomerdata5[[#This Row],[Cout unitaire]]*coustomerdata5[[#This Row],[Quantite]],"") -> 2958 | Q60: =IFERROR(coustomerdata5[[#This Row],[Quantite]]*coustomerdata5[[#This Row],[Prix unitaire]]*(1-coustomerdata5[[#This Row],[Taux de reduction]]),"") -> 4609.283866 | R60: =DAY(coustomerdata5[[#This Row],[Date]]) -> 31 | S60: =TEXT(coustomerdata5[[#This Row],[Date]], "mmm") -> janv | T60: =TEXT(coustomerdata5[[#This Row],[Date]], "aaaa") -> 2024
E61: 2024-02-01 | F61: P040 | G61: 6 | H61: Détail | I61: Carte | J61: 0 | K61: =IFERROR(VLOOKUP(coustomerdata5[[#This Row],[Index]],database[],2,0),"") -> Shampoing sec | L61: =IFERROR(VLOOKUP(coustomerdata5[[#This Row],[Index]],database[],3,0),"") -> Soins Capillaires | M61: =IFERROR(VLOOKUP(coustomerdata5[[#This Row],[Index]],database[],4,0),"") -> mL | N61: =IFERROR(VLOOKUP(coustomerdata5[[#This Row],[Index]],database[],5,0),"") -> 1456 | O61: =IFERROR(VLOOKUP(coustomerdata5[[#This Row],[Index]],database[],6,0),"") -> 2300.505128 | P61: =IFERROR(coustomerdata5[[#This Row],[Cout unitaire]]*coustomerdata5[[#This Row],[Quantite]],"") -> 8736 | Q61: =IFERROR(coustomerdata5[[#This Row],[Quantite]]*coustomerdata5[[#This Row],[Prix unitaire]]*(1-coustomerdata5[[#This Row],[Taux de reduction]]),"") -> 13803.03077 | R61: =DAY(coustomerdata5[[#This Row],[Date]]) -> 1 | S61: =TEXT(coustomerdata5[[#This Row],[Date]], "mmm") -> févr | T61: =TEXT(coustomerdata5[[#This Row],[Date]], "aaaa") -> 2024
E62: 2024-02-02 | F62: P034 | G62: 6 | H62: Grossiste | I62: Espèces | J62: 0 | K62: =IFERROR(VLOOKUP(coustomerdata5[[#This Row],[Index]],database[],2,0),"") -> Blush rosé | L62: =IFERROR(VLOOKUP(coustomerdata5[[#This Row],[Index]],database[],3,0),"") -> Maquillage | M62: =IFERROR(VLOOKUP(coustomerdata5[[#This Row],[Index]],database[],4,0),"") -> g | N62: =IFERROR(VLOOKUP(coustomerdata5[[#This Row],[Index]],database[],5,0),"") -> 1448 | O62: =IFERROR(VLOOKUP(coustomerdata5[[#This Row],[Index]],database[],6,0),"") -> 2318.392529 | P62: =IFERROR(coustomerdata5[[#This Row],[Cout unitaire]]*coustomerdata5[[#This Row],[Quantite]],"") -> 8688 | Q62: =IFERROR(coustomerdata5[[#This Row],[Quantite]]*coustomerdata5[[#This Row],[Prix unitaire]]*(1-coustomerdata5[[#This Row],[Taux de reduction]]),"") -> 13910.35517 | R62: =DAY(coustomerdata5[[#This Row],[Date]]) -> 2 | S62: =TEXT(coustomerdata5[[#This Row],[Date]], "mmm") -> févr | T62: =TEXT(coustomerdata5[[#This Row],[Date]], "aaaa") -> 2024
E63: 2024-02-03 | F63: P004 | G63: 4 | H63: Détail | I63: Carte | J63: 0 | K63: =IFERROR(VLOOKUP(coustomerdata5[[#This Row],[Index]],database[],2,0),"") -> Spray thermo-protecteur | L63: =IFERROR(VLOOKUP(coustomerdata5[[#This Row],[Index]],database[],3,0),"") -> Soins Capillaires | M63: =IFERROR(VLOOKUP(coustomerdata5[[#This Row],[Index]],database[],4,0),"") -> mL | N63: =IFERROR(VLOOKUP(coustomerdata5[[#This Row],[Index]],database[],5,0),"") -> 1372 | O63: =IFERROR(VLOOKUP(coustomerdata5[[#This Row],[Index]],database[],6,0),"") -> 2121.59816 | P63: =IFERROR(coustomerdata5[[#This Row],[Cout unitaire]]*coustomerdata5[[#This Row],[Quantite]],"") -> 5488 | Q63: =IFERROR(coustomerdata5[[#This Row],[Quantite]]*coustomerdata5[[#This Row],[Prix unitaire]]*(1-coustomerdata5[[#This Row],[Taux de reduction]]),"") -> 8486.392638 | R63: =DAY(coustomerdata5[[#This Row],[Date]]) -> 3 | S63: =TEXT(coustomerdata5[[#This Row],[Date]], "mmm") -> févr | T63: =TEXT(coustomerdata5[[#This Row],[Date]], "aaaa") -> 2024
E64: 2024-02-04 | F64: P040 | G64: 6 | H64: Grossiste | I64: Espèces | J64: 0 | K64: =IFERROR(VLOOKUP(coustomerdata5[[#This Row],[Index]],database[],2,0),"") -> Shampoing sec | L64: =IFERROR(VLOOKUP(coustomerdata5[[#This Row],[Index]],database[],3,0),"") -> Soins Capillaires | M64: =IFERROR(VLOOKUP(coustomerdata5[[#This Row],[Index]],database[],4,0),"") -> mL | N64: =IFERROR(VLOOKUP(coustomerdata5[[#This Row],[Index]],database[],5,0),"") -> 1456 | O64: =IFERROR(VLOOKUP(coustomerdata5[[#This Row],[Index]],database[],6,0),"") -> 2300.505128 | P64: =IFERROR(coustomerdata5[[#This Row],[Cout unitaire]]*coustomerdata5[[#This Row],[Quantite]],"") -> 8736 | Q64: =IFERROR(coustomerdata5[[#This Row],[Quantite]]*coustomerdata5[[#This Row],[Prix unitaire]]*(1-coustomerdata5[[#This Row],[Taux de reduction]]),"") -> 13803.03077 | R64: =DAY(coustomerdata5[[#This Row],[Date]]) -> 4 | S64: =TEXT(coustomerdata5[[#This Row],[Date]], "mmm") -> févr | T64: =TEXT(coustomerdata5[[#This Row],[Date]], "aaaa") -> 2024
E65: 2024-02-05 | F65: P006 | G65: 2 | H65: Grossiste | I65: Mobile Money | J65: 0 | K65: =IFERROR(VLOOKUP(coustomerdata5[[#This Row],[Index]],database[],2,0),"") -> Déodorant naturel | L65: =IFERROR(VLOOKUP(coustomerdata5[[#This Row],[Index]],database[],3,0),"") -> Soins du Corps | M65: =IFERROR(VLOOKUP(coustomerdata5[[#This Row],[Index]],database[],4,0),"") -> mL | N65: =IFERROR(VLOOKUP(coustomerdata5[[#This Row],[Index]],database[],5,0),"") -> 1440 | O65: =IFERROR(VLOOKUP(coustomerdata5[[#This Row],[Index]],database[],6,0),"") -> 2318.392529 | P65: =IFERROR(coustomerdata5[[#This Row],[Cout unitaire]]*coustomerdata5[[#This Row],[Quantite]],"") -> 2880 | Q65: =IFERROR(coustomerdata5[[#This Row],[Quantite]]*coustomerdata5[[#This Row],[Prix unitaire]]*(1-coustomerdata5[[#This Row],[Taux de reduction]]),"") -> 4636.785057 | R65: =DAY(coustomerdata5[[#This Row],[Date]]) -> 5 | S65: =TEXT(coustomerdata5[[#This Row],[Date]], "mmm") -> févr | T65: =TEXT(coustomerdata5[[#This Row],[Date]], "aaaa") -> 2024
E66: 2024-02-06 | F66: P041 | G66: 2 | H66: Détail | I66: Mobile Money | J66: 0 | K66: =IFERROR(VLOOKUP(coustomerdata5[[#This Row],[Index]],database[],2,0),"") -> Gel douche hydratant | L66: =IFERROR(VLOOKUP(coustomerdata5[[#This Row],[Index]],database[],3,0),"") -> Soins du Corps | M66: =IFERROR(VLOOKUP(coustomerdata5[[#This Row],[Index]],database[],4,0),"") -> mL | N66: =IFERROR(VLOOKUP(coustomerdata5[[#This Row],[Index]],database[],5,0),"") -> 1456 | O66: =IFERROR(VLOOKUP(coustomerdata5[[#This Row],[Index]],database[],6,0),"") -> 2198.207154 | P66: =IFERROR(coustomerdata5[[#This Row],[Cout unitaire]]*coustomerdata5[[#This Row],[Quantite]],"") -> 2912 | Q66: =IFERROR(coustomerdata5[[#This Row],[Quantite]]*coustomerdata5[[#This Row],[Prix unitaire]]*(1-coustomerdata5[[#This Row],[Taux de reduction]]),"") -> 4396.414308 | R66: =DAY(coustomerdata5[[#This Row],[Date]]) -> 6 | S66: =TEXT(coustomerdata5[[#This Row],[Date]], "mmm") -> févr | T66: =TEXT(coustomerdata5[[#This Row],[Date]], "aaaa") -> 2024
E67: 2024-02-07 | F67: P045 | G67: 4 | H67: Grossiste | I67: Espèces | J67: 0 | K67: =IFERROR(VLOOKUP(coustomerdata5[[#This Row],[Index]],database[],2,0),"") -> Palette de fards | L67: =IFERROR(VLOOKUP(coustomerdata5[[#This Row],[Index]],database[],3,0),"") -> Maquillage | M67: =IFERROR(VLOOKUP(coustomerdata5[[#This Row],[Index]],database[],4,0),"") -> g | N67: =IFERROR(VLOOKUP(coustomerdata5[[#This Row],[Index]],database[],5,0),"") -> 1440 | O67: =IFERROR(VLOOKUP(coustomerdata5[[#This Row],[Index]],database[],6,0),"") -> 2194.270807 | P67: =IFERROR(coustomerdata5[[#This Row],[Cout unitaire]]*coustomerdata5[[#This Row],[Quantite]],"") -> 5760 | Q67: =IFERROR(coustomerdata5[[#This Row],[Quantite]]*coustomerdata5[[#This Row],[Prix unitaire]]*(1-coustomerdata5[[#This Row],[Taux de reduction]]),"") -> 8777.08323 | R67: =DAY(coustomerdata5[[#This Row],[Date]]) -> 7 | S67: =TEXT(coustomerdata5[[#This Row],[Date]], "mmm") -> févr | T67: =TEXT(coustomerdata5[[#This Row],[Date]], "aaaa") -> 2024
E68: 2024-02-08 | F68: P040 | G68: 8 | H68: Grossiste | I68: Espèces | J68: 0 | K68: =IFERROR(VLOOKUP(coustomerdata5[[#This Row],[Index]],database[],2,0),"") -> Shampoing sec | L68: =IFERROR(VLOOKUP(coustomerdata5[[#This Row],[Index]],database[],3,0),"") -> Soins Capillaires | M68: =IFERROR(VLOOKUP(coustomerdata5[[#This Row],[Index]],database[],4,0),"") -> mL | N68: =IFERROR(VLOOKUP(coustomerdata5[[#This Row],[Index]],database[],5,0),"") -> 1456 | O68: =IFERROR(VLOOKUP(coustomerdata5[[#This Row],[Index]],database[],6,0),"") -> 2300.505128 | P68: =IFERROR(coustomerdata5[[#This Row],[Cout unitaire]]*coustomerdata5[[#This Row],[Quantite]],"") -> 11648 | Q68: =IFERROR(coustomerdata5[[#This Row],[Quantite]]*coustomerdata5[[#This Row],[Prix unitaire]]*(1-coustomerdata5[[#This Row],[Taux de reduction]]),"") -> 18404.04103 | R68: =DAY(coustomerdata5[[#This Row],[Date]]) -> 8 | S68: =TEXT(coustomerdata5[[#This Row],[Date]], "mmm") -> févr | T68: =TEXT(coustomerdata5[[#This Row],[Date]], "aaaa") -> 2024
E69: 2024-02-09 | F69: P029 | G69: 7 | H69: Grossiste | I69: Carte | J69: 0 | K69: =IFERROR(VLOOKUP(coustomerdata5[[#This Row],[Index]],database[],2,0),"") -> Palette de fards | L69: =IFERROR(VLOOKUP(coustomerdata5[[#This Row],[Index]],database[],3,0),"") -> Maquillage | M69: =IFERROR(VLOOKUP(coustomerdata5[[#This Row],[Index]],database[],4,0),"") -> g | N69: =IFERROR(VLOOKUP(coustomerdata5[[#This Row],[Index]],database[],5,0),"") -> 1416 | O69: =IFERROR(VLOOKUP(coustomerdata5[[#This Row],[Index]],database[],6,0),"") -> 2304.641933 | P69: =IFERROR(coustomerdata5[[#This Row],[Cout unitaire]]*coustomerdata5[[#This Row],[Quantite]],"") -> 9912 | Q69: =IFERROR(coustomerdata5[[#This Row],[Quantite]]*coustomerdata5[[#This Row],[Prix unitaire]]*(1-coustomerdata5[[#This Row],[Taux de reduction]]),"") -> 16132.49353 | R69: =DAY(coustomerdata5[[#This Row],[Date]]) -> 9 | S69: =TEXT(coustomerdata5[[#This Row],[Date]], "mmm") -> févr | T69: =TEXT(coustomerdata5[[#This Row],[Date]], "aaaa") -> 2024
E70: 2024-02-10 | F70: P004 | G70: 9 | H70: Détail | I70: Mobile Money | J70: 0 | K70: =IFERROR(VLOOKUP(coustomerdata5[[#This Row],[Index]],database[],2,0),"") -> Spray thermo-protecteur | L70: =IFERROR(VLOOKUP(coustomerdata5[[#This Row],[Index]],database[],3,0),"") -> Soins Capillaires | M70: =IFERROR(VLOOKUP(coustomerdata5[[#This Row],[Index]],database[],4,0),"") -> mL | N70: =IFERROR(VLOOKUP(coustomerdata5[[#This Row],[Index]],database[],5,0),"") -> 1372 | O70: =IFERROR(VLOOKUP(coustomerdata5[[#This Row],[Index]],database[],6,0),"") -> 2121.59816 | P70: =IFERROR(coustomerdata5[[#This Row],[Cout unitaire]]*coustomerdata5[[#This Row],[Quantite]],"") -> 12348 | Q70: =IFERROR(coustomerdata5[[#This Row],[Quantite]]*coustomerdata5[[#This Row],[Prix unitaire]]*(1-coustomerdata5[[#This Row],[Taux de reduction]]),"") -> 19094.38344 | R70: =DAY(coustomerdata5[[#This Row],[Date]]) -> 10 | S70: =TEXT(coustomerdata5[[#This Row],[Date]], "mmm") -> févr | T70: =TEXT(coustomerdata5[[#This Row],[Date]], "aaaa") -> 2024
E71: 2024-02-11 | F71: P011 | G71: 8 | H71: Détail | I71: Mobile Money | J71: 0 | K71: =IFERROR(VLOOKUP(coustomerdata5[[#This Row],[Index]],database[],2,0),"") -> Eau micellaire | L71: =IFERROR(VLOOKUP(coustomerdata5[[#This Row],[Index]],database[],3,0),"") -> Soins du Visage | M71: =IFERROR(VLOOKUP(coustomerdata5[[#This Row],[Index]],database[],4,0),"") -> mL | N71: =IFERROR(VLOOKUP(coustomerdata5[[#This Row],[Index]],database[],5,0),"") -> 1489 | O71: =IFERROR(VLOOKUP(coustomerdata5[[#This Row],[Index]],database[],6,0),"") -> 2295.317797 | P71: =IFERROR(coustomerdata5[[#This Row],[Cout unitaire]]*coustomerdata5[[#This Row],[Quantite]],"") -> 11912 | Q71: =IFERROR(coustomerdata5[[#This Row],[Quantite]]*coustomerdata5[[#This Row],[Prix unitaire]]*(1-coustomerdata5[[#This Row],[Taux de reduction]]),"") -> 18362.54237 | R71: =DAY(coustomerdata5[[#This Row],[Date]]) -> 11 | S71: =TEXT(coustomerdata5[[#This Row],[Date]], "mmm") -> févr | T71: =TEXT(coustomerdata5[[#This Row],[Date]], "aaaa") -> 2024
E72: 2024-02-12 | F72: P038 | G72: 5 | H72: Détail | I72: Espèces | J72: 0 | K72: =IFERROR(VLOOKUP(coustomerdata5[[#This Row],[Index]],database[],2,0),"") -> Crème raffermissante | L72: =IFERROR(VLOOKUP(coustomerdata5[[#This Row],[Index]],database[],3,0),"") -> Soins du Corps | M72: =IFERROR(VLOOKUP(coustomerdata5[[#This Row],[Index]],database[],4,0),"") -> mL | N72: =IFERROR(VLOOKUP(coustomerdata5[[#This Row],[Index]],database[],5,0),"") -> 1307 | O72: =IFERROR(VLOOKUP(coustomerdata5[[#This Row],[Index]],database[],6,0),"") -> 2214.617178 | P72: =IFERROR(coustomerdata5[[#This Row],[Cout unitaire]]*coustomerdata5[[#This Row],[Quantite]],"") -> 6535 | Q72: =IFERROR(coustomerdata5[[#This Row],[Quantite]]*coustomerdata5[[#This Row],[Prix unitaire]]*(1-coustomerdata5[[#This Row],[Taux de reduction]]),"") -> 11073.08589 | R72: =DAY(coustomerdata5[[#This Row],[Date]]) -> 12 | S72: =TEXT(coustomerdata5[[#This Row],[Date]], "mmm") -> févr | T72: =TEXT(coustomerdata5[[#This Row],[Date]], "aaaa") -> 2024
E73: 2024-02-13 | F73: P043 | G73: 2 | H73: Détail | I73: Espèces | J73: 0 | K73: =IFERROR(VLOOKUP(coustomerdata5[[#This Row],[Index]],database[],2,0),"") -> Crayon à sourcils | L73: =IFERROR(VLOOKUP(coustomerdata5[[#This Row],[Index]],database[],3,0),"") -> Maquillage | M73: =IFERROR(VLOOKUP(coustomerdata5[[#This Row],[Index]],database[],4,0),"") -> g | N73: =IFERROR(VLOOKUP(coustomerdata5[[#This Row],[Index]],database[],5,0),"") -> 1440 | O73: =IFERROR(VLOOKUP(coustomerdata5[[#This Row],[Index]],database[],6,0),"") -> 2304.641933 | P73: =IFERROR(coustomerdata5[[#This Row],[Cout unitaire]]*coustomerdata5[[#This Row],[Quantite]],"") -> 2880 | Q73: =IFERROR(coustomerdata5[[#This Row],[Quantite]]*coustomerdata5[[#This Row],[Prix unitaire]]*(1-coustomerdata5[[#This Row],[Taux de reduction]]),"") -> 4609.283866 | R73: =DAY(coustomerdata5[[#This Row],[Date]]) -> 13 | S73: =TEXT(coustomerdata5[[#This Row],[Date]], "mmm") -> févr | T73: =TEXT(coustomerdata5[[#This Row],[Date]], "aaaa") -> 2024
E74: 2024-02-14 | F74: P017 | G74: 5 | H74: Grossiste | I74: Espèces | J74: 0 | K74: =IFERROR(VLOOKUP(coustomerdata5[[#This Row],[Index]],database[],2,0),"") -> Spray rafraîchissant | L74: =IFERROR(VLOOKUP(coustomerdata5[[#This Row],[Index]],database[],3,0),"") -> Soins du Corps | M74: =IFERROR(VLOOKUP(coustomerdata5[[#This Row],[Index]],database[],4,0),"") -> mL | N74: =IFERROR(VLOOKUP(coustomerdata5[[#This Row],[Index]],database[],5,0),"") -> 1440 | O74: =IFERROR(VLOOKUP(coustomerdata5[[#This Row],[Index]],database[],6,0),"") -> 2194.270807 | P74: =IFERROR(coustomerdata5[[#This Row],[Cout unitaire]]*coustomerdata5[[#This Row],[Quantite]],"") -> 7200 | Q74: =IFERROR(coustomerdata5[[#This Row],[Quantite]]*coustomerdata5[[#This Row],[Prix unitaire]]*(1-coustomerdata5[[#This Row],[Taux de reduction]]),"") -> 10971.35404 | R74: =DAY(coustomerdata5[[#This Row],[Date]]) -> 14 | S74: =TEXT(coustomerdata5[[#This Row],[Date]], "mmm") -> févr | T74: =TEXT(coustomerdata5[[#This Row],[Date]], "aaaa") -> 2024
E75: 2024-02-15 | F75: P006 | G75: 8 | H75: Grossiste | I75: Carte | J75: 0 | K75: =IFERROR(VLOOKUP(coustomerdata5[[#This Row],[Index]],database[],2,0),"") -> Déodorant naturel | L75: =IFERROR(VLOOKUP(coustomerdata5[[#This Row],[Index]],database[],3,0),"") -> Soins du Corps | M75: =IFERROR(VLOOKUP(coustomerdata5[[#This Row],[Index]],database[],4,0),"") -> mL | N75: =IFERROR(VLOOKUP(coustomerdata5[[#This Row],[Index]],database[],5,0),"") -> 1440 | O75: =IFERROR(VLOOKUP(coustomerdata5[[#This Row],[Index]],database[],6,0),"") -> 2318.392529 | P75: =IFERROR(coustomerdata5[[#This Row],[Cout unitaire]]*coustomerdata5[[#This Row],[Quantite]],"") -> 11520 | Q75: =IFERROR(coustomerdata5[[#This Row],[Quantite]]*coustomerdata5[[#This Row],[Prix unitaire]]*(1-coustomerdata5[[#This Row],[Taux de reduction]]),"") -> 18547.14023 | R75: =DAY(coustomerdata5[[#This Row],[Date]]) -> 15 | S75: =TEXT(coustomerdata5[[#This Row],[Date]], "mmm") -> févr | T75: =TEXT(coustomerdata5[[#This Row],[Date]], "aaaa") -> 2024
E76: 2024-02-16 | F76: P032 | G76: 9 | H76: Détail | I76: Mobile Money | J76: 0 | K76: =IFERROR(VLOOKUP(coustomerdata5[[#This Row],[Index]],database[],2,0),"") -> Fond de teint | L76: =IFERROR(VLOOKUP(coustomerdata5[[#This Row],[Index]],database[],3,0),"") -> Maquillage | M76: =IFERROR(VLOOKUP(coustomerdata5[[#This Row],[Index]],database[],4,0),"") -> mL | N76: =IFERROR(VLOOKUP(coustomerdata5[[#This Row],[Index]],database[],5,0),"") -> 1307 | O76: =IFERROR(VLOOKUP(coustomerdata5[[#This Row],[Index]],database[],6,0),"") -> 2121.59816 | P76: =IFERROR(coustomerdata5[[#This Row],[Cout unitaire]]*coustomerdata5[[#This Row],[Quantite]],"") -> 11763 | Q76: =IFERROR(coustomerdata5[[#This Row],[Quantite]]*coustomerdata5[[#This Row],[Prix unitaire]]*(1-coustomerdata5[[#This Row],[Taux de reduction]]),"") -> 19094.38344 | R76: =DAY(coustomerdata5[[#This Row],[Date]]) -> 16 | S76: =TEXT(coustomerdata5[[#This Row],[Date]], "mmm") -> févr | T76: =TEXT(coustomerdata5[[#This Row],[Date]], "aaaa") -> 2024
E77: 2024-02-17 | F77: P033 | G77: 9 | H77: Grossiste | I77: Carte | J77: 0 | K77: =IFERROR(VLOOKUP(coustomerdata5[[#This Row],[Index]],database[],2,0),"") -> Gommage exfoliant | L77: =IFERROR(VLOOKUP(coustomerdata5[[#This Row],[Index]],database[],3,0),"") -> Soins du Visage | M77: =IFERROR(VLOOKUP(coustomerdata5[[#This Row],[Index]],database[],4,0),"") -> g | N77: =IFERROR(VLOOKUP(coustomerdata5[[#This Row],[Index]],database[],5,0),"") -> 1456 | O77: =IFERROR(VLOOKUP(coustomerdata5[[#This Row],[Index]],database[],6,0),"") -> 2349.156481 | P77: =IFERROR(coustomerdata5[[#This Row],[Cout unitaire]]*coustomerdata5[[#This Row],[Quantite]],"") -> 13104 | Q77: =IFERROR(coustomerdata5[[#This Row],[Quantite]]*coustomerdata5[[#This Row],[Prix unitaire]]*(1-coustomerdata5[[#This Row],[Taux de reduction]]),"") -> 21142.40833 | R77: =DAY(coustomerdata5[[#This Row],[Date]]) -> 17 | S77: =TEXT(coustomerdata5[[#This Row],[Date]], "mmm") -> févr | T77: =TEXT(coustomerdata5[[#This Row],[Date]], "aaaa") -> 2024
E78: 2024-02-18 | F78: P016 | G78: 1 | H78: Grossiste | I78: Mobile Money | J78: 0 | K78: =IFERROR(VLOOKUP(coustomerdata5[[#This Row],[Index]],database[],2,0),"") -> BB crème | L78: =IFERROR(VLOOKUP(coustomerdata5[[#This Row],[Index]],database[],3,0),"") -> Soins du Visage | M78: =IFERROR(VLOOKUP(coustomerdata5[[#This Row],[Index]],database[],4,0),"") -> mL | N78: =IFERROR(VLOOKUP(coustomerdata5[[#This Row],[Index]],database[],5,0),"") -> 1307 | O78: =IFERROR(VLOOKUP(coustomerdata5[[#This Row],[Index]],database[],6,0),"") -> 2285.529633 | P78: =IFERROR(coustomerdata5[[#This Row],[Cout unitaire]]*coustomerdata5[[#This Row],[Quantite]],"") -> 1307 | Q78: =IFERROR(coustomerdata5[[#This Row],[Quantite]]*coustomerdata5[[#This Row],[Prix unitaire]]*(1-coustomerdata5[[#This Row],[Taux de reduction]]),"") -> 2285.529633 | R78: =DAY(coustomerdata5[[#This Row],[Date]]) -> 18 | S78: =TEXT(coustomerdata5[[#This Row],[Date]], "mmm") -> févr | T78: =TEXT(coustomerdata5[[#This Row],[Date]], "aaaa") -> 2024
E79: 2024-02-19 | F79: P039 | G79: 9 | H79: Détail | I79: Espèces | J79: 0 | K79: =IFERROR(VLOOKUP(coustomerdata5[[#This Row],[Index]],database[],2,0),"") -> Crème pour les mains | L79: =IFERROR(VLOOKUP(coustomerdata5[[#This Row],[Index]],database[],3,0),"") -> Soins du Corps | M79: =IFERROR(VLOOKUP(coustomerdata5[[#This Row],[Index]],database[],4,0),"") -> mL | N79: =IFERROR(VLOOKUP(coustomerdata5[[#This Row],[Index]],database[],5,0),"") -> 1440 | O79: =IFERROR(VLOOKUP(coustomerdata5[[#This Row],[Index]],database[],6,0),"") -> 2295.317797 | P79: =IFERROR(coustomerdata5[[#This Row],[Cout unitaire]]*coustomerdata5[[#This Row],[Quantite]],"") -> 12960 | Q79: =IFERROR(coustomerdata5[[#This Row],[Quantite]]*coustomerdata5[[#This Row],[Prix unitaire]]*(1-coustomerdata5[[#This Row],[Taux de reduction]]),"") -> 20657.86017 | R79: =DAY(coustomerdata5[[#This Row],[Date]]) -> 19 | S79: =TEXT(coustomerdata5[[#This Row],[Date]], "mmm") -> févr | T79: =TEXT(coustomerdata5[[#This Row],[Date]], "aaaa") -> 2024
E80: 2024-02-20 | F80: P032 | G80: 7 | H80: Grossiste | I80: Carte | J80: 0 | K80: =IFERROR(VLOOKUP(coustomerdata5[[#This Row],[Index]],database[],2,0),"") -> Fond de teint | L80: =IFERROR(VLOOKUP(coustomerdata5[[#This Row],[Index]],database[],3,0),"") -> Maquillage | M80: =IFERROR(VLOOKUP(coustomerdata5[[#This Row],[Index]],database[],4,0),"") -> mL | N80: =IFERROR(VLOOKUP(coustomerdata5[[#This Row],[Index]],database[],5,0),"") -> 1307 | O80: =IFERROR(VLOOKUP(coustomerdata5[[#This Row],[Index]],database[],6,0),"") -> 2121.59816 | P80: =IFERROR(coustomerdata5[[#This Row],[Cout unitaire]]*coustomerdata5[[#This Row],[Quantite]],"") -> 9149 | Q80: =IFERROR(coustomerdata5[[#This Row],[Quantite]]*coustomerdata5[[#This Row],[Prix unitaire]]*(1-coustomerdata5[[#This Row],[Taux de reduction]]),"") -> 14851.18712 | R80: =DAY(coustomerdata5[[#This Row],[Date]]) -> 20 | S80: =TEXT(coustomerdata5[[#This Row],[Date]], "mmm") -> févr | T80: =TEXT(coustomerdata5[[#This Row],[Date]], "aaaa") -> 2024
E81: 2024-02-21 | F81: P005 | G81: 9 | H81: Grossiste | I81: Carte | J81: 0 | K81: =IFERROR(VLOOKUP(coustomerdata5[[#This Row],[Index]],database[],2,0),"") -> Sérum anti-âge | L81: =IFERROR(VLOOKUP(coustomerdata5[[#This Row],[Index]],database[],3,0),"") -> Soins du Visage | M81: =IFERROR(VLOOKUP(coustomerdata5[[#This Row],[Index]],database[],4,0),"") -> mL | N81: =IFERROR(VLOOKUP(coustomerdata5[[#This Row],[Index]],database[],5,0),"") -> 1372 | O81: =IFERROR(VLOOKUP(coustomerdata5[[#This Row],[Index]],database[],6,0),"") -> 2349.156481 | P81: =IFERROR(coustomerdata5[[#This Row],[Cout unitaire]]*coustomerdata5[[#This Row],[Quantite]],"") -> 12348 | Q81: =IFERROR(coustomerdata5[[#This Row],[Quantite]]*coustomerdata5[[#This Row],[Prix unitaire]]*(1-coustomerdata5[[#This Row],[Taux de reduction]]),"") -> 21142.40833 | R81: =DAY(coustomerdata5[[#This Row],[Date]]) -> 21 | S81: =TEXT(coustomerdata5[[#This Row],[Date]], "mmm") -> févr | T81: =TEXT(coustomerdata5[[#This Row],[Date]], "aaaa") -> 2024
E82: 2024-02-22 | F82: P033 | G82: 8 | H82: Détail | I82: Espèces | J82: 0 | K82: =IFERROR(VLOOKUP(coustomerdata5[[#This Row],[Index]],database[],2,0),"") -> Gommage exfoliant | L82: =IFERROR(VLOOKUP(coustomerdata5[[#This Row],[Index]],database[],3,0),"") -> Soins du Visage | M82: =IFERROR(VLOOKUP(coustomerdata5[[#This Row],[Index]],database[],4,0),"") -> g | N82: =IFERROR(VLOOKUP(coustomerdata5[[#This Row],[Index]],database[],5,0),"") -> 1456 | O82: =IFERROR(VLOOKUP(coustomerdata5[[#This Row],[Index]],database[],6,0),"") -> 2349.156481 | P82: =IFERROR(coustomerdata5[[#This Row],[Cout unitaire]]*coustomerdata5[[#This Row],[Quantite]],"") -> 11648 | Q82: =IFERROR(coustomerdata5[[#This Row],[Quantite]]*coustomerdata5[[#This Row],[Prix unitaire]]*(1-coustomerdata5[[#This Row],[Taux de reduction]]),"") -> 18793.25185 | R82: =DAY(coustomerdata5[[#This Row],[Date]]) -> 22 | S82: =TEXT(coustomerdata5[[#This Row],[Date]], "mmm") -> févr | T82: =TEXT(coustomerdata5[[#This Row],[Date]], "aaaa") -> 2024
E83: 2024-02-23 | F83: P045 | G83: 1 | H83: Détail | I83: Carte | J83: 0 | K83: =IFERROR(VLOOKUP(coustomerdata5[[#This Row],[Index]],database[],2,0),"") -> Palette de fards | L83: =IFERROR(VLOOKUP(coustomerdata5[[#This Row],[Index]],database[],3,0),"") -> Maquillage | M83: =IFERROR(VLOOKUP(coustomerdata5[[#This Row],[Index]],database[],4,0),"") -> g | N83: =IFERROR(VLOOKUP(coustomerdata5[[#This Row],[Index]],database[],5,0),"") -> 1440 | O83: =IFERROR(VLOOKUP(coustomerdata5[[#This Row],[Index]],database[],6,0),"") -> 2194.270807 | P83: =IFERROR(coustomerdata5[[#This Row],[Cout unitaire]]*coustomerdata5[[#This Row],[Quantite]],"") -> 1440 | Q83: =IFERROR(coustomerdata5[[#This Row],[Quantite]]*coustomerdata5[[#This Row],[Prix unitaire]]*(1-coustomerdata5[[#This Row],[Taux de reduction]]),"") -> 2194.270807 | R83: =DAY(coustomerdata5[[#This Row],[Date]]) -> 23 | S83: =TEXT(coustomerdata5[[#This Row],[Date]], "mmm") -> févr | T83: =TEXT(coustomerdata5[[#This Row],[Date]], "aaaa") -> 2024
E84: 2024-02-24 | F84: P048 | G84: 8 | H84: Détail | I84: Carte | J84: 0 | K84: =IFERROR(VLOOKUP(coustomerdata5[[#This Row],[Index]],database[],2,0),"") -> Cire coiffante | L84: =IFERROR(VLOOKUP(coustomerdata5[[#This Row],[Index]],database[],3,0),"") -> Soins Capillaires | M84: =IFERROR(VLOOKUP(coustomerdata5[[#This Row],[Index]],database[],4,0),"") -> g | N84: =IFERROR(VLOOKUP(coustomerdata5[[#This Row],[Index]],database[],5,0),"") -> 1347 | O84: =IFERROR(VLOOKUP(coustomerdata5[[#This Row],[Index]],database[],6,0),"") -> 2318.392529 | P84: =IFERROR(coustomerdata5[[#This Row],[Cout unitaire]]*coustomerdata5[[#This Row],[Quantite]],"") -> 10776 | Q84: =IFERROR(coustomerdata5[[#This Row],[Quantite]]*coustomerdata5[[#This Row],[Prix unitaire]]*(1-coustomerdata5[[#This Row],[Taux de reduction]]),"") -> 18547.14023 | R84: =DAY(coustomerdata5[[#This Row],[Date]]) -> 24 | S84: =TEXT(coustomerdata5[[#This Row],[Date]], "mmm") -> févr | T84: =TEXT(coustomerdata5[[#This Row],[Date]], "aaaa") -> 2024
E85: 2024-02-25 | F85: P050 | G85: 8 | H85: Grossiste | I85: Mobile Money | J85: 0 | K85: =IFERROR(VLOOKUP(coustomerdata5[[#This Row],[Index]],database[],2,0),"") -> Poudre libre fixante | L85: =IFERROR(VLOOKUP(coustomerdata5[[#This Row],[Index]],database[],3,0),"") -> Maquillage | M85: =IFERROR(VLOOKUP(coustomerdata5[[#This Row],[Index]],database[],4,0),"") -> g | N85: =IFERROR(VLOOKUP(coustomerdata5[[#This Row],[Index]],database[],5,0),"") -> 1438 | O85: =IFERROR(VLOOKUP(coustomerdata5[[#This Row],[Index]],database[],6,0),"") -> 2290.019394 | P85: =IFERROR(coustomerdata5[[#This Row],[Cout unitaire]]*coustomerdata5[[#This Row],[Quantite]],"") -> 11504 | Q85: =IFERROR(coustomerdata5[[#This Row],[Quantite]]*coustomerdata5[[#This Row],[Prix unitaire]]*(1-coustomerdata5[[#This Row],[Taux de reduction]]),"") -> 18320.15515 | R85: =DAY(coustomerdata5[[#This Row],[Date]]) -> 25 | S85: =TEXT(coustomerdata5[[#This Row],[Date]], "mmm") -> févr | T85: =TEXT(coustomerdata5[[#This Row],[Date]], "aaaa") -> 2024
E86: 2024-03-01 | F86: P018 | G86: 3 | H86: Détail | I86: Carte | J86: 0 | K86: =IFERROR(VLOOKUP(coustomerdata5[[#This Row],[Index]],database[],2,0),"") -> Rouge à lèvres mat | L86: =IFERROR(VLOOKUP(coustomerdata5[[#This Row],[Index]],database[],3,0),"") -> Maquillage | M86: =IFERROR(VLOOKUP(coustomerdata5[[#This Row],[Index]],database[],4,0),"") -> g | N86: =IFERROR(VLOOKUP(coustomerdata5[[#This Row],[Index]],database[],5,0),"") -> 1372 | O86: =IFERROR(VLOOKUP(coustomerdata5[[#This Row],[Index]],database[],6,0),"") -> 2121.59816 | P86: =IFERROR(coustomerdata5[[#This Row],[Cout unitaire]]*coustomerdata5[[#This Row],[Quantite]],"") -> 4116 | Q86: =IFERROR(coustomerdata5[[#This Row],[Quantite]]*coustomerdata5[[#This Row],[Prix unitaire]]*(1-coustomerdata5[[#This Row],[Taux de reduction]]),"") -> 6364.794479 | R86: =DAY(coustomerdata5[[#This Row],[Date]]) -> 1 | S86: =TEXT(coustomerdata5[[#This Row],[Date]], "mmm") -> mars | T86: =TEXT(coustomerdata5[[#This Row],[Date]], "aaaa") -> 2024
E87: 2024-03-01 | F87: P007 | G87: 1 | H87: Grossiste | I87: Mobile Money | J87: 0 | K87: =IFERROR(VLOOKUP(coustomerdata5[[#This Row],[Index]],database[],2,0),"") -> Mousse volume | L87: =IFERROR(VLOOKUP(coustomerdata5[[#This Row],[Index]],database[],3,0),"") -> Soins Capillaires | M87: =IFERROR(VLOOKUP(coustomerdata5[[#This Row],[Index]],database[],4,0),"") -> mL | N87: =IFERROR(VLOOKUP(coustomerdata5[[#This Row],[Index]],database[],5,0),"") -> 1479 | O87: =IFERROR(VLOOKUP(coustomerdata5[[#This Row],[Index]],database[],6,0),"") -> 2313.735015 | P87: =IFERROR(coustomerdata5[[#This Row],[Cout unitaire]]*coustomerdata5[[#This Row],[Quantite]],"") -> 1479 | Q87: =IFERROR(coustomerdata5[[#This Row],[Quantite]]*coustomerdata5[[#This Row],[Prix unitaire]]*(1-coustomerdata5[[#This Row],[Taux de reduction]]),"") -> 2313.735015 | R87: =DAY(coustomerdata5[[#This Row],[Date]]) -> 1 | S87: =TEXT(coustomerdata5[[#This Row],[Date]], "mmm") -> mars | T87: =TEXT(coustomerdata5[[#This Row],[Date]], "aaaa") -> 2024
E88: 2024-03-01 | F88: P022 | G88: 8 | H88: Grossiste | I88: Mobile Money | J88: 0 | K88: =IFERROR(VLOOKUP(coustomerdata5[[#This Row],[Index]],database[],2,0),"") -> Masque capillaire | L88: =IFERROR(VLOOKUP(coustomerdata5[[#This Row],[Index]],database[],3,0),"") -> Soins Capillaires | M88: =IFERROR(VLOOKUP(coustomerdata5[[#This Row],[Index]],database[],4,0),"") -> mL | N88: =IFERROR(VLOOKUP(coustomerdata5[[#This Row],[Index]],database[],5,0),"") -> 1307 | O88: =IFERROR(VLOOKUP(coustomerdata5[[#This Row],[Index]],database[],6,0),"") -> 2290.019394 | P88: =IFERROR(coustomerdata5[[#This Row],[Cout unitaire]]*coustomerdata5[[#This Row],[Quantite]],"") -> 10456 | Q88: =IFERROR(coustomerdata5[[#This Row],[Quantite]]*coustomerdata5[[#This Row],[Prix unitaire]]*(1-coustomerdata5[[#This Row],[Taux de reduction]]),"") -> 18320.15515 | R88: =DAY(coustomerdata5[[#This Row],[Date]]) -> 1 | S88: =TEXT(coustomerdata5[[#This Row],[Date]], "mmm") -> mars | T88: =TEXT(coustomerdata5[[#This Row],[Date]], "aaaa") -> 2024
E89: 2024-03-01 | F89: P021 | G89: 3 | H89: Grossiste | I89: Espèces | J89: 0 | K89: =IFERROR(VLOOKUP(coustomerdata5[[#This Row],[Index]],database[],2,0),"") -> Huile nourrissante | L89: =IFERROR(VLOOKUP(coustomerdata5[[#This Row],[Index]],database[],3,0),"") -> Soins du Corps | M89: =IFERROR(VLOOKUP(coustomerdata5[[#This Row],[Index]],database[],4,0),"") -> mL | N89: =IFERROR(VLOOKUP(coustomerdata5[[#This Row],[Index]],database[],5,0),"") -> 1489 | O89: =IFERROR(VLOOKUP(coustomerdata5[[#This Row],[Index]],database[],6,0),"") -> 2313.735015 | P89: =IFERROR(coustomerdata5[[#This Row],[Cout unitaire]]*coustomerdata5[[#This Row],[Quantite]],"") -> 4467 | Q89: =IFERROR(coustomerdata5[[#This Row],[Quantite]]*coustomerdata5[[#This Row],[Prix unitaire]]*(1-coustomerdata5[[#This Row],[Taux de reduction]]),"") -> 6941.205045 | R89: =DAY(coustomerdata5[[#This Row],[Date]]) -> 1 | S89: =TEXT(coustomerdata5[[#This Row],[Date]], "mmm") -> mars | T89: =TEXT(coustomerdata5[[#This Row],[Date]], "aaaa") -> 2024
E90: 2024-03-02 | F90: P044 | G90: 3 | H90: Détail | I90: Espèces | J90: 0 | K90: =IFERROR(VLOOKUP(coustomerdata5[[#This Row],[Index]],database[],2,0),"") -> Spray thermo-protecteur | L90: =IFERROR(VLOOKUP(coustomerdata5[[#This Row],[Index]],database[],3,0),"") -> Soins Capillaires | M90: =IFERROR(VLOOKUP(coustomerdata5[[#This Row],[Index]],database[],4,0),"") -> mL | N90: =IFERROR(VLOOKUP(coustomerdata5[[#This Row],[Index]],database[],5,0),"") -> 1423 | O90: =IFERROR(VLOOKUP(coustomerdata5[[#This Row],[Index]],database[],6,0),"") -> 2285.529633 | P90: =IFERROR(coustomerdata5[[#This Row],[Cout unitaire]]*coustomerdata5[[#This Row],[Quantite]],"") -> 4269 | Q90: =IFERROR(coustomerdata5[[#This Row],[Quantite]]*coustomerdata5[[#This Row],[Prix unitaire]]*(1-coustomerdata5[[#This Row],[Taux de reduction]]),"") -> 6856.588898 | R90: =DAY(coustomerdata5[[#This Row],[Date]]) -> 2 | S90: =TEXT(coustomerdata5[[#This Row],[Date]], "mmm") -> mars | T90: =TEXT(coustomerdata5[[#This Row],[Date]], "aaaa") -> 2024
E91: 2024-03-03 | F91: P018 | G91: 1 | H91: Détail | I91: Carte | J91: 0 | K91: =IFERROR(VLOOKUP(coustomerdata5[[#This Row],[Index]],database[],2,0),"") -> Rouge à lèvres mat | L91: =IFERROR(VLOOKUP(coustomerdata5[[#This Row],[Index]],database[],3,0),"") -> Maquillage | M91: =IFERROR(VLOOKUP(coustomerdata5[[#This Row],[Index]],database[],4,0),"") -> g | N91: =IFERROR(VLOOKUP(coustomerdata5[[#This Row],[Index]],database[],5,0),"") -> 1372 | O91: =IFERROR(VLOOKUP(coustomerdata5[[#This Row],[Index]],database[],6,0),"") -> 2121.59816 | P91: =IFERROR(coustomerdata5[[#This Row],[Cout unitaire]]*coustomerdata5[[#This Row],[Quantite]],"") -> 1372 | Q91: =IFERROR(coustomerdata5[[#This Row],[Quantite]]*coustomerdata5[[#This Row],[Prix unitaire]]*(1-coustomerdata5[[#This Row],[Taux de reduction]]),"") -> 2121.59816 | R91: =DAY(coustomerdata5[[#This Row],[Date]]) -> 3 | S91: =TEXT(coustomerdata5[[#This Row],[Date]], "mmm") -> mars | T91: =TEXT(coustomerdata5[[#This Row],[Date]], "aaaa") -> 2024
E92: 2024-03-04 | F92: P018 | G92: 5 | H92: Grossiste | I92: Espèces | J92: 0 | K92: =IFERROR(VLOOKUP(coustomerdata5[[#This Row],[Index]],database[],2,0),"") -> Rouge à lèvres mat | L92: =IFERROR(VLOOKUP(coustomerdata5[[#This Row],[Index]],database[],3,0),"") -> Maquillage | M92: =IFERROR(VLOOKUP(coustomerdata5[[#This Row],[Index]],database[],4,0),"") -> g | N92: =IFERROR(VLOOKUP(coustomerdata5[[#This Row],[Index]],database[],5,0),"") -> 1372 | O92: =IFERROR(VLOOKUP(coustomerdata5[[#This Row],[Index]],database[],6,0),"") -> 2121.59816 | P92: =IFERROR(coustomerdata5[[#This Row],[Cout unitaire]]*coustomerdata5[[#This Row],[Quantite]],"") -> 6860 | Q92: =IFERROR(coustomerdata5[[#This Row],[Quantite]]*coustomerdata5[[#This Row],[Prix unitaire]]*(1-coustomerdata5[[#This Row],[Taux de reduction]]),"") -> 10607.9908 | R92: =DAY(coustomerdata5[[#This Row],[Date]]) -> 4 | S92: =TEXT(coustomerdata5[[#This Row],[Date]], "mmm") -> mars | T92: =TEXT(coustomerdata5[[#This Row],[Date]], "aaaa") -> 2024
E93: 2024-03-05 | F93: P025 | G93: 7 | H93: Détail | I93: Carte | J93: 0 | K93: =IFERROR(VLOOKUP(coustomerdata5[[#This Row],[Index]],database[],2,0),"") -> Cire coiffante | L93: =IFERROR(VLOOKUP(coustomerdata5[[#This Row],[Index]],database[],3,0),"") -> Soins Capillaires | M93: =IFERROR(VLOOKUP(coustomerdata5[[#This Row],[Index]],database[],4,0),"") -> g | N93: =IFERROR(VLOOKUP(coustomerdata5[[#This Row],[Index]],database[],5,0),"") -> 1440 | O93: =IFERROR(VLOOKUP(coustomerdata5[[#This Row],[Index]],database[],6,0),"") -> 2295.317797 | P93: =IFERROR(coustomerdata5[[#This Row],[Cout unitaire]]*coustomerdata5[[#This Row],[Quantite]],"") -> 10080 | Q93: =IFERROR(coustomerdata5[[#This Row],[Quantite]]*coustomerdata5[[#This Row],[Prix unitaire]]*(1-coustomerdata5[[#This Row],[Taux de reduction]]),"") -> 16067.22458 | R93: =DAY(coustomerdata5[[#This Row],[Date]]) -> 5 | S93: =TEXT(coustomerdata5[[#This Row],[Date]], "mmm") -> mars | T93: =TEXT(coustomerdata5[[#This Row],[Date]], "aaaa") -> 2024
E94: 2024-03-06 | F94: P021 | G94: 9 | H94: Grossiste | I94: Espèces | J94: 0 | K94: =IFERROR(VLOOKUP(coustomerdata5[[#This Row],[Index]],database[],2,0),"") -> Huile nourrissante | L94: =IFERROR(VLOOKUP(coustomerdata5[[#This Row],[Index]],database[],3,0),"") -> Soins du Corps | M94: =IFERROR(VLOOKUP(coustomerdata5[[#This Row],[Index]],database[],4,0),"") -> mL | N94: =IFERROR(VLOOKUP(coustomerdata5[[#This Row],[Index]],database[],5,0),"") -> 1489 | O94: =IFERROR(VLOOKUP(coustomerdata5[[#This Row],[Index]],database[],6,0),"") -> 2313.735015 | P94: =IFERROR(coustomerdata5[[#This Row],[Cout unitaire]]*coustomerdata5[[#This Row],[Quantite]],"") -> 13401 | Q94: =IFERROR(coustomerdata5[[#This Row],[Quantite]]*coustomerdata5[[#This Row],[Prix unitaire]]*(1-coustomerdata5[[#This Row],[Taux de reduction]]),"") -> 20823.61514 | R94: =DAY(coustomerdata5[[#This Row],[Date]]) -> 6 | S94: =TEXT(coustomerdata5[[#This Row],[Date]], "mmm") -> mars | T94: =TEXT(coustomerdata5[[#This Row],[Date]], "aaaa") -> 2024
E95: 2024-03-07 | F95: P021 | G95: 7 | H95: Grossiste | I95: Mobile Money | J95: 0 | K95: =IFERROR(VLOOKUP(coustomerdata5[[#This Row],[Index]],database[],2,0),"") -> Huile nourrissante | L95: =IFERROR(VLOOKUP(coustomerdata5[[#This Row],[Index]],database[],3,0),"") -> Soins du Corps | M95: =IFERROR(VLOOKUP(coustomerdata5[[#This Row],[Index]],database[],4,0),"") -> mL | N95: =IFERROR(VLOOKUP(coustomerdata5[[#This Row],[Index]],database[],5,0),"") -> 1489 | O95: =IFERROR(VLOOKUP(coustomerdata5[[#This Row],[Index]],database[],6,0),"") -> 2313.735015 | P95: =IFERROR(coustomerdata5[[#This Row],[Cout unitaire]]*coustomerdata5[[#This Row],[Quantite]],"") -> 10423 | Q95: =IFERROR(coustomerdata5[[#This Row],[Quantite]]*coustomerdata5[[#This Row],[Prix unitaire]]*(1-coustomerdata5[[#This Row],[Taux de reduction]]),"") -> 16196.14511 | R95: =DAY(coustomerdata5[[#This Row],[Date]]) -> 7 | S95: =TEXT(coustomerdata5[[#This Row],[Date]], "mmm") -> mars | T95: =TEXT(coustomerdata5[[#This Row],[Date]], "aaaa") -> 2024
E96: 2024-03-08 | F96: P008 | G96: 9 | H96: Détail | I96: Mobile Money | J96: 0 | K96: =IFERROR(VLOOKUP(coustomerdata5[[#This Row],[Index]],database[],2,0),"") -> Lotion tonique | L96: =IFERROR(VLOOKUP(coustomerdata5[[#This Row],[Index]],database[],3,0),"") -> Soins du Visage | M96: =IFERROR(VLOOKUP(coustomerdata5[[#This Row],[Index]],database[],4,0),"") -> mL | N96: =IFERROR(VLOOKUP(coustomerdata5[[#This Row],[Index]],database[],5,0),"") -> 1489 | O96: =IFERROR(VLOOKUP(coustomerdata5[[#This Row],[Index]],database[],6,0),"") -> 2290.019394 | P96: =IFERROR(coustomerdata5[[#This Row],[Cout unitaire]]*coustomerdata5[[#This Row],[Quantite]],"") -> 13401 | Q96: =IFERROR(coustomerdata5[[#This Row],[Quantite]]*coustomerdata5[[#This Row],[Prix unitaire]]*(1-coustomerdata5[[#This Row],[Taux de reduction]]),"") -> 20610.17455 | R96: =DAY(coustomerdata5[[#This Row],[Date]]) -> 8 | S96: =TEXT(coustomerdata5[[#This Row],[Date]], "mmm") -> mars | T96: =TEXT(coustomerdata5[[#This Row],[Date]], "aaaa") -> 2024
E97: 2024-03-09 | F97: P011 | G97: 8 | H97: Grossiste | I97: Espèces | J97: 0 | K97: =IFERROR(VLOOKUP(coustomerdata5[[#This Row],[Index]],database[],2,0),"") -> Eau micellaire | L97: =IFERROR(VLOOKUP(coustomerdata5[[#This Row],[Index]],database[],3,0),"") -> Soins du Visage | M97: =IFERROR(VLOOKUP(coustomerdata5[[#This Row],[Index]],database[],4,0),"") -> mL | N97: =IFERROR(VLOOKUP(coustomerdata5[[#This Row],[Index]],database[],5,0),"") -> 1489 | O97: =IFERROR(VLOOKUP(coustomerdata5[[#This Row],[Index]],database[],6,0),"") -> 2295.317797 | P97: =IFERROR(coustomerdata5[[#This Row],[Cout unitaire]]*coustomerdata5[[#This Row],[Quantite]],"") -> 11912 | Q97: =IFERROR(coustomerdata5[[#This Row],[Quantite]]*coustomerdata5[[#This Row],[Prix unitaire]]*(1-coustomerdata5[[#This Row],[Taux de reduction]]),"") -> 18362.54237 | R97: =DAY(coustomerdata5[[#This Row],[Date]]) -> 9 | S97: =TEXT(coustomerdata5[[#This Row],[Date]], "mmm") -> mars | T97: =TEXT(coustomerdata5[[#This Row],[Date]], "aaaa") -> 2024
E98: 2024-03-10 | F98: P041 | G98: 2 | H98: Grossiste | I98: Espèces | J98: 0 | K98: =IFERROR(VLOOKUP(coustomerdata5[[#This Row],[Index]],database[],2,0),"") -> Gel douche hydratant | L98: =IFERROR(VLOOKUP(coustomerdata5[[#This Row],[Index]],database[],3,0),"") -> Soins du Corps | M98: =IFERROR(VLOOKUP(coustomerdata5[[#This Row],[Index]],database[],4,0),"") -> mL | N98: =IFERROR(VLOOKUP(coustomerdata5[[#This Row],[Index]],database[],5,0),"") -> 1456 | O98: =IFERROR(VLOOKUP(coustomerdata5[[#This Row],[Index]],database[],6,0),"") -> 2198.207154 | P98: =IFERROR(coustomerdata5[[#This Row],[Cout unitaire]]*coustomerdata5[[#This Row],[Quantite]],"") -> 2912 | Q98: =IFERROR(coustomerdata5[[#This Row],[Quantite]]*coustomerdata5[[#This Row],[Prix unitaire]]*(1-coustomerdata5[[#This Row],[Taux de reduction]]),"") -> 4396.414308 | R98: =DAY(coustomerdata5[[#This Row],[Date]]) -> 10 | S98: =TEXT(coustomerdata5[[#This Row],[Date]], "mmm") -> mars | T98: =TEXT(coustomerdata5[[#This Row],[Date]], "aaaa") -> 2024
E99: 2024-03-11 | F99: P039 | G99: 1 | H99: Grossiste | I99: Carte | J99: 0 | K99: =IFERROR(VLOOKUP(coustomerdata5[[#This Row],[Index]],database[],2,0),"") -> Crème pour les mains | L99: =IFERROR(VLOOKUP(coustomerdata5[[#This Row],[Index]],database[],3,0),"") -> Soins du Corps | M99: =IFERROR(VLOOKUP(coustomerdata5[[#This Row],[Index]],database[],4,0),"") -> mL | N99: =IFERROR(VLOOKUP(coustomerdata5[[#This Row],[Index]],database[],5,0),"") -> 1440 | O99: =IFERROR(VLOOKUP(coustomerdata5[[#This Row],[Index]],database[],6,0),"") -> 2295.317797 | P99: =IFERROR(coustomerdata5[[#This Row],[Cout unitaire]]*coustomerdata5[[#This Row],[Quantite]],"") -> 1440 | Q99: =IFERROR(coustomerdata5[[#This Row],[Quantite]]*coustomerdata5[[#This Row],[Prix unitaire]]*(1-coustomerdata5[[#This Row],[Taux de reduction]]),"") -> 2295.317797 | R99: =DAY(coustomerdata5[[#This Row],[Date]]) -> 11 | S99: =TEXT(coustomerdata5[[#This Row],[Date]], "mmm") -> mars | T99: =TEXT(coustomerdata5[[#This Row],[Date]], "aaaa") -> 2024
E100: 2024-03-12 | F100: P014 | G100: 7 | H100: Détail | I100: Mobile Money | J100: 0 | K100: =IFERROR(VLOOKUP(coustomerdata5[[#This Row],[Index]],database[],2,0),"") -> Crème coiffante | L100: =IFERROR(VLOOKUP(coustomerdata5[[#This Row],[Index]],database[],3,0),"") -> Soins Capillaires | M100: =IFERROR(VLOOKUP(coustomerdata5[[#This Row],[Index]],database[],4,0),"") -> mL | N100: =IFERROR(VLOOKUP(coustomerdata5[[#This Row],[Index]],database[],5,0),"") -> 1479 | O100: =IFERROR(VLOOKUP(coustomerdata5[[#This Row],[Index]],database[],6,0),"") -> 2409.547712 | P100: =IFERROR(coustomerdata5[[#This Row],[Cout unitaire]]*coustomerdata5[[#This Row],[Quantite]],"") -> 10353 | Q100: =IFERROR(coustomerdata5[[#This Row],[Quantite]]*coustomerdata5[[#This Row],[Prix unitaire]]*(1-coustomerdata5[[#This Row],[Taux de reduction]]),"") -> 16866.83399 | R100: =DAY(coustomerdata5[[#This Row],[Date]]) -> 12 | S100: =TEXT(coustomerdata5[[#This Row],[Date]], "mmm") -> mars | T100: =TEXT(coustomerdata5[[#This Row],[Date]], "aaaa") -> 2024
E101: 2024-03-13 | F101: P018 | G101: 7 | H101: Détail | I101: Mobile Money | J101: 0 | K101: =IFERROR(VLOOKUP(coustomerdata5[[#This Row],[Index]],database[],2,0),"") -> Rouge à lèvres mat | L101: =IFERROR(VLOOKUP(coustomerdata5[[#This Row],[Index]],database[],3,0),"") -> Maquillage | M101: =IFERROR(VLOOKUP(coustomerdata5[[#This Row],[Index]],database[],4,0),"") -> g | N101: =IFERROR(VLOOKUP(coustomerdata5[[#This Row],[Index]],database[],5,0),"") -> 1372 | O101: =IFERROR(VLOOKUP(coustomerdata5[[#This Row],[Index]],database[],6,0),"") -> 2121.59816 | P101: =IFERROR(coustomerdata5[[#This Row],[Cout unitaire]]*coustomerdata5[[#This Row],[Quantite]],"") -> 9604 | Q101: =IFERROR(coustomerdata5[[#This Row],[Quantite]]*coustomerdata5[[#This Row],[Prix unitaire]]*(1-coustomerdata5[[#This Row],[Taux de reduction]]),"") -> 14851.18712 | R101: =DAY(coustomerdata5[[#This Row],[Date]]) -> 13 | S101: =TEXT(coustomerdata5[[#This Row],[Date]], "mmm") -> mars | T101: =TEXT(coustomerdata5[[#This Row],[Date]], "aaaa") -> 2024
E102: 2024-03-14 | F102: P023 | G102: 8 | H102: Détail | I102: Espèces | J102: 0 | K102: =IFERROR(VLOOKUP(coustomerdata5[[#This Row],[Index]],database[],2,0),"") -> Masque purifiant | L102: =IFERROR(VLOOKUP(coustomerdata5[[#This Row],[Index]],database[],3,0),"") -> Soins du Visage | M102: =IFERROR(VLOOKUP(coustomerdata5[[#This Row],[Index]],database[],4,0),"") -> g | N102: =IFERROR(VLOOKUP(coustomerdata5[[#This Row],[Index]],database[],5,0),"") -> 1457 | O102: =IFERROR(VLOOKUP(coustomerdata5[[#This Row],[Index]],database[],6,0),"") -> 2171.294262 | P102: =IFERROR(coustomerdata5[[#This Row],[Cout unitaire]]*coustomerdata5[[#This Row],[Quantite]],"") -> 11656 | Q102: =IFERROR(coustomerdata5[[#This Row],[Quantite]]*coustomerdata5[[#This Row],[Prix unitaire]]*(1-coustomerdata5[[#This Row],[Taux de reduction]]),"") -> 17370.3541 | R102: =DAY(coustomerdata5[[#This Row],[Date]]) -> 14 | S102: =TEXT(coustomerdata5[[#This Row],[Date]], "mmm") -> mars | T102: =TEXT(coustomerdata5[[#This Row],[Date]], "aaaa") -> 2024
E103: 2024-03-15 | F103: P050 | G103: 5 | H103: Détail | I103: Espèces | J103: 0 | K103: =IFERROR(VLOOKUP(coustomerdata5[[#This Row],[Index]],database[],2,0),"") -> Poudre libre fixante | L103: =IFERROR(VLOOKUP(coustomerdata5[[#This Row],[Index]],database[],3,0),"") -> Maquillage | M103: =IFERROR(VLOOKUP(coustomerdata5[[#This Row],[Index]],database[],4,0),"") -> g | N103: =IFERROR(VLOOKUP(coustomerdata5[[#This Row],[Index]],database[],5,0),"") -> 1438 | O103: =IFERROR(VLOOKUP(coustomerdata5[[#This Row],[Index]],database[],6,0),"") -> 2290.019394 | P103: =IFERROR(coustomerdata5[[#This Row],[Cout unitaire]]*coustomerdata5[[#This Row],[Quantite]],"") -> 7190 | Q103: =IFERROR(coustomerdata5[[#This Row],[Quantite]]*coustomerdata5[[#This Row],[Prix unitaire]]*(1-coustomerdata5[[#This Row],[Taux de reduction]]),"") -> 11450.09697 | R103: =DAY(coustomerdata5[[#This Row],[Date]]) -> 15 | S103: =TEXT(coustomerdata5[[#This Row],[Date]], "mmm") -> mars | T103: =TEXT(coustomerdata5[[#This Row],[Date]], "aaaa") -> 2024
E104: 2024-03-16 | F104: P042 | G104: 3 | H104: Grossiste | I104: Espèces | J104: 0 | K104: =IFERROR(VLOOKUP(coustomerdata5[[#This Row],[Index]],database[],2,0),"") -> Crème hydratante | L104: =IFERROR(VLOOKUP(coustomerdata5[[#This Row],[Index]],database[],3,0),"") -> Soins du Visage | M104: =IFERROR(VLOOKUP(coustomerdata5[[#This Row],[Index]],database[],4,0),"") -> mL | N104: =IFERROR(VLOOKUP(coustomerdata5[[#This Row],[Index]],database[],5,0),"") -> 1448 | O104: =IFERROR(VLOOKUP(coustomerdata5[[#This Row],[Index]],database[],6,0),"") -> 2409.547712 | P104: =IFERROR(coustomerdata5[[#This Row],[Cout unitaire]]*coustomerdata5[[#This Row],[Quantite]],"") -> 4344 | Q104: =IFERROR(coustomerdata5[[#This Row],[Quantite]]*coustomerdata5[[#This Row],[Prix unitaire]]*(1-coustomerdata5[[#This Row],[Taux de reduction]]),"") -> 7228.643137 | R104: =DAY(coustomerdata5[[#This Row],[Date]]) -> 16 | S104: =TEXT(coustomerdata5[[#This Row],[Date]], "mmm") -> mars | T104: =TEXT(coustomerdata5[[#This Row],[Date]], "aaaa") -> 2024
E105: 2024-03-17 | F105: P002 | G105: 8 | H105: Grossiste | I105: Carte | J105: 0 | K105: =IFERROR(VLOOKUP(coustomerdata5[[#This Row],[Index]],database[],2,0),"") -> Eye-liner waterproof | L105: =IFERROR(VLOOKUP(coustomerdata5[[#This Row],[Index]],database[],3,0),"") -> Maquillage | M105: =IFERROR(VLOOKUP(coustomerdata5[[#This Row],[Index]],database[],4,0),"") -> mL | N105: =IFERROR(VLOOKUP(coustomerdata5[[#This Row],[Index]],database[],5,0),"") -> 1489 | O105: =IFERROR(VLOOKUP(coustomerdata5[[#This Row],[Index]],database[],6,0),"") -> 2285.529633 | P105: =IFERROR(coustomerdata5[[#This Row],[Cout unitaire]]*coustomerdata5[[#This Row],[Quantite]],"") -> 11912 | Q105: =IFERROR(coustomerdata5[[#This Row],[Quantite]]*coustomerdata5[[#This Row],[Prix unitaire]]*(1-coustomerdata5[[#This Row],[Taux de reduction]]),"") -> 18284.23706 | R105: =DAY(coustomerdata5[[#This Row],[Date]]) -> 17 | S105: =TEXT(coustomerdata5[[#This Row],[Date]], "mmm") -> mars | T105: =TEXT(coustomerdata5[[#This Row],[Date]], "aaaa") -> 2024
E106: 2024-03-18 | F106: P001 | G106: 6 | H106: Détail | I106: Mobile Money | J106: 0 | K106: =IFERROR(VLOOKUP(coustomerdata5[[#This Row],[Index]],database[],2,0),"") -> Crème pour les pieds | L106: =IFERROR(VLOOKUP(coustomerdata5[[#This Row],[Index]],database[],3,0),"") -> Soins du Corps | M106: =IFERROR(VLOOKUP(coustomerdata5[[#This Row],[Index]],database[],4,0),"") -> mL | N106: =IFERROR(VLOOKUP(coustomerdata5[[#This Row],[Index]],database[],5,0),"") -> 1479 | O106: =IFERROR(VLOOKUP(coustomerdata5[[#This Row],[Index]],database[],6,0),"") -> 2304.641933 | P106: =IFERROR(coustomerdata5[[#This Row],[Cout unitaire]]*coustomerdata5[[#This Row],[Quantite]],"") -> 8874 | Q106: =IFERROR(coustomerdata5[[#This Row],[Quantite]]*coustomerdata5[[#This Row],[Prix unitaire]]*(1-coustomerdata5[[#This Row],[Taux de reduction]]),"") -> 13827.8516 | R106: =DAY(coustomerdata5[[#This Row],[Date]]) -> 18 | S106: =TEXT(coustomerdata5[[#This Row],[Date]], "mmm") -> mars | T106: =TEXT(coustomerdata5[[#This Row],[Date]], "aaaa") -> 2024
E107: 2024-03-19 | F107: P003 | G107: 3 | H107: Grossiste | I107: Carte | J107: 0 | K107: =IFERROR(VLOOKUP(coustomerdata5[[#This Row],[Index]],database[],2,0),"") -> Contour des yeux | L107: =IFERROR(VLOOKUP(coustomerdata5[[#This Row],[Index]],database[],3,0),"") -> Soins du Visage | M107: =IFERROR(VLOOKUP(coustomerdata5[[#This Row],[Index]],database[],4,0),"") -> mL | N107: =IFERROR(VLOOKUP(coustomerdata5[[#This Row],[Index]],database[],5,0),"") -> 1416 | O107: =IFERROR(VLOOKUP(coustomerdata5[[#This Row],[Index]],database[],6,0),"") -> 2194.270807 | P107: =IFERROR(coustomerdata5[[#This Row],[Cout unitaire]]*coustomerdata5[[#This Row],[Quantite]],"") -> 4248 | Q107: =IFERROR(coustomerdata5[[#This Row],[Quantite]]*coustomerdata5[[#This Row],[Prix unitaire]]*(1-coustomerdata5[[#This Row],[Taux de reduction]]),"") -> 6582.812422 | R107: =DAY(coustomerdata5[[#This Row],[Date]]) -> 19 | S107: =TEXT(coustomerdata5[[#This Row],[Date]], "mmm") -> mars | T107: =TEXT(coustomerdata5[[#This Row],[Date]], "aaaa") -> 2024
E108: 2024-03-20 | F108: P010 | G108: 1 | H108: Grossiste | I108: Mobile Money | J108: 0 | K108: =IFERROR(VLOOKUP(coustomerdata5[[#This Row],[Index]],database[],2,0),"") -> Base de maquillage | L108: =IFERROR(VLOOKUP(coustomerdata5[[#This Row],[Index]],database[],3,0),"") -> Maquillage | M108: =IFERROR(VLOOKUP(coustomerdata5[[#This Row],[Index]],database[],4,0),"") -> mL | N108: =IFERROR(VLOOKUP(coustomerdata5[[#This Row],[Index]],database[],5,0),"") -> 1479 | O108: =IFERROR(VLOOKUP(coustomerdata5[[#This Row],[Index]],database[],6,0),"") -> 2214.617178 | P108: =IFERROR(coustomerdata5[[#This Row],[Cout unitaire]]*coustomerdata5[[#This Row],[Quantite]],"") -> 1479 | Q108: =IFERROR(coustomerdata5[[#This Row],[Quantite]]*coustomerdata5[[#This Row],[Prix unitaire]]*(1-coustomerdata5[[#This Row],[Taux de reduction]]),"") -> 2214.617178 | R108: =DAY(coustomerdata5[[#This Row],[Date]]) -> 20 | S108: =TEXT(coustomerdata5[[#This Row],[Date]], "mmm") -> mars | T108: =TEXT(coustomerdata5[[#This Row],[Date]], "aaaa") -> 2024
E109: 2024-03-21 | F109: P038 | G109: 3 | H109: Détail | I109: Espèces | J109: 0 | K109: =IFERROR(VLOOKUP(coustomerdata5[[#This Row],[Index]],database[],2,0),"") -> Crème raffermissante | L109: =IFERROR(VLOOKUP(coustomerdata5[[#This Row],[Index]],database[],3,0),"") -> Soins du Corps | M109: =IFERROR(VLOOKUP(coustomerdata5[[#This Row],[Index]],database[],4,0),"") -> mL | N109: =IFERROR(VLOOKUP(coustomerdata5[[#This Row],[Index]],database[],5,0),"") -> 1307 | O109: =IFERROR(VLOOKUP(coustomerdata5[[#This Row],[Index]],database[],6,0),"") -> 2214.617178 | P109: =IFERROR(coustomerdata5[[#This Row],[Cout unitaire]]*coustomerdata5[[#This Row],[Quantite]],"") -> 3921 | Q109: =IFERROR(coustomerdata5[[#This Row],[Quantite]]*coustomerdata5[[#This Row],[Prix unitaire]]*(1-coustomerdata5[[#This Row],[Taux de reduction]]),"") -> 6643.851534 | R109: =DAY(coustomerdata5[[#This Row],[Date]]) -> 21 | S109: =TEXT(coustomerdata5[[#This Row],[Date]], "mmm") -> mars | T109: =TEXT(coustomerdata5[[#This Row],[Date]], "aaaa") -> 2024
E110: 2024-03-22 | F110: P011 | G110: 5 | H110: Grossiste | I110: Carte | J110: 0 | K110: =IFERROR(VLOOKUP(coustomerdata5[[#This Row],[Index]],database[],2,0),"") -> Eau micellaire | L110: =IFERROR(VLOOKUP(coustomerdata5[[#This Row],[Index]],database[],3,0),"") -> Soins du Visage | M110: =IFERROR(VLOOKUP(coustomerdata5[[#This Row],[Index]],database[],4,0),"") -> mL | N110: =IFERROR(VLOOKUP(coustomerdata5[[#This Row],[Index]],database[],5,0),"") -> 1489 | O110: =IFERROR(VLOOKUP(coustomerdata5[[#This Row],[Index]],database[],6,0),"") -> 2295.317797 | P110: =IFERROR(coustomerdata5[[#This Row],[Cout unitaire]]*coustomerdata5[[#This Row],[Quantite]],"") -> 7445 | Q110: =IFERROR(coustomerdata5[[#This Row],[Quantite]]*coustomerdata5[[#This Row],[Prix unitaire]]*(1-coustomerdata5[[#This Row],[Taux de reduction]]),"") -> 11476.58898 | R110: =DAY(coustomerdata5[[#This Row],[Date]]) -> 22 | S110: =TEXT(coustomerdata5[[#This Row],[Date]], "mmm") -> mars | T110: =TEXT(coustomerdata5[[#This Row],[Date]], "aaaa") -> 2024
E111: 2024-03-23 | F111: P040 | G111: 3 | H111: Grossiste | I111: Carte | J111: 0 | K111: =IFERROR(VLOOKUP(coustomerdata5[[#This Row],[Index]],database[],2,0),"") -> Shampoing sec | L111: =IFERROR(VLOOKUP(coustomerdata5[[#This Row],[Index]],database[],3,0),"") -> Soins Capillaires | M111: =IFERROR(VLOOKUP(coustomerdata5[[#This Row],[Index]],database[],4,0),"") -> mL | N111: =IFERROR(VLOOKUP(coustomerdata5[[#This Row],[Index]],database[],5,0),"") -> 1456 | O111: =IFERROR(VLOOKUP(coustomerdata5[[#This Row],[Index]],database[],6,0),"") -> 2300.505128 | P111: =IFERROR(coustomerdata5[[#This Row],[Cout unitaire]]*coustomerdata5[[#This Row],[Quantite]],"") -> 4368 | Q111: =IFERROR(coustomerdata5[[#This Row],[Quantite]]*coustomerdata5[[#This Row],[Prix unitaire]]*(1-coustomerdata5[[#This Row],[Taux de reduction]]),"") -> 6901.515385 | R111: =DAY(coustomerdata5[[#This Row],[Date]]) -> 23 | S111: =TEXT(coustomerdata5[[#This Row],[Date]], "mmm") -> mars | T111: =TEXT(coustomerdata5[[#This Row],[Date]], "aaaa") -> 2024
E112: 2024-03-24 | F112: P034 | G112: 1 | H112: Détail | I112: Espèces | J112: 0 | K112: =IFERROR(VLOOKUP(coustomerdata5[[#This Row],[Index]],database[],2,0),"") -> Blush rosé | L112: =IFERROR(VLOOKUP(coustomerdata5[[#This Row],[Index]],database[],3,0),"") -> Maquillage | M112: =IFERROR(VLOOKUP(coustomerdata5[[#This Row],[Index]],database[],4,0),"") -> g | N112: =IFERROR(VLOOKUP(coustomerdata5[[#This Row],[Index]],database[],5,0),"") -> 1448 | O112: =IFERROR(VLOOKUP(coustomerdata5[[#This Row],[Index]],database[],6,0),"") -> 2318.392529 | P112: =IFERROR(coustomerdata5[[#This Row],[Cout unitaire]]*coustomerdata5[[#This Row],[Quantite]],"") -> 1448 | Q112: =IFERROR(coustomerdata5[[#This Row],[Quantite]]*coustomerdata5[[#This Row],[Prix unitaire]]*(1-coustomerdata5[[#This Row],[Taux de reduction]]),"") -> 2318.392529 | R112: =DAY(coustomerdata5[[#This Row],[Date]]) -> 24 | S112: =TEXT(coustomerdata5[[#This Row],[Date]], "mmm") -> mars | T112: =TEXT(coustomerdata5[[#This Row],[Date]], "aaaa") -> 2024
E113: 2024-03-25 | F113: P004 | G113: 5 | H113: Détail | I113: Carte | J113: 0 | K113: =IFERROR(VLOOKUP(coustomerdata5[[#This Row],[Index]],database[],2,0),"") -> Spray thermo-protecteur | L113: =IFERROR(VLOOKUP(coustomerdata5[[#This Row],[Index]],database[],3,0),"") -> Soins Capillaires | M113: =IFERROR(VLOOKUP(coustomerdata5[[#This Row],[Index]],database[],4,0),"") -> mL | N113: =IFERROR(VLOOKUP(coustomerdata5[[#This Row],[Index]],database[],5,0),"") -> 1372 | O113: =IFERROR(VLOOKUP(coustomerdata5[[#This Row],[Index]],database[],6,0),"") -> 2121.59816 | P113: =IFERROR(coustomerdata5[[#This Row],[Cout unitaire]]*coustomerdata5[[#This Row],[Quantite]],"") -> 6860 | Q113: =IFERROR(coustomerdata5[[#This Row],[Quantite]]*coustomerdata5[[#This Row],[Prix unitaire]]*(1-coustomerdata5[[#This Row],[Taux de reduction]]),"") -> 10607.9908 | R113: =DAY(coustomerdata5[[#This Row],[Date]]) -> 25 | S113: =TEXT(coustomerdata5[[#This Row],[Date]], "mmm") -> mars | T113: =TEXT(coustomerdata5[[#This Row],[Date]], "aaaa") -> 2024
E114: 2024-03-26 | F114: P040 | G114: 7 | H114: Détail | I114: Carte | J114: 0 | K114: =IFERROR(VLOOKUP(coustomerdata5[[#This Row],[Index]],database[],2,0),"") -> Shampoing sec | L114: =IFERROR(VLOOKUP(coustomerdata5[[#This Row],[Index]],database[],3,0),"") -> Soins Capillaires | M114: =IFERROR(VLOOKUP(coustomerdata5[[#This Row],[Index]],database[],4,0),"") -> mL | N114: =IFERROR(VLOOKUP(coustomerdata5[[#This Row],[Index]],database[],5,0),"") -> 1456 | O114: =IFERROR(VLOOKUP(coustomerdata5[[#This Row],[Index]],database[],6,0),"") -> 2300.505128 | P114: =IFERROR(coustomerdata5[[#This Row],[Cout unitaire]]*coustomerdata5[[#This Row],[Quantite]],"") -> 10192 | Q114: =IFERROR(coustomerdata5[[#This Row],[Quantite]]*coustomerdata5[[#This Row],[Prix unitaire]]*(1-coustomerdata5[[#This Row],[Taux de reduction]]),"") -> 16103.5359 | R114: =DAY(coustomerdata5[[#This Row],[Date]]) -> 26 | S114: =TEXT(coustomerdata5[[#This Row],[Date]], "mmm") -> mars | T114: =TEXT(coustomerdata5[[#This Row],[Date]], "aaaa") -> 2024
E115: 2024-03-27 | F115: P006 | G115: 7 | H115: Grossiste | I115: Mobile Money | J115: 0 | K115: =IFERROR(VLOOKUP(coustomerdata5[[#This Row],[Index]],database[],2,0),"") -> Déodorant naturel | L115: =IFERROR(VLOOKUP(coustomerdata5[[#This Row],[Index]],database[],3,0),"") -> Soins du Corps | M115: =IFERROR(VLOOKUP(coustomerdata5[[#This Row],[Index]],database[],4,0),"") -> mL | N115: =IFERROR(VLOOKUP(coustomerdata5[[#This Row],[Index]],database[],5,0),"") -> 1440 | O115: =IFERROR(VLOOKUP(coustomerdata5[[#This Row],[Index]],database[],6,0),"") -> 2318.392529 | P115: =IFERROR(coustomerdata5[[#This Row],[Cout unitaire]]*coustomerdata5[[#This Row],[Quantite]],"") -> 10080 | Q115: =IFERROR(coustomerdata5[[#This Row],[Quantite]]*coustomerdata5[[#This Row],[Prix unitaire]]*(1-coustomerdata5[[#This Row],[Taux de reduction]]),"") -> 16228.7477 | R115: =DAY(coustomerdata5[[#This Row],[Date]]) -> 27 | S115: =TEXT(coustomerdata5[[#This Row],[Date]], "mmm") -> mars | T115: =TEXT(coustomerdata5[[#This Row],[Date]], "aaaa") -> 2024
E116: 2024-03-28 | F116: P041 | G116: 9 | H116: Détail | I116: Carte | J116: 0 | K116: =IFERROR(VLOOKUP(coustomerdata5[[#This Row],[Index]],database[],2,0),"") -> Gel douche hydratant | L116: =IFERROR(VLOOKUP(coustomerdata5[[#This Row],[Index]],database[],3,0),"") -> Soins du Corps | M116: =IFERROR(VLOOKUP(coustomerdata5[[#This Row],[Index]],database[],4,0),"") -> mL | N116: =IFERROR(VLOOKUP(coustomerdata5[[#This Row],[Index]],database[],5,0),"") -> 1456 | O116: =IFERROR(VLOOKUP(coustomerdata5[[#This Row],[Index]],database[],6,0),"") -> 2198.207154 | P116: =IFERROR(coustomerdata5[[#This Row],[Cout unitaire]]*coustomerdata5[[#This Row],[Quantite]],"") -> 13104 | Q116: =IFERROR(coustomerdata5[[#This Row],[Quantite]]*coustomerdata5[[#This Row],[Prix unitaire]]*(1-coustomerdata5[[#This Row],[Taux de reduction]]),"") -> 19783.86439 | R116: =DAY(coustomerdata5[[#This Row],[Date]]) -> 28 | S116: =TEXT(coustomerdata5[[#This Row],[Date]], "mmm") -> mars | T116: =TEXT(coustomerdata5[[#This Row],[Date]], "aaaa") -> 2024
E117: 2024-03-29 | F117: P045 | G117: 3 | H117: Grossiste | I117: Mobile Money | J117: 0 | K117: =IFERROR(VLOOKUP(coustomerdata5[[#This Row],[Index]],database[],2,0),"") -> Palette de fards | L117: =IFERROR(VLOOKUP(coustomerdata5[[#This Row],[Index]],database[],3,0),"") -> Maquillage | M117: =IFERROR(VLOOKUP(coustomerdata5[[#This Row],[Index]],database[],4,0),"") -> g | N117: =IFERROR(VLOOKUP(coustomerdata5[[#This Row],[Index]],database[],5,0),"") -> 1440 | O117: =IFERROR(VLOOKUP(coustomerdata5[[#This Row],[Index]],database[],6,0),"") -> 2194.270807 | P117: =IFERROR(coustomerdata5[[#This Row],[Cout unitaire]]*coustomerdata5[[#This Row],[Quantite]],"") -> 4320 | Q117: =IFERROR(coustomerdata5[[#This Row],[Quantite]]*coustomerdata5[[#This Row],[Prix unitaire]]*(1-coustomerdata5[[#This Row],[Taux de reduction]]),"") -> 6582.812422 | R117: =DAY(coustomerdata5[[#This Row],[Date]]) -> 29 | S117: =TEXT(coustomerdata5[[#This Row],[Date]], "mmm") -> mars | T117: =TEXT(coustomerdata5[[#This Row],[Date]], "aaaa") -> 2024
E118: 2024-03-30 | F118: P040 | G118: 7 | H118: Grossiste | I118: Mobile Money | J118: 0 | K118: =IFERROR(VLOOKUP(coustomerdata5[[#This Row],[Index]],database[],2,0),"") -> Shampoing sec | L118: =IFERROR(VLOOKUP(coustomerdata5[[#This Row],[Index]],database[],3,0),"") -> Soins Capillaires | M118: =IFERROR(VLOOKUP(coustomerdata5[[#This Row],[Index]],database[],4,0),"") -> mL | N118: =IFERROR(VLOOKUP(coustomerdata5[[#This Row],[Index]],database[],5,0),"") -> 1456 | O118: =IFERROR(VLOOKUP(coustomerdata5[[#This Row],[Index]],database[],6,0),"") -> 2300.505128 | P118: =IFERROR(coustomerdata5[[#This Row],[Cout unitaire]]*coustomerdata5[[#This Row],[Quantite]],"") -> 10192 | Q118: =IFERROR(coustomerdata5[[#This Row],[Quantite]]*coustomerdata5[[#This Row],[Prix unitaire]]*(1-coustomerdata5[[#This Row],[Taux de reduction]]),"") -> 16103.5359 | R118: =DAY(coustomerdata5[[#This Row],[Date]]) -> 30 | S118: =TEXT(coustomerdata5[[#This Row],[Date]], "mmm") -> mars | T118: =TEXT(coustomerdata5[[#This Row],[Date]], "aaaa") -> 2024
E119: 2024-03-31 | F119: P029 | G119: 1 | H119: Grossiste | I119: Espèces | J119: 0 | K119: =IFERROR(VLOOKUP(coustomerdata5[[#This Row],[Index]],database[],2,0),"") -> Palette de fards | L119: =IFERROR(VLOOKUP(coustomerdata5[[#This Row],[Index]],database[],3,0),"") -> Maquillage | M119: =IFERROR(VLOOKUP(coustomerdata5[[#This Row],[Index]],database[],4,0),"") -> g | N119: =IFERROR(VLOOKUP(coustomerdata5[[#This Row],[Index]],database[],5,0),"") -> 1416 | O119: =IFERROR(VLOOKUP(coustomerdata5[[#This Row],[Index]],database[],6,0),"") -> 2304.641933 | P119: =IFERROR(coustomerdata5[[#This Row],[Cout unitaire]]*coustomerdata5[[#This Row],[Quantite]],"") -> 1416 | Q119: =IFERROR(coustomerdata5[[#This Row],[Quantite]]*coustomerdata5[[#This Row],[Prix unitaire]]*(1-coustomerdata5[[#This Row],[Taux de reduction]]),"") -> 2304.641933 | R119: =DAY(coustomerdata5[[#This Row],[Date]]) -> 31 | S119: =TEXT(coustomerdata5[[#This Row],[Date]], "mmm") -> mars | T119: =TEXT(coustomerdata5[[#This Row],[Date]], "aaaa") -> 2024
E120: 2024-04-01 | F120: P004 | G120: 4 | H120: Détail | I120: Espèces | J120: 0 | K120: =IFERROR(VLOOKUP(coustomerdata5[[#This Row],[Index]],database[],2,0),"") -> Spray thermo-protecteur | L120: =IFERROR(VLOOKUP(coustomerdata5[[#This Row],[Index]],database[],3,0),"") -> Soins Capillaires | M120: =IFERROR(VLOOKUP(coustomerdata5[[#This Row],[Index]],database[],4,0),"") -> mL | N120: =IFERROR(VLOOKUP(coustomerdata5[[#This Row],[Index]],database[],5,0),"") -> 1372 | O120: =IFERROR(VLOOKUP(coustomerdata5[[#This Row],[Index]],database[],6,0),"") -> 2121.59816 | P120: =IFERROR(coustomerdata5[[#This Row],[Cout unitaire]]*coustomerdata5[[#This Row],[Quantite]],"") -> 5488 | Q120: =IFERROR(coustomerdata5[[#This Row],[Quantite]]*coustomerdata5[[#This Row],[Prix unitaire]]*(1-coustomerdata5[[#This Row],[Taux de reduction]]),"") -> 8486.392638 | R120: =DAY(coustomerdata5[[#This Row],[Date]]) -> 1 | S120: =TEXT(coustomerdata5[[#This Row],[Date]], "mmm") -> avr | T120: =TEXT(coustomerdata5[[#This Row],[Date]], "aaaa") -> 2024
E121: 2024-04-02 | F121: P011 | G121: 4 | H121: Détail | I121: Carte | J121: 0 | K121: =IFERROR(VLOOKUP(coustomerdata5[[#This Row],[Index]],database[],2,0),"") -> Eau micellaire | L121: =IFERROR(VLOOKUP(coustomerdata5[[#This Row],[Index]],database[],3,0),"") -> Soins du Visage | M121: =IFERROR(VLOOKUP(coustomerdata5[[#This Row],[Index]],database[],4,0),"") -> mL | N121: =IFERROR(VLOOKUP(coustomerdata5[[#This Row],[Index]],database[],5,0),"") -> 1489 | O121: =IFERROR(VLOOKUP(coustomerdata5[[#This Row],[Index]],database[],6,0),"") -> 2295.317797 | P121: =IFERROR(coustomerdata5[[#This Row],[Cout unitaire]]*coustomerdata5[[#This Row],[Quantite]],"") -> 5956 | Q121: =IFERROR(coustomerdata5[[#This Row],[Quantite]]*coustomerdata5[[#This Row],[Prix unitaire]]*(1-coustomerdata5[[#This Row],[Taux de reduction]]),"") -> 9181.271186 | R121: =DAY(coustomerdata5[[#This Row],[Date]]) -> 2 | S121: =TEXT(coustomerdata5[[#This Row],[Date]], "mmm") -> avr | T121: =TEXT(coustomerdata5[[#This Row],[Date]], "aaaa") -> 2024
E122: 2024-04-03 | F122: P038 | G122: 5 | H122: Grossiste | I122: Espèces | J122: 0 | K122: =IFERROR(VLOOKUP(coustomerdata5[[#This Row],[Index]],database[],2,0),"") -> Crème raffermissante | L122: =IFERROR(VLOOKUP(coustomerdata5[[#This Row],[Index]],database[],3,0),"") -> Soins du Corps | M122: =IFERROR(VLOOKUP(coustomerdata5[[#This Row],[Index]],database[],4,0),"") -> mL | N122: =IFERROR(VLOOKUP(coustomerdata5[[#This Row],[Index]],database[],5,0),"") -> 1307 | O122: =IFERROR(VLOOKUP(coustomerdata5[[#This Row],[Index]],database[],6,0),"") -> 2214.617178 | P122: =IFERROR(coustomerdata5[[#This Row],[Cout unitaire]]*coustomerdata5[[#This Row],[Quantite]],"") -> 6535 | Q122: =IFERROR(coustomerdata5[[#This Row],[Quantite]]*coustomerdata5[[#This Row],[Prix unitaire]]*(1-coustomerdata5[[#This Row],[Taux de reduction]]),"") -> 11073.08589 | R122: =DAY(coustomerdata5[[#This Row],[Date]]) -> 3 | S122: =TEXT(coustomerdata5[[#This Row],[Date]], "mmm") -> avr | T122: =TEXT(coustomerdata5[[#This Row],[Date]], "aaaa") -> 2024
E123: 2024-04-04 | F123: P043 | G123: 7 | H123: Détail | I123: Carte | J123: 0 | K123: =IFERROR(VLOOKUP(coustomerdata5[[#This Row],[Index]],database[],2,0),"") -> Crayon à sourcils | L123: =IFERROR(VLOOKUP(coustomerdata5[[#This Row],[Index]],database[],3,0),"") -> Maquillage | M123: =IFERROR(VLOOKUP(coustomerdata5[[#This Row],[Index]],database[],4,0),"") -> g | N123: =IFERROR(VLOOKUP(coustomerdata5[[#This Row],[Index]],database[],5,0),"") -> 1440 | O123: =IFERROR(VLOOKUP(coustomerdata5[[#This Row],[Index]],database[],6,0),"") -> 2304.641933 | P123: =IFERROR(coustomerdata5[[#This Row],[Cout unitaire]]*coustomerdata5[[#This Row],[Quantite]],"") -> 10080 | Q123: =IFERROR(coustomerdata5[[#This Row],[Quantite]]*coustomerdata5[[#This Row],[Prix unitaire]]*(1-coustomerdata5[[#This Row],[Taux de reduction]]),"") -> 16132.49353 | R123: =DAY(coustomerdata5[[#This Row],[Date]]) -> 4 | S123: =TEXT(coustomerdata5[[#This Row],[Date]], "mmm") -> avr | T123: =TEXT(coustomerdata5[[#This Row],[Date]], "aaaa") -> 2024
E124: 2024-04-05 | F124: P017 | G124: 7 | H124: Grossiste | I124: Espèces | J124: 0 | K124: =IFERROR(VLOOKUP(coustomerdata5[[#This Row],[Index]],database[],2,0),"") -> Spray rafraîchissant | L124: =IFERROR(VLOOKUP(coustomerdata5[[#This Row],[Index]],database[],3,0),"") -> Soins du Corps | M124: =IFERROR(VLOOKUP(coustomerdata5[[#This Row],[Index]],database[],4,0),"") -> mL | N124: =IFERROR(VLOOKUP(coustomerdata5[[#This Row],[Index]],database[],5,0),"") -> 1440 | O124: =IFERROR(VLOOKUP(coustomerdata5[[#This Row],[Index]],database[],6,0),"") -> 2194.270807 | P124: =IFERROR(coustomerdata5[[#This Row],[Cout unitaire]]*coustomerdata5[[#This Row],[Quantite]],"") -> 10080 | Q124: =IFERROR(coustomerdata5[[#This Row],[Quantite]]*coustomerdata5[[#This Row],[Prix unitaire]]*(1-coustomerdata5[[#This Row],[Taux de reduction]]),"") -> 15359.89565 | R124: =DAY(coustomerdata5[[#This Row],[Date]]) -> 5 | S124: =TEXT(coustomerdata5[[#This Row],[Date]], "mmm") -> avr | T124: =TEXT(coustomerdata5[[#This Row],[Date]], "aaaa") -> 2024
E125: 2024-04-06 | F125: P006 | G125: 4 | H125: Grossiste | I125: Mobile Money | J125: 0 | K125: =IFERROR(VLOOKUP(coustomerdata5[[#This Row],[Index]],database[],2,0),"") -> Déodorant naturel | L125: =IFERROR(VLOOKUP(coustomerdata5[[#This Row],[Index]],database[],3,0),"") -> Soins du Corps | M125: =IFERROR(VLOOKUP(coustomerdata5[[#This Row],[Index]],database[],4,0),"") -> mL | N125: =IFERROR(VLOOKUP(coustomerdata5[[#This Row],[Index]],database[],5,0),"") -> 1440 | O125: =IFERROR(VLOOKUP(coustomerdata5[[#This Row],[Index]],database[],6,0),"") -> 2318.392529 | P125: =IFERROR(coustomerdata5[[#This Row],[Cout unitaire]]*coustomerdata5[[#This Row],[Quantite]],"") -> 5760 | Q125: =IFERROR(coustomerdata5[[#This Row],[Quantite]]*coustomerdata5[[#This Row],[Prix unitaire]]*(1-coustomerdata5[[#This Row],[Taux de reduction]]),"") -> 9273.570115 | R125: =DAY(coustomerdata5[[#This Row],[Date]]) -> 6 | S125: =TEXT(coustomerdata5[[#This Row],[Date]], "mmm") -> avr | T125: =TEXT(coustomerdata5[[#This Row],[Date]], "aaaa") -> 2024
E126: 2024-04-07 | F126: P032 | G126: 7 | H126: Détail | I126: Mobile Money | J126: 0 | K126: =IFERROR(VLOOKUP(coustomerdata5[[#This Row],[Index]],database[],2,0),"") -> Fond de teint | L126: =IFERROR(VLOOKUP(coustomerdata5[[#This Row],[Index]],database[],3,0),"") -> Maquillage | M126: =IFERROR(VLOOKUP(coustomerdata5[[#This Row],[Index]],database[],4,0),"") -> mL | N126: =IFERROR(VLOOKUP(coustomerdata5[[#This Row],[Index]],database[],5,0),"") -> 1307 | O126: =IFERROR(VLOOKUP(coustomerdata5[[#This Row],[Index]],database[],6,0),"") -> 2121.59816 | P126: =IFERROR(coustomerdata5[[#This Row],[Cout unitaire]]*coustomerdata5[[#This Row],[Quantite]],"") -> 9149 | Q126: =IFERROR(coustomerdata5[[#This Row],[Quantite]]*coustomerdata5[[#This Row],[Prix unitaire]]*(1-coustomerdata5[[#This Row],[Taux de reduction]]),"") -> 14851.18712 | R126: =DAY(coustomerdata5[[#This Row],[Date]]) -> 7 | S126: =TEXT(coustomerdata5[[#This Row],[Date]], "mmm") -> avr | T126: =TEXT(coustomerdata5[[#This Row],[Date]], "aaaa") -> 2024
E127: 2024-04-08 | F127: P033 | G127: 3 | H127: Grossiste | I127: Espèces | J127: 0 | K127: =IFERROR(VLOOKUP(coustomerdata5[[#This Row],[Index]],database[],2,0),"") -> Gommage exfoliant | L127: =IFERROR(VLOOKUP(coustomerdata5[[#This Row],[Index]],database[],3,0),"") -> Soins du Visage | M127: =IFERROR(VLOOKUP(coustomerdata5[[#This Row],[Index]],database[],4,0),"") -> g | N127: =IFERROR(VLOOKUP(coustomerdata5[[#This Row],[Index]],database[],5,0),"") -> 1456 | O127: =IFERROR(VLOOKUP(coustomerdata5[[#This Row],[Index]],database[],6,0),"") -> 2349.156481 | P127: =IFERROR(coustomerdata5[[#This Row],[Cout unitaire]]*coustomerdata5[[#This Row],[Quantite]],"") -> 4368 | Q127: =IFERROR(coustomerdata5[[#This Row],[Quantite]]*coustomerdata5[[#This Row],[Prix unitaire]]*(1-coustomerdata5[[#This Row],[Taux de reduction]]),"") -> 7047.469444 | R127: =DAY(coustomerdata5[[#This Row],[Date]]) -> 8 | S127: =TEXT(coustomerdata5[[#This Row],[Date]], "mmm") -> avr | T127: =TEXT(coustomerdata5[[#This Row],[Date]], "aaaa") -> 2024
E128: 2024-04-09 | F128: P016 | G128: 6 | H128: Grossiste | I128: Espèces | J128: 0 | K128: =IFERROR(VLOOKUP(coustomerdata5[[#This Row],[Index]],database[],2,0),"") -> BB crème | L128: =IFERROR(VLOOKUP(coustomerdata5[[#This Row],[Index]],database[],3,0),"") -> Soins du Visage | M128: =IFERROR(VLOOKUP(coustomerdata5[[#This Row],[Index]],database[],4,0),"") -> mL | N128: =IFERROR(VLOOKUP(coustomerdata5[[#This Row],[Index]],database[],5,0),"") -> 1307 | O128: =IFERROR(VLOOKUP(coustomerdata5[[#This Row],[Index]],database[],6,0),"") -> 2285.529633 | P128: =IFERROR(coustomerdata5[[#This Row],[Cout unitaire]]*coustomerdata5[[#This Row],[Quantite]],"") -> 7842 | Q128: =IFERROR(coustomerdata5[[#This Row],[Quantite]]*coustomerdata5[[#This Row],[Prix unitaire]]*(1-coustomerdata5[[#This Row],[Taux de reduction]]),"") -> 13713.1778 | R128: =DAY(coustomerdata5[[#This Row],[Date]]) -> 9 | S128: =TEXT(coustomerdata5[[#This Row],[Date]], "mmm") -> avr | T128: =TEXT(coustomerdata5[[#This Row],[Date]], "aaaa") -> 2024
E129: 2024-04-10 | F129: P039 | G129: 2 | H129: Grossiste | I129: Carte | J129: 0 | K129: =IFERROR(VLOOKUP(coustomerdata5[[#This Row],[Index]],database[],2,0),"") -> Crème pour les mains | L129: =IFERROR(VLOOKUP(coustomerdata5[[#This Row],[Index]],database[],3,0),"") -> Soins du Corps | M129: =IFERROR(VLOOKUP(coustomerdata5[[#This Row],[Index]],database[],4,0),"") -> mL | N129: =IFERROR(VLOOKUP(coustomerdata5[[#This Row],[Index]],database[],5,0),"") -> 1440 | O129: =IFERROR(VLOOKUP(coustomerdata5[[#This Row],[Index]],database[],6,0),"") -> 2295.317797 | P129: =IFERROR(coustomerdata5[[#This Row],[Cout unitaire]]*coustomerdata5[[#This Row],[Quantite]],"") -> 2880 | Q129: =IFERROR(coustomerdata5[[#This Row],[Quantite]]*coustomerdata5[[#This Row],[Prix unitaire]]*(1-coustomerdata5[[#This Row],[Taux de reduction]]),"") -> 4590.635593 | R129: =DAY(coustomerdata5[[#This Row],[Date]]) -> 10 | S129: =TEXT(coustomerdata5[[#This Row],[Date]], "mmm") -> avr | T129: =TEXT(coustomerdata5[[#This Row],[Date]], "aaaa") -> 2024
E130: 2024-04-11 | F130: P032 | G130: 9 | H130: Détail | I130: Mobile Money | J130: 0 | K130: =IFERROR(VLOOKUP(coustomerdata5[[#This Row],[Index]],database[],2,0),"") -> Fond de teint | L130: =IFERROR(VLOOKUP(coustomerdata5[[#This Row],[Index]],database[],3,0),"") -> Maquillage | M130: =IFERROR(VLOOKUP(coustomerdata5[[#This Row],[Index]],database[],4,0),"") -> mL | N130: =IFERROR(VLOOKUP(coustomerdata5[[#This Row],[Index]],database[],5,0),"") -> 1307 | O130: =IFERROR(VLOOKUP(coustomerdata5[[#This Row],[Index]],database[],6,0),"") -> 2121.59816 | P130: =IFERROR(coustomerdata5[[#This Row],[Cout unitaire]]*coustomerdata5[[#This Row],[Quantite]],"") -> 11763 | Q130: =IFERROR(coustomerdata5[[#This Row],[Quantite]]*coustomerdata5[[#This Row],[Prix unitaire]]*(1-coustomerdata5[[#This Row],[Taux de reduction]]),"") -> 19094.38344 | R130: =DAY(coustomerdata5[[#This Row],[Date]]) -> 11 | S130: =TEXT(coustomerdata5[[#This Row],[Date]], "mmm") -> avr | T130: =TEXT(coustomerdata5[[#This Row],[Date]], "aaaa") -> 2024
E131: 2024-04-12 | F131: P005 | G131: 5 | H131: Détail | I131: Mobile Money | J131: 0 | K131: =IFERROR(VLOOKUP(coustomerdata5[[#This Row],[Index]],database[],2,0),"") -> Sérum anti-âge | L131: =IFERROR(VLOOKUP(coustomerdata5[[#This Row],[Index]],database[],3,0),"") -> Soins du Visage | M131: =IFERROR(VLOOKUP(coustomerdata5[[#This Row],[Index]],database[],4,0),"") -> mL | N131: =IFERROR(VLOOKUP(coustomerdata5[[#This Row],[Index]],database[],5,0),"") -> 1372 | O131: =IFERROR(VLOOKUP(coustomerdata5[[#This Row],[Index]],database[],6,0),"") -> 2349.156481 | P131: =IFERROR(coustomerdata5[[#This Row],[Cout unitaire]]*coustomerdata5[[#This Row],[Quantite]],"") -> 6860 | Q131: =IFERROR(coustomerdata5[[#This Row],[Quantite]]*coustomerdata5[[#This Row],[Prix unitaire]]*(1-coustomerdata5[[#This Row],[Taux de reduction]]),"") -> 11745.78241 | R131: =DAY(coustomerdata5[[#This Row],[Date]]) -> 12 | S131: =TEXT(coustomerdata5[[#This Row],[Date]], "mmm") -> avr | T131: =TEXT(coustomerdata5[[#This Row],[Date]], "aaaa") -> 2024
E132: 2024-04-13 | F132: P033 | G132: 6 | H132: Détail | I132: Espèces | J132: 0 | K132: =IFERROR(VLOOKUP(coustomerdata5[[#This Row],[Index]],database[],2,0),"") -> Gommage exfoliant | L132: =IFERROR(VLOOKUP(coustomerdata5[[#This Row],[Index]],database[],3,0),"") -> Soins du Visage | M132: =IFERROR(VLOOKUP(coustomerdata5[[#This Row],[Index]],database[],4,0),"") -> g | N132: =IFERROR(VLOOKUP(coustomerdata5[[#This Row],[Index]],database[],5,0),"") -> 1456 | O132: =IFERROR(VLOOKUP(coustomerdata5[[#This Row],[Index]],database[],6,0),"") -> 2349.156481 | P132: =IFERROR(coustomerdata5[[#This Row],[Cout unitaire]]*coustomerdata5[[#This Row],[Quantite]],"") -> 8736 | Q132: =IFERROR(coustomerdata5[[#This Row],[Quantite]]*coustomerdata5[[#This Row],[Prix unitaire]]*(1-coustomerdata5[[#This Row],[Taux de reduction]]),"") -> 14094.93889 | R132: =DAY(coustomerdata5[[#This Row],[Date]]) -> 13 | S132: =TEXT(coustomerdata5[[#This Row],[Date]], "mmm") -> avr | T132: =TEXT(coustomerdata5[[#This Row],[Date]], "aaaa") -> 2024
E133: 2024-04-14 | F133: P045 | G133: 4 | H133: Détail | I133: Espèces | J133: 0 | K133: =IFERROR(VLOOKUP(coustomerdata5[[#This Row],[Index]],database[],2,0),"") -> Palette de fards | L133: =IFERROR(VLOOKUP(coustomerdata5[[#This Row],[Index]],database[],3,0),"") -> Maquillage | M133: =IFERROR(VLOOKUP(coustomerdata5[[#This Row],[Index]],database[],4,0),"") -> g | N133: =IFERROR(VLOOKUP(coustomerdata5[[#This Row],[Index]],database[],5,0),"") -> 1440 | O133: =IFERROR(VLOOKUP(coustomerdata5[[#This Row],[Index]],database[],6,0),"") -> 2194.270807 | P133: =IFERROR(coustomerdata5[[#This Row],[Cout unitaire]]*coustomerdata5[[#This Row],[Quantite]],"") -> 5760 | Q133: =IFERROR(coustomerdata5[[#This Row],[Quantite]]*coustomerdata5[[#This Row],[Prix unitaire]]*(1-coustomerdata5[[#This Row],[Taux de reduction]]),"") -> 8777.08323 | R133: =DAY(coustomerdata5[[#This Row],[Date]]) -> 14 | S133: =TEXT(coustomerdata5[[#This Row],[Date]], "mmm") -> avr | T133: =TEXT(coustomerdata5[[#This Row],[Date]], "aaaa") -> 2024
E134: 2024-04-15 | F134: P048 | G134: 7 | H134: Grossiste | I134: Espèces | J134: 0 | K134: =IFERROR(VLOOKUP(coustomerdata5[[#This Row],[Index]],database[],2,0),"") -> Cire coiffante | L134: =IFERROR(VLOOKUP(coustomerdata5[[#This Row],[Index]],database[],3,0),"") -> Soins Capillaires | M134: =IFERROR(VLOOKUP(coustomerdata5[[#This Row],[Index]],database[],4,0),"") -> g | N134: =IFERROR(VLOOKUP(coustomerdata5[[#This Row],[Index]],database[],5,0),"") -> 1347 | O134: =IFERROR(VLOOKUP(coustomerdata5[[#This Row],[Index]],database[],6,0),"") -> 2318.392529 | P134: =IFERROR(coustomerdata5[[#This Row],[Cout unitaire]]*coustomerdata5[[#This Row],[Quantite]],"") -> 9429 | Q134: =IFERROR(coustomerdata5[[#This Row],[Quantite]]*coustomerdata5[[#This Row],[Prix unitaire]]*(1-coustomerdata5[[#This Row],[Taux de reduction]]),"") -> 16228.7477 | R134: =DAY(coustomerdata5[[#This Row],[Date]]) -> 15 | S134: =TEXT(coustomerdata5[[#This Row],[Date]], "mmm") -> avr | T134: =TEXT(coustomerdata5[[#This Row],[Date]], "aaaa") -> 2024
E135: 2024-04-16 | F135: P050 | G135: 9 | H135: Grossiste | I135: Carte | J135: 0 | K135: =IFERROR(VLOOKUP(coustomerdata5[[#This Row],[Index]],database[],2,0),"") -> Poudre libre fixante | L135: =IFERROR(VLOOKUP(coustomerdata5[[#This Row],[Index]],database[],3,0),"") -> Maquillage | M135: =IFERROR(VLOOKUP(coustomerdata5[[#This Row],[Index]],database[],4,0),"") -> g | N135: =IFERROR(VLOOKUP(coustomerdata5[[#This Row],[Index]],database[],5,0),"") -> 1438 | O135: =IFERROR(VLOOKUP(coustomerdata5[[#This Row],[Index]],database[],6,0),"") -> 2290.019394 | P135: =IFERROR(coustomerdata5[[#This Row],[Cout unitaire]]*coustomerdata5[[#This Row],[Quantite]],"") -> 12942 | Q135: =IFERROR(coustomerdata5[[#This Row],[Quantite]]*coustomerdata5[[#This Row],[Prix unitaire]]*(1-coustomerdata5[[#This Row],[Taux de reduction]]),"") -> 20610.17455 | R135: =DAY(coustomerdata5[[#This Row],[Date]]) -> 16 | S135: =TEXT(coustomerdata5[[#This Row],[Date]], "mmm") -> avr | T135: =TEXT(coustomerdata5[[#This Row],[Date]], "aaaa") -> 2024
E136: 2024-04-17 | F136: P018 | G136: 7 | H136: Détail | I136: Mobile Money | J136: 0 | K136: =IFERROR(VLOOKUP(coustomerdata5[[#This Row],[Index]],database[],2,0),"") -> Rouge à lèvres mat | L136: =IFERROR(VLOOKUP(coustomerdata5[[#This Row],[Index]],database[],3,0),"") -> Maquillage | M136: =IFERROR(VLOOKUP(coustomerdata5[[#This Row],[Index]],database[],4,0),"") -> g | N136: =IFERROR(VLOOKUP(coustomerdata5[[#This Row],[Index]],database[],5,0),"") -> 1372 | O136: =IFERROR(VLOOKUP(coustomerdata5[[#This Row],[Index]],database[],6,0),"") -> 2121.59816 | P136: =IFERROR(coustomerdata5[[#This Row],[Cout unitaire]]*coustomerdata5[[#This Row],[Quantite]],"") -> 9604 | Q136: =IFERROR(coustomerdata5[[#This Row],[Quantite]]*coustomerdata5[[#This Row],[Prix unitaire]]*(1-coustomerdata5[[#This Row],[Taux de reduction]]),"") -> 14851.18712 | R136: =DAY(coustomerdata5[[#This Row],[Date]]) -> 17 | S136: =TEXT(coustomerdata5[[#This Row],[Date]], "mmm") -> avr | T136: =TEXT(coustomerdata5[[#This Row],[Date]], "aaaa") -> 2024
E137: 2024-04-18 | F137: P007 | G137: 1 | H137: Grossiste | I137: Carte | J137: 0 | K137: =IFERROR(VLOOKUP(coustomerdata5[[#This Row],[Index]],database[],2,0),"") -> Mousse volume | L137: =IFERROR(VLOOKUP(coustomerdata5[[#This Row],[Index]],database[],3,0),"") -> Soins Capillaires | M137: =IFERROR(VLOOKUP(coustomerdata5[[#This Row],[Index]],database[],4,0),"") -> mL | N137: =IFERROR(VLOOKUP(coustomerdata5[[#This Row],[Index]],database[],5,0),"") -> 1479 | O137: =IFERROR(VLOOKUP(coustomerdata5[[#This Row],[Index]],database[],6,0),"") -> 2313.735015 | P137: =IFERROR(coustomerdata5[[#This Row],[Cout unitaire]]*coustomerdata5[[#This Row],[Quantite]],"") -> 1479 | Q137: =IFERROR(coustomerdata5[[#This Row],[Quantite]]*coustomerdata5[[#This Row],[Prix unitaire]]*(1-coustomerdata5[[#This Row],[Taux de reduction]]),"") -> 2313.735015 | R137: =DAY(coustomerdata5[[#This Row],[Date]]) -> 18 | S137: =TEXT(coustomerdata5[[#This Row],[Date]], "mmm") -> avr | T137: =TEXT(coustomerdata5[[#This Row],[Date]], "aaaa") -> 2024
E138: 2024-04-19 | F138: P022 | G138: 1 | H138: Grossiste | I138: Mobile Money | J138: 0 | K138: =IFERROR(VLOOKUP(coustomerdata5[[#This Row],[Index]],database[],2,0),"") -> Masque capillaire | L138: =IFERROR(VLOOKUP(coustomerdata5[[#This Row],[Index]],database[],3,0),"") -> Soins Capillaires | M138: =IFERROR(VLOOKUP(coustomerdata5[[#This Row],[Index]],database[],4,0),"") -> mL | N138: =IFERROR(VLOOKUP(coustomerdata5[[#This Row],[Index]],database[],5,0),"") -> 1307 | O138: =IFERROR(VLOOKUP(coustomerdata5[[#This Row],[Index]],database[],6,0),"") -> 2290.019394 | P138: =IFERROR(coustomerdata5[[#This Row],[Cout unitaire]]*coustomerdata5[[#This Row],[Quantite]],"") -> 1307 | Q138: =IFERROR(coustomerdata5[[#This Row],[Quantite]]*coustomerdata5[[#This Row],[Prix unitaire]]*(1-coustomerdata5[[#This Row],[Taux de reduction]]),"") -> 2290.019394 | R138: =DAY(coustomerdata5[[#This Row],[Date]]) -> 19 | S138: =TEXT(coustomerdata5[[#This Row],[Date]], "mmm") -> avr | T138: =TEXT(coustomerdata5[[#This Row],[Date]], "aaaa") -> 2024
E139: 2024-04-20 | F139: P021 | G139: 9 | H139: Détail | I139: Espèces | J139: 0 | K139: =IFERROR(VLOOKUP(coustomerdata5[[#This Row],[Index]],database[],2,0),"") -> Huile nourrissante | L139: =IFERROR(VLOOKUP(coustomerdata5[[#This Row],[Index]],database[],3,0),"") -> Soins du Corps | M139: =IFERROR(VLOOKUP(coustomerdata5[[#This Row],[Index]],database[],4,0),"") -> mL | N139: =IFERROR(VLOOKUP(coustomerdata5[[#This Row],[Index]],database[],5,0),"") -> 1489 | O139: =IFERROR(VLOOKUP(coustomerdata5[[#This Row],[Index]],database[],6,0),"") -> 2313.735015 | P139: =IFERROR(coustomerdata5[[#This Row],[Cout unitaire]]*coustomerdata5[[#This Row],[Quantite]],"") -> 13401 | Q139: =IFERROR(coustomerdata5[[#This Row],[Quantite]]*coustomerdata5[[#This Row],[Prix unitaire]]*(1-coustomerdata5[[#This Row],[Taux de reduction]]),"") -> 20823.61514 | R139: =DAY(coustomerdata5[[#This Row],[Date]]) -> 20 | S139: =TEXT(coustomerdata5[[#This Row],[Date]], "mmm") -> avr | T139: =TEXT(coustomerdata5[[#This Row],[Date]], "aaaa") -> 2024
E140: 2024-04-21 | F140: P044 | G140: 9 | H140: Grossiste | I140: Carte | J140: 0 | K140: =IFERROR(VLOOKUP(coustomerdata5[[#This Row],[Index]],database[],2,0),"") -> Spray thermo-protecteur | L140: =IFERROR(VLOOKUP(coustomerdata5[[#This Row],[Index]],database[],3,0),"") -> Soins Capillaires | M140: =IFERROR(VLOOKUP(coustomerdata5[[#This Row],[Index]],database[],4,0),"") -> mL | N140: =IFERROR(VLOOKUP(coustomerdata5[[#This Row],[Index]],database[],5,0),"") -> 1423 | O140: =IFERROR(VLOOKUP(coustomerdata5[[#This Row],[Index]],database[],6,0),"") -> 2285.529633 | P140: =IFERROR(coustomerdata5[[#This Row],[Cout unitaire]]*coustomerdata5[[#This Row],[Quantite]],"") -> 12807 | Q140: =IFERROR(coustomerdata5[[#This Row],[Quantite]]*coustomerdata5[[#This Row],[Prix unitaire]]*(1-coustomerdata5[[#This Row],[Taux de reduction]]),"") -> 20569.7667 | R140: =DAY(coustomerdata5[[#This Row],[Date]]) -> 21 | S140: =TEXT(coustomerdata5[[#This Row],[Date]], "mmm") -> avr | T140: =TEXT(coustomerdata5[[#This Row],[Date]], "aaaa") -> 2024
E141: 2024-04-22 | F141: P018 | G141: 4 | H141: Grossiste | I141: Carte | J141: 0 | K141: =IFERROR(VLOOKUP(coustomerdata5[[#This Row],[Index]],database[],2,0),"") -> Rouge à lèvres mat | L141: =IFERROR(VLOOKUP(coustomerdata5[[#This Row],[Index]],database[],3,0),"") -> Maquillage | M141: =IFERROR(VLOOKUP(coustomerdata5[[#This Row],[Index]],database[],4,0),"") -> g | N141: =IFERROR(VLOOKUP(coustomerdata5[[#This Row],[Index]],database[],5,0),"") -> 1372 | O141: =IFERROR(VLOOKUP(coustomerdata5[[#This Row],[Index]],database[],6,0),"") -> 2121.59816 | P141: =IFERROR(coustomerdata5[[#This Row],[Cout unitaire]]*coustomerdata5[[#This Row],[Quantite]],"") -> 5488 | Q141: =IFERROR(coustomerdata5[[#This Row],[Quantite]]*coustomerdata5[[#This Row],[Prix unitaire]]*(1-coustomerdata5[[#This Row],[Taux de reduction]]),"") -> 8486.392638 | R141: =DAY(coustomerdata5[[#This Row],[Date]]) -> 22 | S141: =TEXT(coustomerdata5[[#This Row],[Date]], "mmm") -> avr | T141: =TEXT(coustomerdata5[[#This Row],[Date]], "aaaa") -> 2024
E142: 2024-04-23 | F142: P018 | G142: 9 | H142: Détail | I142: Espèces | J142: 0 | K142: =IFERROR(VLOOKUP(coustomerdata5[[#This Row],[Index]],database[],2,0),"") -> Rouge à lèvres mat | L142: =IFERROR(VLOOKUP(coustomerdata5[[#This Row],[Index]],database[],3,0),"") -> Maquillage | M142: =IFERROR(VLOOKUP(coustomerdata5[[#This Row],[Index]],database[],4,0),"") -> g | N142: =IFERROR(VLOOKUP(coustomerdata5[[#This Row],[Index]],database[],5,0),"") -> 1372 | O142: =IFERROR(VLOOKUP(coustomerdata5[[#This Row],[Index]],database[],6,0),"") -> 2121.59816 | P142: =IFERROR(coustomerdata5[[#This Row],[Cout unitaire]]*coustomerdata5[[#This Row],[Quantite]],"") -> 12348 | Q142: =IFERROR(coustomerdata5[[#This Row],[Quantite]]*coustomerdata5[[#This Row],[Prix unitaire]]*(1-coustomerdata5[[#This Row],[Taux de reduction]]),"") -> 19094.38344 | R142: =DAY(coustomerdata5[[#This Row],[Date]]) -> 23 | S142: =TEXT(coustomerdata5[[#This Row],[Date]], "mmm") -> avr | T142: =TEXT(coustomerdata5[[#This Row],[Date]], "aaaa") -> 2024
E143: 2024-04-24 | F143: P025 | G143: 3 | H143: Détail | I143: Carte | J143: 0 | K143: =IFERROR(VLOOKUP(coustomerdata5[[#This Row],[Index]],database[],2,0),"") -> Cire coiffante | L143: =IFERROR(VLOOKUP(coustomerdata5[[#This Row],[Index]],database[],3,0),"") -> Soins Capillaires | M143: =IFERROR(VLOOKUP(coustomerdata5[[#This Row],[Index]],database[],4,0),"") -> g | N143: =IFERROR(VLOOKUP(coustomerdata5[[#This Row],[Index]],database[],5,0),"") -> 1440 | O143: =IFERROR(VLOOKUP(coustomerdata5[[#This Row],[Index]],database[],6,0),"") -> 2295.317797 | P143: =IFERROR(coustomerdata5[[#This Row],[Cout unitaire]]*coustomerdata5[[#This Row],[Quantite]],"") -> 4320 | Q143: =IFERROR(coustomerdata5[[#This Row],[Quantite]]*coustomerdata5[[#This Row],[Prix unitaire]]*(1-coustomerdata5[[#This Row],[Taux de reduction]]),"") -> 6885.95339 | R143: =DAY(coustomerdata5[[#This Row],[Date]]) -> 24 | S143: =TEXT(coustomerdata5[[#This Row],[Date]], "mmm") -> avr | T143: =TEXT(coustomerdata5[[#This Row],[Date]], "aaaa") -> 2024
E144: 2024-04-25 | F144: P021 | G144: 7 | H144: Détail | I144: Carte | J144: 0 | K144: =IFERROR(VLOOKUP(coustomerdata5[[#This Row],[Index]],database[],2,0),"") -> Huile nourrissante | L144: =IFERROR(VLOOKUP(coustomerdata5[[#This Row],[Index]],database[],3,0),"") -> Soins du Corps | M144: =IFERROR(VLOOKUP(coustomerdata5[[#This Row],[Index]],database[],4,0),"") -> mL | N144: =IFERROR(VLOOKUP(coustomerdata5[[#This Row],[Index]],database[],5,0),"") -> 1489 | O144: =IFERROR(VLOOKUP(coustomerdata5[[#This Row],[Index]],database[],6,0),"") -> 2313.735015 | P144: =IFERROR(coustomerdata5[[#This Row],[Cout unitaire]]*coustomerdata5[[#This Row],[Quantite]],"") -> 10423 | Q144: =IFERROR(coustomerdata5[[#This Row],[Quantite]]*coustomerdata5[[#This Row],[Prix unitaire]]*(1-coustomerdata5[[#This Row],[Taux de reduction]]),"") -> 16196.14511 | R144: =DAY(coustomerdata5[[#This Row],[Date]]) -> 25 | S144: =TEXT(coustomerdata5[[#This Row],[Date]], "mmm") -> avr | T144: =TEXT(coustomerdata5[[#This Row],[Date]], "aaaa") -> 2024
E145: 2024-04-26 | F145: P021 | G145: 6 | H145: Grossiste | I145: Mobile Money | J145: 0 | K145: =IFERROR(VLOOKUP(coustomerdata5[[#This Row],[Index]],database[],2,0),"") -> Huile nourrissante | L145: =IFERROR(VLOOKUP(coustomerdata5[[#This Row],[Index]],database[],3,0),"") -> Soins du Corps | M145: =IFERROR(VLOOKUP(coustomerdata5[[#This Row],[Index]],database[],4,0),"") -> mL | N145: =IFERROR(VLOOKUP(coustomerdata5[[#This Row],[Index]],database[],5,0),"") -> 1489 | O145: =IFERROR(VLOOKUP(coustomerdata5[[#This Row],[Index]],database[],6,0),"") -> 2313.735015 | P145: =IFERROR(coustomerdata5[[#This Row],[Cout unitaire]]*coustomerdata5[[#This Row],[Quantite]],"") -> 8934 | Q145: =IFERROR(coustomerdata5[[#This Row],[Quantite]]*coustomerdata5[[#This Row],[Prix unitaire]]*(1-coustomerdata5[[#This Row],[Taux de reduction]]),"") -> 13882.41009 | R145: =DAY(coustomerdata5[[#This Row],[Date]]) -> 26 | S145: =TEXT(coustomerdata5[[#This Row],[Date]], "mmm") -> avr | T145: =TEXT(coustomerdata5[[#This Row],[Date]], "aaaa") -> 2024
E146: 2024-04-27 | F146: P008 | G146: 8 | H146: Détail | I146: Carte | J146: 0 | K146: =IFERROR(VLOOKUP(coustomerdata5[[#This Row],[Index]],database[],2,0),"") -> Lotion tonique | L146: =IFERROR(VLOOKUP(coustomerdata5[[#This Row],[Index]],database[],3,0),"") -> Soins du Visage | M146: =IFERROR(VLOOKUP(coustomerdata5[[#This Row],[Index]],database[],4,0),"") -> mL | N146: =IFERROR(VLOOKUP(coustomerdata5[[#This Row],[Index]],database[],5,0),"") -> 1489 | O146: =IFERROR(VLOOKUP(coustomerdata5[[#This Row],[Index]],database[],6,0),"") -> 2290.019394 | P146: =IFERROR(coustomerdata5[[#This Row],[Cout unitaire]]*coustomerdata5[[#This Row],[Quantite]],"") -> 11912 | Q146: =IFERROR(coustomerdata5[[#This Row],[Quantite]]*coustomerdata5[[#This Row],[Prix unitaire]]*(1-coustomerdata5[[#This Row],[Taux de reduction]]),"") -> 18320.15515 | R146: =DAY(coustomerdata5[[#This Row],[Date]]) -> 27 | S146: =TEXT(coustomerdata5[[#This Row],[Date]], "mmm") -> avr | T146: =TEXT(coustomerdata5[[#This Row],[Date]], "aaaa") -> 2024
E147: 2024-04-28 | F147: P011 | G147: 9 | H147: Grossiste | I147: Mobile Money | J147: 0 | K147: =IFERROR(VLOOKUP(coustomerdata5[[#This Row],[Index]],database[],2,0),"") -> Eau micellaire | L147: =IFERROR(VLOOKUP(coustomerdata5[[#This Row],[Index]],database[],3,0),"") -> Soins du Visage | M147: =IFERROR(VLOOKUP(coustomerdata5[[#This Row],[Index]],database[],4,0),"") -> mL | N147: =IFERROR(VLOOKUP(coustomerdata5[[#This Row],[Index]],database[],5,0),"") -> 1489 | O147: =IFERROR(VLOOKUP(coustomerdata5[[#This Row],[Index]],database[],6,0),"") -> 2295.317797 | P147: =IFERROR(coustomerdata5[[#This Row],[Cout unitaire]]*coustomerdata5[[#This Row],[Quantite]],"") -> 13401 | Q147: =IFERROR(coustomerdata5[[#This Row],[Quantite]]*coustomerdata5[[#This Row],[Prix unitaire]]*(1-coustomerdata5[[#This Row],[Taux de reduction]]),"") -> 20657.86017 | R147: =DAY(coustomerdata5[[#This Row],[Date]]) -> 28 | S147: =TEXT(coustomerdata5[[#This Row],[Date]], "mmm") -> avr | T147: =TEXT(coustomerdata5[[#This Row],[Date]], "aaaa") -> 2024
E148: 2024-04-29 | F148: P041 | G148: 5 | H148: Grossiste | I148: Mobile Money | J148: 0 | K148: =IFERROR(VLOOKUP(coustomerdata5[[#This Row],[Index]],database[],2,0),"") -> Gel douche hydratant | L148: =IFERROR(VLOOKUP(coustomerdata5[[#This Row],[Index]],database[],3,0),"") -> Soins du Corps | M148: =IFERROR(VLOOKUP(coustomerdata5[[#This Row],[Index]],database[],4,0),"") -> mL | N148: =IFERROR(VLOOKUP(coustomerdata5[[#This Row],[Index]],database[],5,0),"") -> 1456 | O148: =IFERROR(VLOOKUP(coustomerdata5[[#This Row],[Index]],database[],6,0),"") -> 2198.207154 | P148: =IFERROR(coustomerdata5[[#This Row],[Cout unitaire]]*coustomerdata5[[#This Row],[Quantite]],"") -> 7280 | Q148: =IFERROR(coustomerdata5[[#This Row],[Quantite]]*coustomerdata5[[#This Row],[Prix unitaire]]*(1-coustomerdata5[[#This Row],[Taux de reduction]]),"") -> 10991.03577 | R148: =DAY(coustomerdata5[[#This Row],[Date]]) -> 29 | S148: =TEXT(coustomerdata5[[#This Row],[Date]], "mmm") -> avr | T148: =TEXT(coustomerdata5[[#This Row],[Date]], "aaaa") -> 2024
E149: 2024-04-30 | F149: P039 | G149: 1 | H149: Grossiste | I149: Espèces | J149: 0 | K149: =IFERROR(VLOOKUP(coustomerdata5[[#This Row],[Index]],database[],2,0),"") -> Crème pour les mains | L149: =IFERROR(VLOOKUP(coustomerdata5[[#This Row],[Index]],database[],3,0),"") -> Soins du Corps | M149: =IFERROR(VLOOKUP(coustomerdata5[[#This Row],[Index]],database[],4,0),"") -> mL | N149: =IFERROR(VLOOKUP(coustomerdata5[[#This Row],[Index]],database[],5,0),"") -> 1440 | O149: =IFERROR(VLOOKUP(coustomerdata5[[#This Row],[Index]],database[],6,0),"") -> 2295.317797 | P149: =IFERROR(coustomerdata5[[#This Row],[Cout unitaire]]*coustomerdata5[[#This Row],[Quantite]],"") -> 1440 | Q149: =IFERROR(coustomerdata5[[#This Row],[Quantite]]*coustomerdata5[[#This Row],[Prix unitaire]]*(1-coustomerdata5[[#This Row],[Taux de reduction]]),"") -> 2295.317797 | R149: =DAY(coustomerdata5[[#This Row],[Date]]) -> 30 | S149: =TEXT(coustomerdata5[[#This Row],[Date]], "mmm") -> avr | T149: =TEXT(coustomerdata5[[#This Row],[Date]], "aaaa") -> 2024
E150: 2024-05-01 | F150: P014 | G150: 3 | H150: Détail | I150: Espèces | J150: 0 | K150: =IFERROR(VLOOKUP(coustomerdata5[[#This Row],[Index]],database[],2,0),"") -> Crème coiffante | L150: =IFERROR(VLOOKUP(coustomerdata5[[#This Row],[Index]],database[],3,0),"") -> Soins Capillaires | M150: =IFERROR(VLOOKUP(coustomerdata5[[#This Row],[Index]],database[],4,0),"") -> mL | N150: =IFERROR(VLOOKUP(coustomerdata5[[#This Row],[Index]],database[],5,0),"") -> 1479 | O150: =IFERROR(VLOOKUP(coustomerdata5[[#This Row],[Index]],database[],6,0),"") -> 2409.547712 | P150: =IFERROR(coustomerdata5[[#This Row],[Cout unitaire]]*coustomerdata5[[#This Row],[Quantite]],"") -> 4437 | Q150: =IFERROR(coustomerdata5[[#This Row],[Quantite]]*coustomerdata5[[#This Row],[Prix unitaire]]*(1-coustomerdata5[[#This Row],[Taux de reduction]]),"") -> 7228.643137 | R150: =DAY(coustomerdata5[[#This Row],[Date]]) -> 1 | S150: =TEXT(coustomerdata5[[#This Row],[Date]], "mmm") -> mai | T150: =TEXT(coustomerdata5[[#This Row],[Date]], "aaaa") -> 2024
E151: 2024-05-02 | F151: P018 | G151: 8 | H151: Détail | I151: Carte | J151: 0 | K151: =IFERROR(VLOOKUP(coustomerdata5[[#This Row],[Index]],database[],2,0),"") -> Rouge à lèvres mat | L151: =IFERROR(VLOOKUP(coustomerdata5[[#This Row],[Index]],database[],3,0),"") -> Maquillage | M151: =IFERROR(VLOOKUP(coustomerdata5[[#This Row],[Index]],database[],4,0),"") -> g | N151: =IFERROR(VLOOKUP(coustomerdata5[[#This Row],[Index]],database[],5,0),"") -> 1372 | O151: =IFERROR(VLOOKUP(coustomerdata5[[#This Row],[Index]],database[],6,0),"") -> 2121.59816 | P151: =IFERROR(coustomerdata5[[#This Row],[Cout unitaire]]*coustomerdata5[[#This Row],[Quantite]],"") -> 10976 | Q151: =IFERROR(coustomerdata5[[#This Row],[Quantite]]*coustomerdata5[[#This Row],[Prix unitaire]]*(1-coustomerdata5[[#This Row],[Taux de reduction]]),"") -> 16972.78528 | R151: =DAY(coustomerdata5[[#This Row],[Date]]) -> 2 | S151: =TEXT(coustomerdata5[[#This Row],[Date]], "mmm") -> mai | T151: =TEXT(coustomerdata5[[#This Row],[Date]], "aaaa") -> 2024
E152: 2024-05-03 | F152: P023 | G152: 6 | H152: Grossiste | I152: Espèces | J152: 0 | K152: =IFERROR(VLOOKUP(coustomerdata5[[#This Row],[Index]],database[],2,0),"") -> Masque purifiant | L152: =IFERROR(VLOOKUP(coustomerdata5[[#This Row],[Index]],database[],3,0),"") -> Soins du Visage | M152: =IFERROR(VLOOKUP(coustomerdata5[[#This Row],[Index]],database[],4,0),"") -> g | N152: =IFERROR(VLOOKUP(coustomerdata5[[#This Row],[Index]],database[],5,0),"") -> 1457 | O152: =IFERROR(VLOOKUP(coustomerdata5[[#This Row],[Index]],database[],6,0),"") -> 2171.294262 | P152: =IFERROR(coustomerdata5[[#This Row],[Cout unitaire]]*coustomerdata5[[#This Row],[Quantite]],"") -> 8742 | Q152: =IFERROR(coustomerdata5[[#This Row],[Quantite]]*coustomerdata5[[#This Row],[Prix unitaire]]*(1-coustomerdata5[[#This Row],[Taux de reduction]]),"") -> 13027.76557 | R152: =DAY(coustomerdata5[[#This Row],[Date]]) -> 3 | S152: =TEXT(coustomerdata5[[#This Row],[Date]], "mmm") -> mai | T152: =TEXT(coustomerdata5[[#This Row],[Date]], "aaaa") -> 2024
E153: 2024-05-04 | F153: P050 | G153: 8 | H153: Détail | I153: Carte | J153: 0 | K153: =IFERROR(VLOOKUP(coustomerdata5[[#This Row],[Index]],database[],2,0),"") -> Poudre libre fixante | L153: =IFERROR(VLOOKUP(coustomerdata5[[#This Row],[Index]],database[],3,0),"") -> Maquillage | M153: =IFERROR(VLOOKUP(coustomerdata5[[#This Row],[Index]],database[],4,0),"") -> g | N153: =IFERROR(VLOOKUP(coustomerdata5[[#This Row],[Index]],database[],5,0),"") -> 1438 | O153: =IFERROR(VLOOKUP(coustomerdata5[[#This Row],[Index]],database[],6,0),"") -> 2290.019394 | P153: =IFERROR(coustomerdata5[[#This Row],[Cout unitaire]]*coustomerdata5[[#This Row],[Quantite]],"") -> 11504 | Q153: =IFERROR(coustomerdata5[[#This Row],[Quantite]]*coustomerdata5[[#This Row],[Prix unitaire]]*(1-coustomerdata5[[#This Row],[Taux de reduction]]),"") -> 18320.15515 | R153: =DAY(coustomerdata5[[#This Row],[Date]]) -> 4 | S153: =TEXT(coustomerdata5[[#This Row],[Date]], "mmm") -> mai | T153: =TEXT(coustomerdata5[[#This Row],[Date]], "aaaa") -> 2024
E154: 2024-05-05 | F154: P042 | G154: 9 | H154: Grossiste | I154: Espèces | J154: 0 | K154: =IFERROR(VLOOKUP(coustomerdata5[[#This Row],[Index]],database[],2,0),"") -> Crème hydratante | L154: =IFERROR(VLOOKUP(coustomerdata5[[#This Row],[Index]],database[],3,0),"") -> Soins du Visage | M154: =IFERROR(VLOOKUP(coustomerdata5[[#This Row],[Index]],database[],4,0),"") -> mL | N154: =IFERROR(VLOOKUP(coustomerdata5[[#This Row],[Index]],database[],5,0),"") -> 1448 | O154: =IFERROR(VLOOKUP(coustomerdata5[[#This Row],[Index]],database[],6,0),"") -> 2409.547712 | P154: =IFERROR(coustomerdata5[[#This Row],[Cout unitaire]]*coustomerdata5[[#This Row],[Quantite]],"") -> 13032 | Q154: =IFERROR(coustomerdata5[[#This Row],[Quantite]]*coustomerdata5[[#This Row],[Prix unitaire]]*(1-coustomerdata5[[#This Row],[Taux de reduction]]),"") -> 21685.92941 | R154: =DAY(coustomerdata5[[#This Row],[Date]]) -> 5 | S154: =TEXT(coustomerdata5[[#This Row],[Date]], "mmm") -> mai | T154: =TEXT(coustomerdata5[[#This Row],[Date]], "aaaa") -> 2024
E155: 2024-05-06 | F155: P002 | G155: 4 | H155: Grossiste | I155: Mobile Money | J155: 0 | K155: =IFERROR(VLOOKUP(coustomerdata5[[#This Row],[Index]],database[],2,0),"") -> Eye-liner waterproof | L155: =IFERROR(VLOOKUP(coustomerdata5[[#This Row],[Index]],database[],3,0),"") -> Maquillage | M155: =IFERROR(VLOOKUP(coustomerdata5[[#This Row],[Index]],database[],4,0),"") -> mL | N155: =IFERROR(VLOOKUP(coustomerdata5[[#This Row],[Index]],database[],5,0),"") -> 1489 | O155: =IFERROR(VLOOKUP(coustomerdata5[[#This Row],[Index]],database[],6,0),"") -> 2285.529633 | P155: =IFERROR(coustomerdata5[[#This Row],[Cout unitaire]]*coustomerdata5[[#This Row],[Quantite]],"") -> 5956 | Q155: =IFERROR(coustomerdata5[[#This Row],[Quantite]]*coustomerdata5[[#This Row],[Prix unitaire]]*(1-coustomerdata5[[#This Row],[Taux de reduction]]),"") -> 9142.118531 | R155: =DAY(coustomerdata5[[#This Row],[Date]]) -> 6 | S155: =TEXT(coustomerdata5[[#This Row],[Date]], "mmm") -> mai | T155: =TEXT(coustomerdata5[[#This Row],[Date]], "aaaa") -> 2024
E156: 2024-05-07 | F156: P001 | G156: 1 | H156: Détail | I156: Mobile Money | J156: 0 | K156: =IFERROR(VLOOKUP(coustomerdata5[[#This Row],[Index]],database[],2,0),"") -> Crème pour les pieds | L156: =IFERROR(VLOOKUP(coustomerdata5[[#This Row],[Index]],database[],3,0),"") -> Soins du Corps | M156: =IFERROR(VLOOKUP(coustomerdata5[[#This Row],[Index]],database[],4,0),"") -> mL | N156: =IFERROR(VLOOKUP(coustomerdata5[[#This Row],[Index]],database[],5,0),"") -> 1479 | O156: =IFERROR(VLOOKUP(coustomerdata5[[#This Row],[Index]],database[],6,0),"") -> 2304.641933 | P156: =IFERROR(coustomerdata5[[#This Row],[Cout unitaire]]*coustomerdata5[[#This Row],[Quantite]],"") -> 1479 | Q156: =IFERROR(coustomerdata5[[#This Row],[Quantite]]*coustomerdata5[[#This Row],[Prix unitaire]]*(1-coustomerdata5[[#This Row],[Taux de reduction]]),"") -> 2304.641933 | R156: =DAY(coustomerdata5[[#This Row],[Date]]) -> 7 | S156: =TEXT(coustomerdata5[[#This Row],[Date]], "mmm") -> mai | T156: =TEXT(coustomerdata5[[#This Row],[Date]], "aaaa") -> 2024
E157: 2024-05-08 | F157: P040 | G157: 1 | H157: Grossiste | I157: Espèces | J157: 0 | K157: =IFERROR(VLOOKUP(coustomerdata5[[#This Row],[Index]],database[],2,0),"") -> Shampoing sec | L157: =IFERROR(VLOOKUP(coustomerdata5[[#This Row],[Index]],database[],3,0),"") -> Soins Capillaires | M157: =IFERROR(VLOOKUP(coustomerdata5[[#This Row],[Index]],database[],4,0),"") -> mL | N157: =IFERROR(VLOOKUP(coustomerdata5[[#This Row],[Index]],database[],5,0),"") -> 1456 | O157: =IFERROR(VLOOKUP(coustomerdata5[[#This Row],[Index]],database[],6,0),"") -> 2300.505128 | P157: =IFERROR(coustomerdata5[[#This Row],[Cout unitaire]]*coustomerdata5[[#This Row],[Quantite]],"") -> 1456 | Q157: =IFERROR(coustomerdata5[[#This Row],[Quantite]]*coustomerdata5[[#This Row],[Prix unitaire]]*(1-coustomerdata5[[#This Row],[Taux de reduction]]),"") -> 2300.505128 | R157: =DAY(coustomerdata5[[#This Row],[Date]]) -> 8 | S157: =TEXT(coustomerdata5[[#This Row],[Date]], "mmm") -> mai | T157: =TEXT(coustomerdata5[[#This Row],[Date]], "aaaa") -> 2024
E158: 2024-05-09 | F158: P034 | G158: 4 | H158: Grossiste | I158: Espèces | J158: 0 | K158: =IFERROR(VLOOKUP(coustomerdata5[[#This Row],[Index]],database[],2,0),"") -> Blush rosé | L158: =IFERROR(VLOOKUP(coustomerdata5[[#This Row],[Index]],database[],3,0),"") -> Maquillage | M158: =IFERROR(VLOOKUP(coustomerdata5[[#This Row],[Index]],database[],4,0),"") -> g | N158: =IFERROR(VLOOKUP(coustomerdata5[[#This Row],[Index]],database[],5,0),"") -> 1448 | O158: =IFERROR(VLOOKUP(coustomerdata5[[#This Row],[Index]],database[],6,0),"") -> 2318.392529 | P158: =IFERROR(coustomerdata5[[#This Row],[Cout unitaire]]*coustomerdata5[[#This Row],[Quantite]],"") -> 5792 | Q158: =IFERROR(coustomerdata5[[#This Row],[Quantite]]*coustomerdata5[[#This Row],[Prix unitaire]]*(1-coustomerdata5[[#This Row],[Taux de reduction]]),"") -> 9273.570115 | R158: =DAY(coustomerdata5[[#This Row],[Date]]) -> 9 | S158: =TEXT(coustomerdata5[[#This Row],[Date]], "mmm") -> mai | T158: =TEXT(coustomerdata5[[#This Row],[Date]], "aaaa") -> 2024
E159: 2024-05-10 | F159: P004 | G159: 7 | H159: Grossiste | I159: Carte | J159: 0 | K159: =IFERROR(VLOOKUP(coustomerdata5[[#This Row],[Index]],database[],2,0),"") -> Spray thermo-protecteur | L159: =IFERROR(VLOOKUP(coustomerdata5[[#This Row],[Index]],database[],3,0),"") -> Soins Capillaires | M159: =IFERROR(VLOOKUP(coustomerdata5[[#This Row],[Index]],database[],4,0),"") -> mL | N159: =IFERROR(VLOOKUP(coustomerdata5[[#This Row],[Index]],database[],5,0),"") -> 1372 | O159: =IFERROR(VLOOKUP(coustomerdata5[[#This Row],[Index]],database[],6,0),"") -> 2121.59816 | P159: =IFERROR(coustomerdata5[[#This Row],[Cout unitaire]]*coustomerdata5[[#This Row],[Quantite]],"") -> 9604 | Q159: =IFERROR(coustomerdata5[[#This Row],[Quantite]]*coustomerdata5[[#This Row],[Prix unitaire]]*(1-coustomerdata5[[#This Row],[Taux de reduction]]),"") -> 14851.18712 | R159: =DAY(coustomerdata5[[#This Row],[Date]]) -> 10 | S159: =TEXT(coustomerdata5[[#This Row],[Date]], "mmm") -> mai | T159: =TEXT(coustomerdata5[[#This Row],[Date]], "aaaa") -> 2024
E160: 2024-05-11 | F160: P040 | G160: 2 | H160: Détail | I160: Mobile Money | J160: 0 | K160: =IFERROR(VLOOKUP(coustomerdata5[[#This Row],[Index]],database[],2,0),"") -> Shampoing sec | L160: =IFERROR(VLOOKUP(coustomerdata5[[#This Row],[Index]],database[],3,0),"") -> Soins Capillaires | M160: =IFERROR(VLOOKUP(coustomerdata5[[#This Row],[Index]],database[],4,0),"") -> mL | N160: =IFERROR(VLOOKUP(coustomerdata5[[#This Row],[Index]],database[],5,0),"") -> 1456 | O160: =IFERROR(VLOOKUP(coustomerdata5[[#This Row],[Index]],database[],6,0),"") -> 2300.505128 | P160: =IFERROR(coustomerdata5[[#This Row],[Cout unitaire]]*coustomerdata5[[#This Row],[Quantite]],"") -> 2912 | Q160: =IFERROR(coustomerdata5[[#This Row],[Quantite]]*coustomerdata5[[#This Row],[Prix unitaire]]*(1-coustomerdata5[[#This Row],[Taux de reduction]]),"") -> 4601.010256 | R160: =DAY(coustomerdata5[[#This Row],[Date]]) -> 11 | S160: =TEXT(coustomerdata5[[#This Row],[Date]], "mmm") -> mai | T160: =TEXT(coustomerdata5[[#This Row],[Date]], "aaaa") -> 2024
E161: 2024-05-12 | F161: P006 | G161: 3 | H161: Détail | I161: Mobile Money | J161: 0 | K161: =IFERROR(VLOOKUP(coustomerdata5[[#This Row],[Index]],database[],2,0),"") -> Déodorant naturel | L161: =IFERROR(VLOOKUP(coustomerdata5[[#This Row],[Index]],database[],3,0),"") -> Soins du Corps | M161: =IFERROR(VLOOKUP(coustomerdata5[[#This Row],[Index]],database[],4,0),"") -> mL | N161: =IFERROR(VLOOKUP(coustomerdata5[[#This Row],[Index]],database[],5,0),"") -> 1440 | O161: =IFERROR(VLOOKUP(coustomerdata5[[#This Row],[Index]],database[],6,0),"") -> 2318.392529 | P161: =IFERROR(coustomerdata5[[#This Row],[Cout unitaire]]*coustomerdata5[[#This Row],[Quantite]],"") -> 4320 | Q161: =IFERROR(coustomerdata5[[#This Row],[Quantite]]*coustomerdata5[[#This Row],[Prix unitaire]]*(1-coustomerdata5[[#This Row],[Taux de reduction]]),"") -> 6955.177586 | R161: =DAY(coustomerdata5[[#This Row],[Date]]) -> 12 | S161: =TEXT(coustomerdata5[[#This Row],[Date]], "mmm") -> mai | T161: =TEXT(coustomerdata5[[#This Row],[Date]], "aaaa") -> 2024
E162: 2024-05-13 | F162: P041 | G162: 1 | H162: Détail | I162: Espèces | J162: 0 | K162: =IFERROR(VLOOKUP(coustomerdata5[[#This Row],[Index]],database[],2,0),"") -> Gel douche hydratant | L162: =IFERROR(VLOOKUP(coustomerdata5[[#This Row],[Index]],database[],3,0),"") -> Soins du Corps | M162: =IFERROR(VLOOKUP(coustomerdata5[[#This Row],[Index]],database[],4,0),"") -> mL | N162: =IFERROR(VLOOKUP(coustomerdata5[[#This Row],[Index]],database[],5,0),"") -> 1456 | O162: =IFERROR(VLOOKUP(coustomerdata5[[#This Row],[Index]],database[],6,0),"") -> 2198.207154 | P162: =IFERROR(coustomerdata5[[#This Row],[Cout unitaire]]*coustomerdata5[[#This Row],[Quantite]],"") -> 1456 | Q162: =IFERROR(coustomerdata5[[#This Row],[Quantite]]*coustomerdata5[[#This Row],[Prix unitaire]]*(1-coustomerdata5[[#This Row],[Taux de reduction]]),"") -> 2198.207154 | R162: =DAY(coustomerdata5[[#This Row],[Date]]) -> 13 | S162: =TEXT(coustomerdata5[[#This Row],[Date]], "mmm") -> mai | T162: =TEXT(coustomerdata5[[#This Row],[Date]], "aaaa") -> 2024
E163: 2024-05-14 | F163: P045 | G163: 5 | H163: Détail | I163: Espèces | J163: 0 | K163: =IFERROR(VLOOKUP(coustomerdata5[[#This Row],[Index]],database[],2,0),"") -> Palette de fards | L163: =IFERROR(VLOOKUP(coustomerdata5[[#This Row],[Index]],database[],3,0),"") -> Maquillage | M163: =IFERROR(VLOOKUP(coustomerdata5[[#This Row],[Index]],database[],4,0),"") -> g | N163: =IFERROR(VLOOKUP(coustomerdata5[[#This Row],[Index]],database[],5,0),"") -> 1440 | O163: =IFERROR(VLOOKUP(coustomerdata5[[#This Row],[Index]],database[],6,0),"") -> 2194.270807 | P163: =IFERROR(coustomerdata5[[#This Row],[Cout unitaire]]*coustomerdata5[[#This Row],[Quantite]],"") -> 7200 | Q163: =IFERROR(coustomerdata5[[#This Row],[Quantite]]*coustomerdata5[[#This Row],[Prix unitaire]]*(1-coustomerdata5[[#This Row],[Taux de reduction]]),"") -> 10971.35404 | R163: =DAY(coustomerdata5[[#This Row],[Date]]) -> 14 | S163: =TEXT(coustomerdata5[[#This Row],[Date]], "mmm") -> mai | T163: =TEXT(coustomerdata5[[#This Row],[Date]], "aaaa") -> 2024
E164: 2024-05-15 | F164: P040 | G164: 1 | H164: Grossiste | I164: Espèces | J164: 0 | K164: =IFERROR(VLOOKUP(coustomerdata5[[#This Row],[Index]],database[],2,0),"") -> Shampoing sec | L164: =IFERROR(VLOOKUP(coustomerdata5[[#This Row],[Index]],database[],3,0),"") -> Soins Capillaires | M164: =IFERROR(VLOOKUP(coustomerdata5[[#This Row],[Index]],database[],4,0),"") -> mL | N164: =IFERROR(VLOOKUP(coustomerdata5[[#This Row],[Index]],database[],5,0),"") -> 1456 | O164: =IFERROR(VLOOKUP(coustomerdata5[[#This Row],[Index]],database[],6,0),"") -> 2300.505128 | P164: =IFERROR(coustomerdata5[[#This Row],[Cout unitaire]]*coustomerdata5[[#This Row],[Quantite]],"") -> 1456 | Q164: =IFERROR(coustomerdata5[[#This Row],[Quantite]]*coustomerdata5[[#This Row],[Prix unitaire]]*(1-coustomerdata5[[#This Row],[Taux de reduction]]),"") -> 2300.505128 | R164: =DAY(coustomerdata5[[#This Row],[Date]]) -> 15 | S164: =TEXT(coustomerdata5[[#This Row],[Date]], "mmm") -> mai | T164: =TEXT(coustomerdata5[[#This Row],[Date]], "aaaa") -> 2024
E165: 2024-05-16 | F165: P029 | G165: 8 | H165: Grossiste | I165: Carte | J165: 0 | K165: =IFERROR(VLOOKUP(coustomerdata5[[#This Row],[Index]],database[],2,0),"") -> Palette de fards | L165: =IFERROR(VLOOKUP(coustomerdata5[[#This Row],[Index]],database[],3,0),"") -> Maquillage | M165: =IFERROR(VLOOKUP(coustomerdata5[[#This Row],[Index]],database[],4,0),"") -> g | N165: =IFERROR(VLOOKUP(coustomerdata5[[#This Row],[Index]],database[],5,0),"") -> 1416 | O165: =IFERROR(VLOOKUP(coustomerdata5[[#This Row],[Index]],database[],6,0),"") -> 2304.641933 | P165: =IFERROR(coustomerdata5[[#This Row],[Cout unitaire]]*coustomerdata5[[#This Row],[Quantite]],"") -> 11328 | Q165: =IFERROR(coustomerdata5[[#This Row],[Quantite]]*coustomerdata5[[#This Row],[Prix unitaire]]*(1-coustomerdata5[[#This Row],[Taux de reduction]]),"") -> 18437.13546 | R165: =DAY(coustomerdata5[[#This Row],[Date]]) -> 16 | S165: =TEXT(coustomerdata5[[#This Row],[Date]], "mmm") -> mai | T165: =TEXT(coustomerdata5[[#This Row],[Date]], "aaaa") -> 2024
E166: 2024-05-17 | F166: P004 | G166: 1 | H166: Détail | I166: Mobile Money | J166: 0 | K166: =IFERROR(VLOOKUP(coustomerdata5[[#This Row],[Index]],database[],2,0),"") -> Spray thermo-protecteur | L166: =IFERROR(VLOOKUP(coustomerdata5[[#This Row],[Index]],database[],3,0),"") -> Soins Capillaires | M166: =IFERROR(VLOOKUP(coustomerdata5[[#This Row],[Index]],database[],4,0),"") -> mL | N166: =IFERROR(VLOOKUP(coustomerdata5[[#This Row],[Index]],database[],5,0),"") -> 1372 | O166: =IFERROR(VLOOKUP(coustomerdata5[[#This Row],[Index]],database[],6,0),"") -> 2121.59816 | P166: =IFERROR(coustomerdata5[[#This Row],[Cout unitaire]]*coustomerdata5[[#This Row],[Quantite]],"") -> 1372 | Q166: =IFERROR(coustomerdata5[[#This Row],[Quantite]]*coustomerdata5[[#This Row],[Prix unitaire]]*(1-coustomerdata5[[#This Row],[Taux de reduction]]),"") -> 2121.59816 | R166: =DAY(coustomerdata5[[#This Row],[Date]]) -> 17 | S166: =TEXT(coustomerdata5[[#This Row],[Date]], "mmm") -> mai | T166: =TEXT(coustomerdata5[[#This Row],[Date]], "aaaa") -> 2024
E167: 2024-05-18 | F167: P011 | G167: 1 | H167: Grossiste | I167: Carte | J167: 0 | K167: =IFERROR(VLOOKUP(coustomerdata5[[#This Row],[Index]],database[],2,0),"") -> Eau micellaire | L167: =IFERROR(VLOOKUP(coustomerdata5[[#This Row],[Index]],database[],3,0),"") -> Soins du Visage | M167: =IFERROR(VLOOKUP(coustomerdata5[[#This Row],[Index]],database[],4,0),"") -> mL | N167: =IFERROR(VLOOKUP(coustomerdata5[[#This Row],[Index]],database[],5,0),"") -> 1489 | O167: =IFERROR(VLOOKUP(coustomerdata5[[#This Row],[Index]],database[],6,0),"") -> 2295.317797 | P167: =IFERROR(coustomerdata5[[#This Row],[Cout unitaire]]*coustomerdata5[[#This Row],[Quantite]],"") -> 1489 | Q167: =IFERROR(coustomerdata5[[#This Row],[Quantite]]*coustomerdata5[[#This Row],[Prix unitaire]]*(1-coustomerdata5[[#This Row],[Taux de reduction]]),"") -> 2295.317797 | R167: =DAY(coustomerdata5[[#This Row],[Date]]) -> 18 | S167: =TEXT(coustomerdata5[[#This Row],[Date]], "mmm") -> mai | T167: =TEXT(coustomerdata5[[#This Row],[Date]], "aaaa") -> 2024
E168: 2024-05-19 | F168: P038 | G168: 2 | H168: Grossiste | I168: Mobile Money | J168: 0 | K168: =IFERROR(VLOOKUP(coustomerdata5[[#This Row],[Index]],database[],2,0),"") -> Crème raffermissante | L168: =IFERROR(VLOOKUP(coustomerdata5[[#This Row],[Index]],database[],3,0),"") -> Soins du Corps | M168: =IFERROR(VLOOKUP(coustomerdata5[[#This Row],[Index]],database[],4,0),"") -> mL | N168: =IFERROR(VLOOKUP(coustomerdata5[[#This Row],[Index]],database[],5,0),"") -> 1307 | O168: =IFERROR(VLOOKUP(coustomerdata5[[#This Row],[Index]],database[],6,0),"") -> 2214.617178 | P168: =IFERROR(coustomerdata5[[#This Row],[Cout unitaire]]*coustomerdata5[[#This Row],[Quantite]],"") -> 2614 | Q168: =IFERROR(coustomerdata5[[#This Row],[Quantite]]*coustomerdata5[[#This Row],[Prix unitaire]]*(1-coustomerdata5[[#This Row],[Taux de reduction]]),"") -> 4429.234356 | R168: =DAY(coustomerdata5[[#This Row],[Date]]) -> 19 | S168: =TEXT(coustomerdata5[[#This Row],[Date]], "mmm") -> mai | T168: =TEXT(coustomerdata5[[#This Row],[Date]], "aaaa") -> 2024
E169: 2024-05-20 | F169: P043 | G169: 2 | H169: Détail | I169: Espèces | J169: 0 | K169: =IFERROR(VLOOKUP(coustomerdata5[[#This Row],[Index]],database[],2,0),"") -> Crayon à sourcils | L169: =IFERROR(VLOOKUP(coustomerdata5[[#This Row],[Index]],database[],3,0),"") -> Maquillage | M169: =IFERROR(VLOOKUP(coustomerdata5[[#This Row],[Index]],database[],4,0),"") -> g | N169: =IFERROR(VLOOKUP(coustomerdata5[[#This Row],[Index]],database[],5,0),"") -> 1440 | O169: =IFERROR(VLOOKUP(coustomerdata5[[#This Row],[Index]],database[],6,0),"") -> 2304.641933 | P169: =IFERROR(coustomerdata5[[#This Row],[Cout unitaire]]*coustomerdata5[[#This Row],[Quantite]],"") -> 2880 | Q169: =IFERROR(coustomerdata5[[#This Row],[Quantite]]*coustomerdata5[[#This Row],[Prix unitaire]]*(1-coustomerdata5[[#This Row],[Taux de reduction]]),"") -> 4609.283866 | R169: =DAY(coustomerdata5[[#This Row],[Date]]) -> 20 | S169: =TEXT(coustomerdata5[[#This Row],[Date]], "mmm") -> mai | T169: =TEXT(coustomerdata5[[#This Row],[Date]], "aaaa") -> 2024
E170: 2024-05-21 | F170: P017 | G170: 6 | H170: Grossiste | I170: Carte | J170: 0 | K170: =IFERROR(VLOOKUP(coustomerdata5[[#This Row],[Index]],database[],2,0),"") -> Spray rafraîchissant | L170: =IFERROR(VLOOKUP(coustomerdata5[[#This Row],[Index]],database[],3,0),"") -> Soins du Corps | M170: =IFERROR(VLOOKUP(coustomerdata5[[#This Row],[Index]],database[],4,0),"") -> mL | N170: =IFERROR(VLOOKUP(coustomerdata5[[#This Row],[Index]],database[],5,0),"") -> 1440 | O170: =IFERROR(VLOOKUP(coustomerdata5[[#This Row],[Index]],database[],6,0),"") -> 2194.270807 | P170: =IFERROR(coustomerdata5[[#This Row],[Cout unitaire]]*coustomerdata5[[#This Row],[Quantite]],"") -> 8640 | Q170: =IFERROR(coustomerdata5[[#This Row],[Quantite]]*coustomerdata5[[#This Row],[Prix unitaire]]*(1-coustomerdata5[[#This Row],[Taux de reduction]]),"") -> 13165.62484 | R170: =DAY(coustomerdata5[[#This Row],[Date]]) -> 21 | S170: =TEXT(coustomerdata5[[#This Row],[Date]], "mmm") -> mai | T170: =TEXT(coustomerdata5[[#This Row],[Date]], "aaaa") -> 2024
E171: 2024-05-22 | F171: P006 | G171: 7 | H171: Grossiste | I171: Carte | J171: 0 | K171: =IFERROR(VLOOKUP(coustomerdata5[[#This Row],[Index]],database[],2,0),"") -> Déodorant naturel | L171: =IFERROR(VLOOKUP(coustomerdata5[[#This Row],[Index]],database[],3,0),"") -> Soins du Corps | M171: =IFERROR(VLOOKUP(coustomerdata5[[#This Row],[Index]],database[],4,0),"") -> mL | N171: =IFERROR(VLOOKUP(coustomerdata5[[#This Row],[Index]],database[],5,0),"") -> 1440 | O171: =IFERROR(VLOOKUP(coustomerdata5[[#This Row],[Index]],database[],6,0),"") -> 2318.392529 | P171: =IFERROR(coustomerdata5[[#This Row],[Cout unitaire]]*coustomerdata5[[#This Row],[Quantite]],"") -> 10080 | Q171: =IFERROR(coustomerdata5[[#This Row],[Quantite]]*coustomerdata5[[#This Row],[Prix unitaire]]*(1-coustomerdata5[[#This Row],[Taux de reduction]]),"") -> 16228.7477 | R171: =DAY(coustomerdata5[[#This Row],[Date]]) -> 22 | S171: =TEXT(coustomerdata5[[#This Row],[Date]], "mmm") -> mai | T171: =TEXT(coustomerdata5[[#This Row],[Date]], "aaaa") -> 2024
E172: 2024-05-23 | F172: P032 | G172: 5 | H172: Détail | I172: Espèces | J172: 0 | K172: =IFERROR(VLOOKUP(coustomerdata5[[#This Row],[Index]],database[],2,0),"") -> Fond de teint | L172: =IFERROR(VLOOKUP(coustomerdata5[[#This Row],[Index]],database[],3,0),"") -> Maquillage | M172: =IFERROR(VLOOKUP(coustomerdata5[[#This Row],[Index]],database[],4,0),"") -> mL | N172: =IFERROR(VLOOKUP(coustomerdata5[[#This Row],[Index]],database[],5,0),"") -> 1307 | O172: =IFERROR(VLOOKUP(coustomerdata5[[#This Row],[Index]],database[],6,0),"") -> 2121.59816 | P172: =IFERROR(coustomerdata5[[#This Row],[Cout unitaire]]*coustomerdata5[[#This Row],[Quantite]],"") -> 6535 | Q172: =IFERROR(coustomerdata5[[#This Row],[Quantite]]*coustomerdata5[[#This Row],[Prix unitaire]]*(1-coustomerdata5[[#This Row],[Taux de reduction]]),"") -> 10607.9908 | R172: =DAY(coustomerdata5[[#This Row],[Date]]) -> 23 | S172: =TEXT(coustomerdata5[[#This Row],[Date]], "mmm") -> mai | T172: =TEXT(coustomerdata5[[#This Row],[Date]], "aaaa") -> 2024
E173: 2024-05-24 | F173: P033 | G173: 1 | H173: Détail | I173: Carte | J173: 0 | K173: =IFERROR(VLOOKUP(coustomerdata5[[#This Row],[Index]],database[],2,0),"") -> Gommage exfoliant | L173: =IFERROR(VLOOKUP(coustomerdata5[[#This Row],[Index]],database[],3,0),"") -> Soins du Visage | M173: =IFERROR(VLOOKUP(coustomerdata5[[#This Row],[Index]],database[],4,0),"") -> g | N173: =IFERROR(VLOOKUP(coustomerdata5[[#This Row],[Index]],database[],5,0),"") -> 1456 | O173: =IFERROR(VLOOKUP(coustomerdata5[[#This Row],[Index]],database[],6,0),"") -> 2349.156481 | P173: =IFERROR(coustomerdata5[[#This Row],[Cout unitaire]]*coustomerdata5[[#This Row],[Quantite]],"") -> 1456 | Q173: =IFERROR(coustomerdata5[[#This Row],[Quantite]]*coustomerdata5[[#This Row],[Prix unitaire]]*(1-coustomerdata5[[#This Row],[Taux de reduction]]),"") -> 2349.156481 | R173: =DAY(coustomerdata5[[#This Row],[Date]]) -> 24 | S173: =TEXT(coustomerdata5[[#This Row],[Date]], "mmm") -> mai | T173: =TEXT(coustomerdata5[[#This Row],[Date]], "aaaa") -> 2024
E174: 2024-05-25 | F174: P016 | G174: 1 | H174: Détail | I174: Carte | J174: 0 | K174: =IFERROR(VLOOKUP(coustomerdata5[[#This Row],[Index]],database[],2,0),"") -> BB crème | L174: =IFERROR(VLOOKUP(coustomerdata5[[#This Row],[Index]],database[],3,0),"") -> Soins du Visage | M174: =IFERROR(VLOOKUP(coustomerdata5[[#This Row],[Index]],database[],4,0),"") -> mL | N174: =IFERROR(VLOOKUP(coustomerdata5[[#This Row],[Index]],database[],5,0),"") -> 1307 | O174: =IFERROR(VLOOKUP(coustomerdata5[[#This Row],[Index]],database[],6,0),"") -> 2285.529633 | P174: =IFERROR(coustomerdata5[[#This Row],[Cout unitaire]]*coustomerdata5[[#This Row],[Quantite]],"") -> 1307 | Q174: =IFERROR(coustomerdata5[[#This Row],[Quantite]]*coustomerdata5[[#This Row],[Prix unitaire]]*(1-coustomerdata5[[#This Row],[Taux de reduction]]),"") -> 2285.529633 | R174: =DAY(coustomerdata5[[#This Row],[Date]]) -> 25 | S174: =TEXT(coustomerdata5[[#This Row],[Date]], "mmm") -> mai | T174: =TEXT(coustomerdata5[[#This Row],[Date]], "aaaa") -> 2024
E175: 2024-05-26 | F175: P039 | G175: 3 | H175: Grossiste | I175: Mobile Money | J175: 0 | K175: =IFERROR(VLOOKUP(coustomerdata5[[#This Row],[Index]],database[],2,0),"") -> Crème pour les mains | L175: =IFERROR(VLOOKUP(coustomerdata5[[#This Row],[Index]],database[],3,0),"") -> Soins du Corps | M175: =IFERROR(VLOOKUP(coustomerdata5[[#This Row],[Index]],database[],4,0),"") -> mL | N175: =IFERROR(VLOOKUP(coustomerdata5[[#This Row],[Index]],database[],5,0),"") -> 1440 | O175: =IFERROR(VLOOKUP(coustomerdata5[[#This Row],[Index]],database[],6,0),"") -> 2295.317797 | P175: =IFERROR(coustomerdata5[[#This Row],[Cout unitaire]]*coustomerdata5[[#This Row],[Quantite]],"") -> 4320 | Q175: =IFERROR(coustomerdata5[[#This Row],[Quantite]]*coustomerdata5[[#This Row],[Prix unitaire]]*(1-coustomerdata5[[#This Row],[Taux de reduction]]),"") -> 6885.95339 | R175: =DAY(coustomerdata5[[#This Row],[Date]]) -> 26 | S175: =TEXT(coustomerdata5[[#This Row],[Date]], "mmm") -> mai | T175: =TEXT(coustomerdata5[[#This Row],[Date]], "aaaa") -> 2024
E176: 2024-05-27 | F176: P032 | G176: 2 | H176: Détail | I176: Carte | J176: 0 | K176: =IFERROR(VLOOKUP(coustomerdata5[[#This Row],[Index]],database[],2,0),"") -> Fond de teint | L176: =IFERROR(VLOOKUP(coustomerdata5[[#This Row],[Index]],database[],3,0),"") -> Maquillage | M176: =IFERROR(VLOOKUP(coustomerdata5[[#This Row],[Index]],database[],4,0),"") -> mL | N176: =IFERROR(VLOOKUP(coustomerdata5[[#This Row],[Index]],database[],5,0),"") -> 1307 | O176: =IFERROR(VLOOKUP(coustomerdata5[[#This Row],[Index]],database[],6,0),"") -> 2121.59816 | P176: =IFERROR(coustomerdata5[[#This Row],[Cout unitaire]]*coustomerdata5[[#This Row],[Quantite]],"") -> 2614 | Q176: =IFERROR(coustomerdata5[[#This Row],[Quantite]]*coustomerdata5[[#This Row],[Prix unitaire]]*(1-coustomerdata5[[#This Row],[Taux de reduction]]),"") -> 4243.196319 | R176: =DAY(coustomerdata5[[#This Row],[Date]]) -> 27 | S176: =TEXT(coustomerdata5[[#This Row],[Date]], "mmm") -> mai | T176: =TEXT(coustomerdata5[[#This Row],[Date]], "aaaa") -> 2024
E177: 2024-05-28 | F177: P005 | G177: 5 | H177: Grossiste | I177: Mobile Money | J177: 0 | K177: =IFERROR(VLOOKUP(coustomerdata5[[#This Row],[Index]],database[],2,0),"") -> Sérum anti-âge | L177: =IFERROR(VLOOKUP(coustomerdata5[[#This Row],[Index]],database[],3,0),"") -> Soins du Visage | M177: =IFERROR(VLOOKUP(coustomerdata5[[#This Row],[Index]],database[],4,0),"") -> mL | N177: =IFERROR(VLOOKUP(coustomerdata5[[#This Row],[Index]],database[],5,0),"") -> 1372 | O177: =IFERROR(VLOOKUP(coustomerdata5[[#This Row],[Index]],database[],6,0),"") -> 2349.156481 | P177: =IFERROR(coustomerdata5[[#This Row],[Cout unitaire]]*coustomerdata5[[#This Row],[Quantite]],"") -> 6860 | Q177: =IFERROR(coustomerdata5[[#This Row],[Quantite]]*coustomerdata5[[#This Row],[Prix unitaire]]*(1-coustomerdata5[[#This Row],[Taux de reduction]]),"") -> 11745.78241 | R177: =DAY(coustomerdata5[[#This Row],[Date]]) -> 28 | S177: =TEXT(coustomerdata5[[#This Row],[Date]], "mmm") -> mai | T177: =TEXT(coustomerdata5[[#This Row],[Date]], "aaaa") -> 2024
E178: 2024-05-29 | F178: P033 | G178: 6 | H178: Grossiste | I178: Mobile Money | J178: 0 | K178: =IFERROR(VLOOKUP(coustomerdata5[[#This Row],[Index]],database[],2,0),"") -> Gommage exfoliant | L178: =IFERROR(VLOOKUP(coustomerdata5[[#This Row],[Index]],database[],3,0),"") -> Soins du Visage | M178: =IFERROR(VLOOKUP(coustomerdata5[[#This Row],[Index]],database[],4,0),"") -> g | N178: =IFERROR(VLOOKUP(coustomerdata5[[#This Row],[Index]],database[],5,0),"") -> 1456 | O178: =IFERROR(VLOOKUP(coustomerdata5[[#This Row],[Index]],database[],6,0),"") -> 2349.156481 | P178: =IFERROR(coustomerdata5[[#This Row],[Cout unitaire]]*coustomerdata5[[#This Row],[Quantite]],"") -> 8736 | Q178: =IFERROR(coustomerdata5[[#This Row],[Quantite]]*coustomerdata5[[#This Row],[Prix unitaire]]*(1-coustomerdata5[[#This Row],[Taux de reduction]]),"") -> 14094.93889 | R178: =DAY(coustomerdata5[[#This Row],[Date]]) -> 29 | S178: =TEXT(coustomerdata5[[#This Row],[Date]], "mmm") -> mai | T178: =TEXT(coustomerdata5[[#This Row],[Date]], "aaaa") -> 2024
E179: 2024-05-30 | F179: P045 | G179: 7 | H179: Grossiste | I179: Espèces | J179: 0 | K179: =IFERROR(VLOOKUP(coustomerdata5[[#This Row],[Index]],database[],2,0),"") -> Palette de fards | L179: =IFERROR(VLOOKUP(coustomerdata5[[#This Row],[Index]],database[],3,0),"") -> Maquillage | M179: =IFERROR(VLOOKUP(coustomerdata5[[#This Row],[Index]],database[],4,0),"") -> g | N179: =IFERROR(VLOOKUP(coustomerdata5[[#This Row],[Index]],database[],5,0),"") -> 1440 | O179: =IFERROR(VLOOKUP(coustomerdata5[[#This Row],[Index]],database[],6,0),"") -> 2194.270807 | P179: =IFERROR(coustomerdata5[[#This Row],[Cout unitaire]]*coustomerdata5[[#This Row],[Quantite]],"") -> 10080 | Q179: =IFERROR(coustomerdata5[[#This Row],[Quantite]]*coustomerdata5[[#This Row],[Prix unitaire]]*(1-coustomerdata5[[#This Row],[Taux de reduction]]),"") -> 15359.89565 | R179: =DAY(coustomerdata5[[#This Row],[Date]]) -> 30 | S179: =TEXT(coustomerdata5[[#This Row],[Date]], "mmm") -> mai | T179: =TEXT(coustomerdata5[[#This Row],[Date]], "aaaa") -> 2024
E180: 2024-05-31 | F180: P048 | G180: 4 | H180: Détail | I180: Espèces | J180: 0 | K180: =IFERROR(VLOOKUP(coustomerdata5[[#This Row],[Index]],database[],2,0),"") -> Cire coiffante | L180: =IFERROR(VLOOKUP(coustomerdata5[[#This Row],[Index]],database[],3,0),"") -> Soins Capillaires | M180: =IFERROR(VLOOKUP(coustomerdata5[[#This Row],[Index]],database[],4,0),"") -> g | N180: =IFERROR(VLOOKUP(coustomerdata5[[#This Row],[Index]],database[],5,0),"") -> 1347 | O180: =IFERROR(VLOOKUP(coustomerdata5[[#This Row],[Index]],database[],6,0),"") -> 2318.392529 | P180: =IFERROR(coustomerdata5[[#This Row],[Cout unitaire]]*coustomerdata5[[#This Row],[Quantite]],"") -> 5388 | Q180: =IFERROR(coustomerdata5[[#This Row],[Quantite]]*coustomerdata5[[#This Row],[Prix unitaire]]*(1-coustomerdata5[[#This Row],[Taux de reduction]]),"") -> 9273.570115 | R180: =DAY(coustomerdata5[[#This Row],[Date]]) -> 31 | S180: =TEXT(coustomerdata5[[#This Row],[Date]], "mmm") -> mai | T180: =TEXT(coustomerdata5[[#This Row],[Date]], "aaaa") -> 2024
E181: 2024-06-01 | F181: P050 | G181: 7 | H181: Détail | I181: Carte | J181: 0 | K181: =IFERROR(VLOOKUP(coustomerdata5[[#This Row],[Index]],database[],2,0),"") -> Poudre libre fixante | L181: =IFERROR(VLOOKUP(coustomerdata5[[#This Row],[Index]],database[],3,0),"") -> Maquillage | M181: =IFERROR(VLOOKUP(coustomerdata5[[#This Row],[Index]],database[],4,0),"") -> g | N181: =IFERROR(VLOOKUP(coustomerdata5[[#This Row],[Index]],database[],5,0),"") -> 1438 | O181: =IFERROR(VLOOKUP(coustomerdata5[[#This Row],[Index]],database[],6,0),"") -> 2290.019394 | P181: =IFERROR(coustomerdata5[[#This Row],[Cout unitaire]]*coustomerdata5[[#This Row],[Quantite]],"") -> 10066 | Q181: =IFERROR(coustomerdata5[[#This Row],[Quantite]]*coustomerdata5[[#This Row],[Prix unitaire]]*(1-coustomerdata5[[#This Row],[Taux de reduction]]),"") -> 16030.13576 | R181: =DAY(coustomerdata5[[#This Row],[Date]]) -> 1 | S181: =TEXT(coustomerdata5[[#This Row],[Date]], "mmm") -> juin | T181: =TEXT(coustomerdata5[[#This Row],[Date]], "aaaa") -> 2024
E182: 2024-06-02 | F182: P018 | G182: 8 | H182: Grossiste | I182: Espèces | J182: 0 | K182: =IFERROR(VLOOKUP(coustomerdata5[[#This Row],[Index]],database[],2,0),"") -> Rouge à lèvres mat | L182: =IFERROR(VLOOKUP(coustomerdata5[[#This Row],[Index]],database[],3,0),"") -> Maquillage | M182: =IFERROR(VLOOKUP(coustomerdata5[[#This Row],[Index]],database[],4,0),"") -> g | N182: =IFERROR(VLOOKUP(coustomerdata5[[#This Row],[Index]],database[],5,0),"") -> 1372 | O182: =IFERROR(VLOOKUP(coustomerdata5[[#This Row],[Index]],database[],6,0),"") -> 2121.59816 | P182: =IFERROR(coustomerdata5[[#This Row],[Cout unitaire]]*coustomerdata5[[#This Row],[Quantite]],"") -> 10976 | Q182: =IFERROR(coustomerdata5[[#This Row],[Quantite]]*coustomerdata5[[#This Row],[Prix unitaire]]*(1-coustomerdata5[[#This Row],[Taux de reduction]]),"") -> 16972.78528 | R182: =DAY(coustomerdata5[[#This Row],[Date]]) -> 2 | S182: =TEXT(coustomerdata5[[#This Row],[Date]], "mmm") -> juin | T182: =TEXT(coustomerdata5[[#This Row],[Date]], "aaaa") -> 2024
E183: 2024-06-03 | F183: P007 | G183: 1 | H183: Détail | I183: Carte | J183: 0 | K183: =IFERROR(VLOOKUP(coustomerdata5[[#This Row],[Index]],database[],2,0),"") -> Mousse volume | L183: =IFERROR(VLOOKUP(coustomerdata5[[#This Row],[Index]],database[],3,0),"") -> Soins Capillaires | M183: =IFERROR(VLOOKUP(coustomerdata5[[#This Row],[Index]],database[],4,0),"") -> mL | N183: =IFERROR(VLOOKUP(coustomerdata5[[#This Row],[Index]],database[],5,0),"") -> 1479 | O183: =IFERROR(VLOOKUP(coustomerdata5[[#This Row],[Index]],database[],6,0),"") -> 2313.735015 | P183: =IFERROR(coustomerdata5[[#This Row],[Cout unitaire]]*coustomerdata5[[#This Row],[Quantite]],"") -> 1479 | Q183: =IFERROR(coustomerdata5[[#This Row],[Quantite]]*coustomerdata5[[#This Row],[Prix unitaire]]*(1-coustomerdata5[[#This Row],[Taux de reduction]]),"") -> 2313.735015 | R183: =DAY(coustomerdata5[[#This Row],[Date]]) -> 3 | S183: =TEXT(coustomerdata5[[#This Row],[Date]], "mmm") -> juin | T183: =TEXT(coustomerdata5[[#This Row],[Date]], "aaaa") -> 2024
E184: 2024-06-04 | F184: P022 | G184: 6 | H184: Grossiste | I184: Espèces | J184: 0 | K184: =IFERROR(VLOOKUP(coustomerdata5[[#This Row],[Index]],database[],2,0),"") -> Masque capillaire | L184: =IFERROR(VLOOKUP(coustomerdata5[[#This Row],[Index]],database[],3,0),"") -> Soins Capillaires | M184: =IFERROR(VLOOKUP(coustomerdata5[[#This Row],[Index]],database[],4,0),"") -> mL | N184: =IFERROR(VLOOKUP(coustomerdata5[[#This Row],[Index]],database[],5,0),"") -> 1307 | O184: =IFERROR(VLOOKUP(coustomerdata5[[#This Row],[Index]],database[],6,0),"") -> 2290.019394 | P184: =IFERROR(coustomerdata5[[#This Row],[Cout unitaire]]*coustomerdata5[[#This Row],[Quantite]],"") -> 7842 | Q184: =IFERROR(coustomerdata5[[#This Row],[Quantite]]*coustomerdata5[[#This Row],[Prix unitaire]]*(1-coustomerdata5[[#This Row],[Taux de reduction]]),"") -> 13740.11636 | R184: =DAY(coustomerdata5[[#This Row],[Date]]) -> 4 | S184: =TEXT(coustomerdata5[[#This Row],[Date]], "mmm") -> juin | T184: =TEXT(coustomerdata5[[#This Row],[Date]], "aaaa") -> 2024
E185: 2024-06-05 | F185: P021 | G185: 8 | H185: Grossiste | I185: Mobile Money | J185: 0 | K185: =IFERROR(VLOOKUP(coustomerdata5[[#This Row],[Index]],database[],2,0),"") -> Huile nourrissante | L185: =IFERROR(VLOOKUP(coustomerdata5[[#This Row],[Index]],database[],3,0),"") -> Soins du Corps | M185: =IFERROR(VLOOKUP(coustomerdata5[[#This Row],[Index]],database[],4,0),"") -> mL | N185: =IFERROR(VLOOKUP(coustomerdata5[[#This Row],[Index]],database[],5,0),"") -> 1489 | O185: =IFERROR(VLOOKUP(coustomerdata5[[#This Row],[Index]],database[],6,0),"") -> 2313.735015 | P185: =IFERROR(coustomerdata5[[#This Row],[Cout unitaire]]*coustomerdata5[[#This Row],[Quantite]],"") -> 11912 | Q185: =IFERROR(coustomerdata5[[#This Row],[Quantite]]*coustomerdata5[[#This Row],[Prix unitaire]]*(1-coustomerdata5[[#This Row],[Taux de reduction]]),"") -> 18509.88012 | R185: =DAY(coustomerdata5[[#This Row],[Date]]) -> 5 | S185: =TEXT(coustomerdata5[[#This Row],[Date]], "mmm") -> juin | T185: =TEXT(coustomerdata5[[#This Row],[Date]], "aaaa") -> 2024
E186: 2024-06-06 | F186: P044 | G186: 5 | H186: Détail | I186: Mobile Money | J186: 0 | K186: =IFERROR(VLOOKUP(coustomerdata5[[#This Row],[Index]],database[],2,0),"") -> Spray thermo-protecteur | L186: =IFERROR(VLOOKUP(coustomerdata5[[#This Row],[Index]],database[],3,0),"") -> Soins Capillaires | M186: =IFERROR(VLOOKUP(coustomerdata5[[#This Row],[Index]],database[],4,0),"") -> mL | N186: =IFERROR(VLOOKUP(coustomerdata5[[#This Row],[Index]],database[],5,0),"") -> 1423 | O186: =IFERROR(VLOOKUP(coustomerdata5[[#This Row],[Index]],database[],6,0),"") -> 2285.529633 | P186: =IFERROR(coustomerdata5[[#This Row],[Cout unitaire]]*coustomerdata5[[#This Row],[Quantite]],"") -> 7115 | Q186: =IFERROR(coustomerdata5[[#This Row],[Quantite]]*coustomerdata5[[#This Row],[Prix unitaire]]*(1-coustomerdata5[[#This Row],[Taux de reduction]]),"") -> 11427.64816 | R186: =DAY(coustomerdata5[[#This Row],[Date]]) -> 6 | S186: =TEXT(coustomerdata5[[#This Row],[Date]], "mmm") -> juin | T186: =TEXT(coustomerdata5[[#This Row],[Date]], "aaaa") -> 2024
E187: 2024-06-07 | F187: P018 | G187: 4 | H187: Grossiste | I187: Espèces | J187: 0 | K187: =IFERROR(VLOOKUP(coustomerdata5[[#This Row],[Index]],database[],2,0),"") -> Rouge à lèvres mat | L187: =IFERROR(VLOOKUP(coustomerdata5[[#This Row],[Index]],database[],3,0),"") -> Maquillage | M187: =IFERROR(VLOOKUP(coustomerdata5[[#This Row],[Index]],database[],4,0),"") -> g | N187: =IFERROR(VLOOKUP(coustomerdata5[[#This Row],[Index]],database[],5,0),"") -> 1372 | O187: =IFERROR(VLOOKUP(coustomerdata5[[#This Row],[Index]],database[],6,0),"") -> 2121.59816 | P187: =IFERROR(coustomerdata5[[#This Row],[Cout unitaire]]*coustomerdata5[[#This Row],[Quantite]],"") -> 5488 | Q187: =IFERROR(coustomerdata5[[#This Row],[Quantite]]*coustomerdata5[[#This Row],[Prix unitaire]]*(1-coustomerdata5[[#This Row],[Taux de reduction]]),"") -> 8486.392638 | R187: =DAY(coustomerdata5[[#This Row],[Date]]) -> 7 | S187: =TEXT(coustomerdata5[[#This Row],[Date]], "mmm") -> juin | T187: =TEXT(coustomerdata5[[#This Row],[Date]], "aaaa") -> 2024
E188: 2024-06-08 | F188: P018 | G188: 2 | H188: Grossiste | I188: Espèces | J188: 0 | K188: =IFERROR(VLOOKUP(coustomerdata5[[#This Row],[Index]],database[],2,0),"") -> Rouge à lèvres mat | L188: =IFERROR(VLOOKUP(coustomerdata5[[#This Row],[Index]],database[],3,0),"") -> Maquillage | M188: =IFERROR(VLOOKUP(coustomerdata5[[#This Row],[Index]],database[],4,0),"") -> g | N188: =IFERROR(VLOOKUP(coustomerdata5[[#This Row],[Index]],database[],5,0),"") -> 1372 | O188: =IFERROR(VLOOKUP(coustomerdata5[[#This Row],[Index]],database[],6,0),"") -> 2121.59816 | P188: =IFERROR(coustomerdata5[[#This Row],[Cout unitaire]]*coustomerdata5[[#This Row],[Quantite]],"") -> 2744 | Q188: =IFERROR(coustomerdata5[[#This Row],[Quantite]]*coustomerdata5[[#This Row],[Prix unitaire]]*(1-coustomerdata5[[#This Row],[Taux de reduction]]),"") -> 4243.196319 | R188: =DAY(coustomerdata5[[#This Row],[Date]]) -> 8 | S188: =TEXT(coustomerdata5[[#This Row],[Date]], "mmm") -> juin | T188: =TEXT(coustomerdata5[[#This Row],[Date]], "aaaa") -> 2024
E189: 2024-06-09 | F189: P025 | G189: 6 | H189: Grossiste | I189: Carte | J189: 0 | K189: =IFERROR(VLOOKUP(coustomerdata5[[#This Row],[Index]],database[],2,0),"") -> Cire coiffante | L189: =IFERROR(VLOOKUP(coustomerdata5[[#This Row],[Index]],database[],3,0),"") -> Soins Capillaires | M189: =IFERROR(VLOOKUP(coustomerdata5[[#This Row],[Index]],database[],4,0),"") -> g | N189: =IFERROR(VLOOKUP(coustomerdata5[[#This Row],[Index]],database[],5,0),"") -> 1440 | O189: =IFERROR(VLOOKUP(coustomerdata5[[#This Row],[Index]],database[],6,0),"") -> 2295.317797 | P189: =IFERROR(coustomerdata5[[#This Row],[Cout unitaire]]*coustomerdata5[[#This Row],[Quantite]],"") -> 8640 | Q189: =IFERROR(coustomerdata5[[#This Row],[Quantite]]*coustomerdata5[[#This Row],[Prix unitaire]]*(1-coustomerdata5[[#This Row],[Taux de reduction]]),"") -> 13771.90678 | R189: =DAY(coustomerdata5[[#This Row],[Date]]) -> 9 | S189: =TEXT(coustomerdata5[[#This Row],[Date]], "mmm") -> juin | T189: =TEXT(coustomerdata5[[#This Row],[Date]], "aaaa") -> 2024
E190: 2024-06-10 | F190: P021 | G190: 6 | H190: Détail | I190: Mobile Money | J190: 0 | K190: =IFERROR(VLOOKUP(coustomerdata5[[#This Row],[Index]],database[],2,0),"") -> Huile nourrissante | L190: =IFERROR(VLOOKUP(coustomerdata5[[#This Row],[Index]],database[],3,0),"") -> Soins du Corps | M190: =IFERROR(VLOOKUP(coustomerdata5[[#This Row],[Index]],database[],4,0),"") -> mL | N190: =IFERROR(VLOOKUP(coustomerdata5[[#This Row],[Index]],database[],5,0),"") -> 1489 | O190: =IFERROR(VLOOKUP(coustomerdata5[[#This Row],[Index]],database[],6,0),"") -> 2313.735015 | P190: =IFERROR(coustomerdata5[[#This Row],[Cout unitaire]]*coustomerdata5[[#This Row],[Quantite]],"") -> 8934 | Q190: =IFERROR(coustomerdata5[[#This Row],[Quantite]]*coustomerdata5[[#This Row],[Prix unitaire]]*(1-coustomerdata5[[#This Row],[Taux de reduction]]),"") -> 13882.41009 | R190: =DAY(coustomerdata5[[#This Row],[Date]]) -> 10 | S190: =TEXT(coustomerdata5[[#This Row],[Date]], "mmm") -> juin | T190: =TEXT(coustomerdata5[[#This Row],[Date]], "aaaa") -> 2024
E191: 2024-06-11 | F191: P021 | G191: 1 | H191: Détail | I191: Mobile Money | J191: 0 | K191: =IFERROR(VLOOKUP(coustomerdata5[[#This Row],[Index]],database[],2,0),"") -> Huile nourrissante | L191: =IFERROR(VLOOKUP(coustomerdata5[[#This Row],[Index]],database[],3,0),"") -> Soins du Corps | M191: =IFERROR(VLOOKUP(coustomerdata5[[#This Row],[Index]],database[],4,0),"") -> mL | N191: =IFERROR(VLOOKUP(coustomerdata5[[#This Row],[Index]],database[],5,0),"") -> 1489 | O191: =IFERROR(VLOOKUP(coustomerdata5[[#This Row],[Index]],database[],6,0),"") -> 2313.735015 | P191: =IFERROR(coustomerdata5[[#This Row],[Cout unitaire]]*coustomerdata5[[#This Row],[Quantite]],"") -> 1489 | Q191: =IFERROR(coustomerdata5[[#This Row],[Quantite]]*coustomerdata5[[#This Row],[Prix unitaire]]*(1-coustomerdata5[[#This Row],[Taux de reduction]]),"") -> 2313.735015 | R191: =DAY(coustomerdata5[[#This Row],[Date]]) -> 11 | S191: =TEXT(coustomerdata5[[#This Row],[Date]], "mmm") -> juin | T191: =TEXT(coustomerdata5[[#This Row],[Date]], "aaaa") -> 2024
E192: 2024-06-12 | F192: P008 | G192: 9 | H192: Détail | I192: Espèces | J192: 0 | K192: =IFERROR(VLOOKUP(coustomerdata5[[#This Row],[Index]],database[],2,0),"") -> Lotion tonique | L192: =IFERROR(VLOOKUP(coustomerdata5[[#This Row],[Index]],database[],3,0),"") -> Soins du Visage | M192: =IFERROR(VLOOKUP(coustomerdata5[[#This Row],[Index]],database[],4,0),"") -> mL | N192: =IFERROR(VLOOKUP(coustomerdata5[[#This Row],[Index]],database[],5,0),"") -> 1489 | O192: =IFERROR(VLOOKUP(coustomerdata5[[#This Row],[Index]],database[],6,0),"") -> 2290.019394 | P192: =IFERROR(coustomerdata5[[#This Row],[Cout unitaire]]*coustomerdata5[[#This Row],[Quantite]],"") -> 13401 | Q192: =IFERROR(coustomerdata5[[#This Row],[Quantite]]*coustomerdata5[[#This Row],[Prix unitaire]]*(1-coustomerdata5[[#This Row],[Taux de reduction]]),"") -> 20610.17455 | R192: =DAY(coustomerdata5[[#This Row],[Date]]) -> 12 | S192: =TEXT(coustomerdata5[[#This Row],[Date]], "mmm") -> juin | T192: =TEXT(coustomerdata5[[#This Row],[Date]], "aaaa") -> 2024
E193: 2024-06-13 | F193: P011 | G193: 6 | H193: Détail | I193: Espèces | J193: 0 | K193: =IFERROR(VLOOKUP(coustomerdata5[[#This Row],[Index]],database[],2,0),"") -> Eau micellaire | L193: =IFERROR(VLOOKUP(coustomerdata5[[#This Row],[Index]],database[],3,0),"") -> Soins du Visage | M193: =IFERROR(VLOOKUP(coustomerdata5[[#This Row],[Index]],database[],4,0),"") -> mL | N193: =IFERROR(VLOOKUP(coustomerdata5[[#This Row],[Index]],database[],5,0),"") -> 1489 | O193: =IFERROR(VLOOKUP(coustomerdata5[[#This Row],[Index]],database[],6,0),"") -> 2295.317797 | P193: =IFERROR(coustomerdata5[[#This Row],[Cout unitaire]]*coustomerdata5[[#This Row],[Quantite]],"") -> 8934 | Q193: =IFERROR(coustomerdata5[[#This Row],[Quantite]]*coustomerdata5[[#This Row],[Prix unitaire]]*(1-coustomerdata5[[#This Row],[Taux de reduction]]),"") -> 13771.90678 | R193: =DAY(coustomerdata5[[#This Row],[Date]]) -> 13 | S193: =TEXT(coustomerdata5[[#This Row],[Date]], "mmm") -> juin | T193: =TEXT(coustomerdata5[[#This Row],[Date]], "aaaa") -> 2024
E194: 2024-06-14 | F194: P041 | G194: 3 | H194: Grossiste | I194: Espèces | J194: 0 | K194: =IFERROR(VLOOKUP(coustomerdata5[[#This Row],[Index]],database[],2,0),"") -> Gel douche hydratant | L194: =IFERROR(VLOOKUP(coustomerdata5[[#This Row],[Index]],database[],3,0),"") -> Soins du Corps | M194: =IFERROR(VLOOKUP(coustomerdata5[[#This Row],[Index]],database[],4,0),"") -> mL | N194: =IFERROR(VLOOKUP(coustomerdata5[[#This Row],[Index]],database[],5,0),"") -> 1456 | O194: =IFERROR(VLOOKUP(coustomerdata5[[#This Row],[Index]],database[],6,0),"") -> 2198.207154 | P194: =IFERROR(coustomerdata5[[#This Row],[Cout unitaire]]*coustomerdata5[[#This Row],[Quantite]],"") -> 4368 | Q194: =IFERROR(coustomerdata5[[#This Row],[Quantite]]*coustomerdata5[[#This Row],[Prix unitaire]]*(1-coustomerdata5[[#This Row],[Taux de reduction]]),"") -> 6594.621463 | R194: =DAY(coustomerdata5[[#This Row],[Date]]) -> 14 | S194: =TEXT(coustomerdata5[[#This Row],[Date]], "mmm") -> juin | T194: =TEXT(coustomerdata5[[#This Row],[Date]], "aaaa") -> 2024
E195: 2024-06-15 | F195: P039 | G195: 4 | H195: Grossiste | I195: Carte | J195: 0 | K195: =IFERROR(VLOOKUP(coustomerdata5[[#This Row],[Index]],database[],2,0),"") -> Crème pour les mains | L195: =IFERROR(VLOOKUP(coustomerdata5[[#This Row],[Index]],database[],3,0),"") -> Soins du Corps | M195: =IFERROR(VLOOKUP(coustomerdata5[[#This Row],[Index]],database[],4,0),"") -> mL | N195: =IFERROR(VLOOKUP(coustomerdata5[[#This Row],[Index]],database[],5,0),"") -> 1440 | O195: =IFERROR(VLOOKUP(coustomerdata5[[#This Row],[Index]],database[],6,0),"") -> 2295.317797 | P195: =IFERROR(coustomerdata5[[#This Row],[Cout unitaire]]*coustomerdata5[[#This Row],[Quantite]],"") -> 5760 | Q195: =IFERROR(coustomerdata5[[#This Row],[Quantite]]*coustomerdata5[[#This Row],[Prix unitaire]]*(1-coustomerdata5[[#This Row],[Taux de reduction]]),"") -> 9181.271186 | R195: =DAY(coustomerdata5[[#This Row],[Date]]) -> 15 | S195: =TEXT(coustomerdata5[[#This Row],[Date]], "mmm") -> juin | T195: =TEXT(coustomerdata5[[#This Row],[Date]], "aaaa") -> 2024
E196: 2024-06-16 | F196: P014 | G196: 4 | H196: Détail | I196: Mobile Money | J196: 0 | K196: =IFERROR(VLOOKUP(coustomerdata5[[#This Row],[Index]],database[],2,0),"") -> Crème coiffante | L196: =IFERROR(VLOOKUP(coustomerdata5[[#This Row],[Index]],database[],3,0),"") -> Soins Capillaires | M196: =IFERROR(VLOOKUP(coustomerdata5[[#This Row],[Index]],database[],4,0),"") -> mL | N196: =IFERROR(VLOOKUP(coustomerdata5[[#This Row],[Index]],database[],5,0),"") -> 1479 | O196: =IFERROR(VLOOKUP(coustomerdata5[[#This Row],[Index]],database[],6,0),"") -> 2409.547712 | P196: =IFERROR(coustomerdata5[[#This Row],[Cout unitaire]]*coustomerdata5[[#This Row],[Quantite]],"") -> 5916 | Q196: =IFERROR(coustomerdata5[[#This Row],[Quantite]]*coustomerdata5[[#This Row],[Prix unitaire]]*(1-coustomerdata5[[#This Row],[Taux de reduction]]),"") -> 9638.19085 | R196: =DAY(coustomerdata5[[#This Row],[Date]]) -> 16 | S196: =TEXT(coustomerdata5[[#This Row],[Date]], "mmm") -> juin | T196: =TEXT(coustomerdata5[[#This Row],[Date]], "aaaa") -> 2024
E197: 2024-06-17 | F197: P018 | G197: 3 | H197: Grossiste | I197: Carte | J197: 0 | K197: =IFERROR(VLOOKUP(coustomerdata5[[#This Row],[Index]],database[],2,0),"") -> Rouge à lèvres mat | L197: =IFERROR(VLOOKUP(coustomerdata5[[#This Row],[Index]],database[],3,0),"") -> Maquillage | M197: =IFERROR(VLOOKUP(coustomerdata5[[#This Row],[Index]],database[],4,0),"") -> g | N197: =IFERROR(VLOOKUP(coustomerdata5[[#This Row],[Index]],database[],5,0),"") -> 1372 | O197: =IFERROR(VLOOKUP(coustomerdata5[[#This Row],[Index]],database[],6,0),"") -> 2121.59816 | P197: =IFERROR(coustomerdata5[[#This Row],[Cout unitaire]]*coustomerdata5[[#This Row],[Quantite]],"") -> 4116 | Q197: =IFERROR(coustomerdata5[[#This Row],[Quantite]]*coustomerdata5[[#This Row],[Prix unitaire]]*(1-coustomerdata5[[#This Row],[Taux de reduction]]),"") -> 6364.794479 | R197: =DAY(coustomerdata5[[#This Row],[Date]]) -> 17 | S197: =TEXT(coustomerdata5[[#This Row],[Date]], "mmm") -> juin | T197: =TEXT(coustomerdata5[[#This Row],[Date]], "aaaa") -> 2024
E198: 2024-06-18 | F198: P023 | G198: 3 | H198: Grossiste | I198: Mobile Money | J198: 0 | K198: =IFERROR(VLOOKUP(coustomerdata5[[#This Row],[Index]],database[],2,0),"") -> Masque purifiant | L198: =IFERROR(VLOOKUP(coustomerdata5[[#This Row],[Index]],database[],3,0),"") -> Soins du Visage | M198: =IFERROR(VLOOKUP(coustomerdata5[[#This Row],[Index]],database[],4,0),"") -> g | N198: =IFERROR(VLOOKUP(coustomerdata5[[#This Row],[Index]],database[],5,0),"") -> 1457 | O198: =IFERROR(VLOOKUP(coustomerdata5[[#This Row],[Index]],database[],6,0),"") -> 2171.294262 | P198: =IFERROR(coustomerdata5[[#This Row],[Cout unitaire]]*coustomerdata5[[#This Row],[Quantite]],"") -> 4371 | Q198: =IFERROR(coustomerdata5[[#This Row],[Quantite]]*coustomerdata5[[#This Row],[Prix unitaire]]*(1-coustomerdata5[[#This Row],[Taux de reduction]]),"") -> 6513.882787 | R198: =DAY(coustomerdata5[[#This Row],[Date]]) -> 18 | S198: =TEXT(coustomerdata5[[#This Row],[Date]], "mmm") -> juin | T198: =TEXT(coustomerdata5[[#This Row],[Date]], "aaaa") -> 2024
E199: 2024-06-19 | F199: P050 | G199: 3 | H199: Détail | I199: Espèces | J199: 0 | K199: =IFERROR(VLOOKUP(coustomerdata5[[#This Row],[Index]],database[],2,0),"") -> Poudre libre fixante | L199: =IFERROR(VLOOKUP(coustomerdata5[[#This Row],[Index]],database[],3,0),"") -> Maquillage | M199: =IFERROR(VLOOKUP(coustomerdata5[[#This Row],[Index]],database[],4,0),"") -> g | N199: =IFERROR(VLOOKUP(coustomerdata5[[#This Row],[Index]],database[],5,0),"") -> 1438 | O199: =IFERROR(VLOOKUP(coustomerdata5[[#This Row],[Index]],database[],6,0),"") -> 2290.019394 | P199: =IFERROR(coustomerdata5[[#This Row],[Cout unitaire]]*coustomerdata5[[#This Row],[Quantite]],"") -> 4314 | Q199: =IFERROR(coustomerdata5[[#This Row],[Quantite]]*coustomerdata5[[#This Row],[Prix unitaire]]*(1-coustomerdata5[[#This Row],[Taux de reduction]]),"") -> 6870.058182 | R199: =DAY(coustomerdata5[[#This Row],[Date]]) -> 19 | S199: =TEXT(coustomerdata5[[#This Row],[Date]], "mmm") -> juin | T199: =TEXT(coustomerdata5[[#This Row],[Date]], "aaaa") -> 2024
E200: 2024-06-20 | F200: P042 | G200: 4 | H200: Grossiste | I200: Carte | J200: 0 | K200: =IFERROR(VLOOKUP(coustomerdata5[[#This Row],[Index]],database[],2,0),"") -> Crème hydratante | L200: =IFERROR(VLOOKUP(coustomerdata5[[#This Row],[Index]],database[],3,0),"") -> Soins du Visage | M200: =IFERROR(VLOOKUP(coustomerdata5[[#This Row],[Index]],database[],4,0),"") -> mL | N200: =IFERROR(VLOOKUP(coustomerdata5[[#This Row],[Index]],database[],5,0),"") -> 1448 | O200: =IFERROR(VLOOKUP(coustomerdata5[[#This Row],[Index]],database[],6,0),"") -> 2409.547712 | P200: =IFERROR(coustomerdata5[[#This Row],[Cout unitaire]]*coustomerdata5[[#This Row],[Quantite]],"") -> 5792 | Q200: =IFERROR(coustomerdata5[[#This Row],[Quantite]]*coustomerdata5[[#This Row],[Prix unitaire]]*(1-coustomerdata5[[#This Row],[Taux de reduction]]),"") -> 9638.19085 | R200: =DAY(coustomerdata5[[#This Row],[Date]]) -> 20 | S200: =TEXT(coustomerdata5[[#This Row],[Date]], "mmm") -> juin | T200: =TEXT(coustomerdata5[[#This Row],[Date]], "aaaa") -> 2024
E201: 2024-06-21 | F201: P002 | G201: 7 | H201: Grossiste | I201: Carte | J201: 0 | K201: =IFERROR(VLOOKUP(coustomerdata5[[#This Row],[Index]],database[],2,0),"") -> Eye-liner waterproof | L201: =IFERROR(VLOOKUP(coustomerdata5[[#This Row],[Index]],database[],3,0),"") -> Maquillage | M201: =IFERROR(VLOOKUP(coustomerdata5[[#This Row],[Index]],database[],4,0),"") -> mL | N201: =IFERROR(VLOOKUP(coustomerdata5[[#This Row],[Index]],database[],5,0),"") -> 1489 | O201: =IFERROR(VLOOKUP(coustomerdata5[[#This Row],[Index]],database[],6,0),"") -> 2285.529633 | P201: =IFERROR(coustomerdata5[[#This Row],[Cout unitaire]]*coustomerdata5[[#This Row],[Quantite]],"") -> 10423 | Q201: =IFERROR(coustomerdata5[[#This Row],[Quantite]]*coustomerdata5[[#This Row],[Prix unitaire]]*(1-coustomerdata5[[#This Row],[Taux de reduction]]),"") -> 15998.70743 | R201: =DAY(coustomerdata5[[#This Row],[Date]]) -> 21 | S201: =TEXT(coustomerdata5[[#This Row],[Date]], "mmm") -> juin | T201: =TEXT(coustomerdata5[[#This Row],[Date]], "aaaa") -> 2024
E202: 2024-06-22 | F202: P001 | G202: 4 | H202: Détail | I202: Espèces | J202: 0 | K202: =IFERROR(VLOOKUP(coustomerdata5[[#This Row],[Index]],database[],2,0),"") -> Crème pour les pieds | L202: =IFERROR(VLOOKUP(coustomerdata5[[#This Row],[Index]],database[],3,0),"") -> Soins du Corps | M202: =IFERROR(VLOOKUP(coustomerdata5[[#This Row],[Index]],database[],4,0),"") -> mL | N202: =IFERROR(VLOOKUP(coustomerdata5[[#This Row],[Index]],database[],5,0),"") -> 1479 | O202: =IFERROR(VLOOKUP(coustomerdata5[[#This Row],[Index]],database[],6,0),"") -> 2304.641933 | P202: =IFERROR(coustomerdata5[[#This Row],[Cout unitaire]]*coustomerdata5[[#This Row],[Quantite]],"") -> 5916 | Q202: =IFERROR(coustomerdata5[[#This Row],[Quantite]]*coustomerdata5[[#This Row],[Prix unitaire]]*(1-coustomerdata5[[#This Row],[Taux de reduction]]),"") -> 9218.567732 | R202: =DAY(coustomerdata5[[#This Row],[Date]]) -> 22 | S202: =TEXT(coustomerdata5[[#This Row],[Date]], "mmm") -> juin | T202: =TEXT(coustomerdata5[[#This Row],[Date]], "aaaa") -> 2024
E203: 2024-06-23 | F203: P021 | G203: 9 | H203: Détail | I203: Carte | J203: 0 | K203: =IFERROR(VLOOKUP(coustomerdata5[[#This Row],[Index]],database[],2,0),"") -> Huile nourrissante | L203: =IFERROR(VLOOKUP(coustomerdata5[[#This Row],[Index]],database[],3,0),"") -> Soins du Corps | M203: =IFERROR(VLOOKUP(coustomerdata5[[#This Row],[Index]],database[],4,0),"") -> mL | N203: =IFERROR(VLOOKUP(coustomerdata5[[#This Row],[Index]],database[],5,0),"") -> 1489 | O203: =IFERROR(VLOOKUP(coustomerdata5[[#This Row],[Index]],database[],6,0),"") -> 2313.735015 | P203: =IFERROR(coustomerdata5[[#This Row],[Cout unitaire]]*coustomerdata5[[#This Row],[Quantite]],"") -> 13401 | Q203: =IFERROR(coustomerdata5[[#This Row],[Quantite]]*coustomerdata5[[#This Row],[Prix unitaire]]*(1-coustomerdata5[[#This Row],[Taux de reduction]]),"") -> 20823.61514 | R203: =DAY(coustomerdata5[[#This Row],[Date]]) -> 23 | S203: =TEXT(coustomerdata5[[#This Row],[Date]], "mmm") -> juin | T203: =TEXT(coustomerdata5[[#This Row],[Date]], "aaaa") -> 2024
E204: 2024-06-24 | F204: P044 | G204: 1 | H204: Détail | I204: Carte | J204: 0 | K204: =IFERROR(VLOOKUP(coustomerdata5[[#This Row],[Index]],database[],2,0),"") -> Spray thermo-protecteur | L204: =IFERROR(VLOOKUP(coustomerdata5[[#This Row],[Index]],database[],3,0),"") -> Soins Capillaires | M204: =IFERROR(VLOOKUP(coustomerdata5[[#This Row],[Index]],database[],4,0),"") -> mL | N204: =IFERROR(VLOOKUP(coustomerdata5[[#This Row],[Index]],database[],5,0),"") -> 1423 | O204: =IFERROR(VLOOKUP(coustomerdata5[[#This Row],[Index]],database[],6,0),"") -> 2285.529633 | P204: =IFERROR(coustomerdata5[[#This Row],[Cout unitaire]]*coustomerdata5[[#This Row],[Quantite]],"") -> 1423 | Q204: =IFERROR(coustomerdata5[[#This Row],[Quantite]]*coustomerdata5[[#This Row],[Prix unitaire]]*(1-coustomerdata5[[#This Row],[Taux de reduction]]),"") -> 2285.529633 | R204: =DAY(coustomerdata5[[#This Row],[Date]]) -> 24 | S204: =TEXT(coustomerdata5[[#This Row],[Date]], "mmm") -> juin | T204: =TEXT(coustomerdata5[[#This Row],[Date]], "aaaa") -> 2024
E205: 2024-06-25 | F205: P018 | G205: 8 | H205: Grossiste | I205: Mobile Money | J205: 0 | K205: =IFERROR(VLOOKUP(coustomerdata5[[#This Row],[Index]],database[],2,0),"") -> Rouge à lèvres mat | L205: =IFERROR(VLOOKUP(coustomerdata5[[#This Row],[Index]],database[],3,0),"") -> Maquillage | M205: =IFERROR(VLOOKUP(coustomerdata5[[#This Row],[Index]],database[],4,0),"") -> g | N205: =IFERROR(VLOOKUP(coustomerdata5[[#This Row],[Index]],database[],5,0),"") -> 1372 | O205: =IFERROR(VLOOKUP(coustomerdata5[[#This Row],[Index]],database[],6,0),"") -> 2121.59816 | P205: =IFERROR(coustomerdata5[[#This Row],[Cout unitaire]]*coustomerdata5[[#This Row],[Quantite]],"") -> 10976 | Q205: =IFERROR(coustomerdata5[[#This Row],[Quantite]]*coustomerdata5[[#This Row],[Prix unitaire]]*(1-coustomerdata5[[#This Row],[Taux de reduction]]),"") -> 16972.78528 | R205: =DAY(coustomerdata5[[#This Row],[Date]]) -> 25 | S205: =TEXT(coustomerdata5[[#This Row],[Date]], "mmm") -> juin | T205: =TEXT(coustomerdata5[[#This Row],[Date]], "aaaa") -> 2024
E206: 2024-06-26 | F206: P018 | G206: 7 | H206: Détail | I206: Carte | J206: 0 | K206: =IFERROR(VLOOKUP(coustomerdata5[[#This Row],[Index]],database[],2,0),"") -> Rouge à lèvres mat | L206: =IFERROR(VLOOKUP(coustomerdata5[[#This Row],[Index]],database[],3,0),"") -> Maquillage | M206: =IFERROR(VLOOKUP(coustomerdata5[[#This Row],[Index]],database[],4,0),"") -> g | N206: =IFERROR(VLOOKUP(coustomerdata5[[#This Row],[Index]],database[],5,0),"") -> 1372 | O206: =IFERROR(VLOOKUP(coustomerdata5[[#This Row],[Index]],database[],6,0),"") -> 2121.59816 | P206: =IFERROR(coustomerdata5[[#This Row],[Cout unitaire]]*coustomerdata5[[#This Row],[Quantite]],"") -> 9604 | Q206: =IFERROR(coustomerdata5[[#This Row],[Quantite]]*coustomerdata5[[#This Row],[Prix unitaire]]*(1-coustomerdata5[[#This Row],[Taux de reduction]]),"") -> 14851.18712 | R206: =DAY(coustomerdata5[[#This Row],[Date]]) -> 26 | S206: =TEXT(coustomerdata5[[#This Row],[Date]], "mmm") -> juin | T206: =TEXT(coustomerdata5[[#This Row],[Date]], "aaaa") -> 2024
E207: 2024-06-27 | F207: P025 | G207: 2 | H207: Grossiste | I207: Mobile Money | J207: 0 | K207: =IFERROR(VLOOKUP(coustomerdata5[[#This Row],[Index]],database[],2,0),"") -> Cire coiffante | L207: =IFERROR(VLOOKUP(coustomerdata5[[#This Row],[Index]],database[],3,0),"") -> Soins Capillaires | M207: =IFERROR(VLOOKUP(coustomerdata5[[#This Row],[Index]],database[],4,0),"") -> g | N207: =IFERROR(VLOOKUP(coustomerdata5[[#This Row],[Index]],database[],5,0),"") -> 1440 | O207: =IFERROR(VLOOKUP(coustomerdata5[[#This Row],[Index]],database[],6,0),"") -> 2295.317797 | P207: =IFERROR(coustomerdata5[[#This Row],[Cout unitaire]]*coustomerdata5[[#This Row],[Quantite]],"") -> 2880 | Q207: =IFERROR(coustomerdata5[[#This Row],[Quantite]]*coustomerdata5[[#This Row],[Prix unitaire]]*(1-coustomerdata5[[#This Row],[Taux de reduction]]),"") -> 4590.635593 | R207: =DAY(coustomerdata5[[#This Row],[Date]]) -> 27 | S207: =TEXT(coustomerdata5[[#This Row],[Date]], "mmm") -> juin | T207: =TEXT(coustomerdata5[[#This Row],[Date]], "aaaa") -> 2024
... 93 more rows

Sheet Analyses
AF4: Top produit | AG4: =VLOOKUP(1,AF7:AI34,2,0) -> Huile nourrissante | AH4: =VLOOKUP(1,AF7:AI34,3,0) -> 114 | AI4: =VLOOKUP(1,AF7:AI34,4,0) -> 263765.7917 | AL4: 1 | AM4: =COUNT(AD:AD)-9 -> 20 | AN4: =MIN(AL4:AM4) -> 1 | AT4: TOP CATEGORIE | AU4: =VLOOKUP(1,AT:AV,2,0) -> Maquillage | AV4: =VLOOKUP(1,AT:AV,3,0) -> 930346.7669
V5: TRUE | W5: TRUE | X5: TRUE
I6: Jours | J6: Dépenses par Jour | L6: Dépenses Totale | M6: Chiffre d'affaire | Q6: Mois | R6: Dépenses Totale | S6: Chiffre d'affaire | U6: Mois | V6: Chiffre d'affaire | W6: Profit | X6: Profit % | AB6: Produits | AC6: Quantité | AD6: vente par produits | AF6: RANG | AG6: Produits | AH6: Quantité | AI6: vente par produits | AL6: Produits | AM6: vente par produits | AQ6: Catégories | AR6: ventes | AT6: RANG | AU6: Catégories | AV6: ventes | AZ6: Catégories | BA6: ventes | BD6: Canaux | BE6: ventes
I7: 1 | J7: 73993 | L7: 2002222 | M7: 3171123.281 | Q7: janv | R7: 192360 | S7: 305950.5413 | U7: janv | V7: =IF($V$5=TRUE,VLOOKUP(U7,$Q$7:$S$16,2,0)," ") -> 192360 | W7: =IF($W$5=TRUE,VLOOKUP(U7,$Q$7:$S$16,3,0)-VLOOKUP(U7,$Q$7:$S$16,2,0), " ") -> 113590.5413 | X7: =IF($X$5=TRUE,W7/SUM($S$7:$S$16), " ") -> 0.0358202855 | AB7: Base de maquillage | AC7: 12 | AD7: 26575.40613 | AF7: =RANK(_xlfn.ANCHORARRAY(AI7),_xlfn.ANCHORARRAY(AI7)) -> 29 | AG7: =OFFSET(AB6,1,0,COUNT(AD:AD),1) -> Base de maquillage | AH7: =OFFSET(AB6,1,1,COUNT(AD:AD),1) -> 12 | AI7: =OFFSET(AB6,1,2,COUNT(AD:AD),1) -> 26575.40613 | AL7: =OFFSET(AG6,AN4,0,10,1) -> Base de maquillage | AM7: =OFFSET(AG6,AN4,2,10,1) -> 26575.40613 | AQ7: Maquillage | AR7: 930346.7669 | AT7: =RANK(_xlfn.ANCHORARRAY(AV7),_xlfn.ANCHORARRAY(AV7)) -> 1 | AU7: =OFFSET($AQ$6,1,0,COUNTA(AQ7:AQ10),1) -> Maquillage | AV7: =OFFSET($AQ$6,1,1,COUNTA(AQ7:AQ10),1) -> 930346.7669 | AZ7: Carte | BA7: 1060384.58 | BD7: Détail | BE7: 1567151.406
I8: 2 | J8: 57921 | Q8: févr | R8: 213154 | S8: 342036.0114 | U8: févr | V8: =IF($V$5=TRUE,VLOOKUP(U8,$Q$7:$S$16,2,0)," ") -> 213154 | W8: =IF($W$5=TRUE,VLOOKUP(U8,$Q$7:$S$16,3,0)-VLOOKUP(U8,$Q$7:$S$16,2,0), " ") -> 128882.0114 | X8: =IF($X$5=TRUE,W8/SUM($S$7:$S$16), " ") -> 0.04064238441 | AB8: BB crème | AC8: 14 | AD8: 31997.41486 | AF8: 28 | AG8: BB crème | AH8: 14 | AI8: 31997.41486 | AL8: BB crème | AM8: 31997.41486 | AQ8: Soins Capillaires | AR8: 701586.0745 | AT8: 4 | AU8: Soins Capillaires | AV8: 701586.0745 | AZ8: Espèces | BA8: 1074339.61 | BD8: Grossiste | BE8: 1603971.875
I9: 3 | J9: 60929 | Q9: mars | R9: 239594 | S9: 376009.6124 | U9: mars | V9: 239594 | W9: 136415.6124 | X9: 0.04301807289 | AB9: Blush rosé | AC9: 38 | AD9: 88098.91609 | AF9: 15 | AG9: Blush rosé | AH9: 38 | AI9: 88098.91609 | AL9: Blush rosé | AM9: 88098.91609 | AQ9: Soins du Corps | AR9: 800179.5695 | AT9: 2 | AU9: Soins du Corps | AV9: 800179.5695 | AZ9: Mobile Money | BA9: 1036399.09
I10: 4 | J10: 62233 | Q10: avr | R10: 237772 | S10: 377918.2661 | U10: avr | V10: 237772 | W10: 140146.2661 | X10: 0.04419451837 | AB10: Cire coiffante | AC10: 51 | AD10: 117753.4496 | AF10: 10 | AG10: Cire coiffante | AH10: 51 | AI10: 117753.4496 | AL10: Cire coiffante | AM10: 117753.4496 | AQ10: Soins du Visage | AR10: 739010.8699 | AT10: 3 | AU10: Soins du Visage | AV10: 739010.8699
I11: 5 | J11: 89136 | L11: Dépenses Totale | M11: Chiffre d'affaire | N11: Profit | O11: Profit % | Q11: mai | R11: 176021 | S11: 280266.5114 | U11: mai | V11: 176021 | W11: 104245.5114 | X11: 0.03287337078 | AB11: Contour des yeux | AC11: 23 | AD11: 50468.22857 | AF11: 25 | AG11: Contour des yeux | AH11: 23 | AI11: 50468.22857 | AL11: Contour des yeux | AM11: 50468.22857
I12: 6 | J12: 65760 | L12: 2002222 | M12: 3171123.281 | N12: =M12-L12 -> 1168901.281 | O12: =N12/SUM(S7:S16) -> 0.3686079592 | Q12: juin | R12: 215082 | S12: 337144.7127 | U12: juin | V12: 215082 | W12: 122062.7127 | X12: 0.0384919481 | AB12: Crayon à sourcils | AC12: 31 | AD12: 71443.89992 | AF12: 18 | AG12: Crayon à sourcils | AH12: 31 | AI12: 71443.89992 | AL12: Crayon à sourcils | AM12: 71443.89992
I13: 7 | J13: 56861 | Q13: juil | R13: 164758 | S13: 259108.9465 | U13: juil | V13: 164758 | W13: 94350.94651 | X13: 0.02975316257 | AB13: Crème coiffante | AC13: 21 | AD13: 50600.50196 | AF13: 24 | AG13: Crème coiffante | AH13: 21 | AI13: 50600.50196 | AL13: Crème coiffante | AM13: 50600.50196
I14: 8 | J14: 53764 | Q14: août | R14: 144556 | S14: 229065.7541 | U14: août | V14: 144556 | W14: 84509.75408 | X14: 0.02664978514 | AB14: Crème hydratante | AC14: 32 | AD14: 77105.5268 | AF14: 17 | AG14: Crème hydratante | AH14: 32 | AI14: 77105.5268 | AL14: Crème hydratante | AM14: 77105.5268
I15: 9 | J15: 66085 | Q15: sept | R15: 134973 | S15: 214723.483 | U15: sept | V15: 134973 | W15: 79750.48305 | X15: 0.02514896962 | AB15: Crème pour les mains | AC15: 47 | AD15: 107879.9364 | AF15: 13 | AG15: Crème pour les mains | AH15: 47 | AI15: 107879.9364 | AL15: Crème pour les mains | AM15: 107879.9364
I16: 10 | J16: 81233 | Q16: déc | R16: 283952 | S16: 448899.4418 | U16: déc | V16: 283952 | W16: 164947.4418 | X16: 0.05201546177 | AB16: Crème pour les pieds | AC16: 20 | AD16: 46092.83866 | AF16: 27 | AG16: Crème pour les pieds | AH16: 20 | AI16: 46092.83866 | AL16: Crème pour les pieds | AM16: 46092.83866
I17: 11 | J17: 51769 | AB17: Crème raffermissante | AC17: 40 | AD17: 88584.68712 | AF17: 14 | AG17: Crème raffermissante | AH17: 40 | AI17: 88584.68712
I18: 12 | J18: 80970 | AB18: Déodorant naturel | AC18: 50 | AD18: 115919.6264 | AF18: 11 | AG18: Déodorant naturel | AH18: 50 | AI18: 115919.6264
I19: 13 | J19: 56681 | AB19: Eau micellaire | AC19: 90 | AD19: 206578.6017 | AF19: 4 | AG19: Eau micellaire | AH19: 90 | AI19: 206578.6017
I20: 14 | J20: 59445 | AB20: Eye-liner waterproof | AC20: 28 | AD20: 63994.82972 | AF20: 22 | AG20: Eye-liner waterproof | AH20: 28 | AI20: 63994.82972
I21: 15 | J21: 56895 | AB21: Fond de teint | AC21: 63 | AD21: 133660.684 | AF21: 8 | AG21: Fond de teint | AH21: 63 | AI21: 133660.684
I22: 16 | J22: 92539 | AB22: Gel douche hydratant | AC22: 51 | AD22: 112108.5649 | AF22: 12 | AG22: Gel douche hydratant | AH22: 51 | AI22: 112108.5649
I23: 17 | J23: 65715 | AB23: Gommage exfoliant | AC23: 69 | AD23: 162091.7972 | AF23: 7 | AG23: Gommage exfoliant | AH23: 69 | AI23: 162091.7972
I24: 18 | J24: 30108 | AB24: Huile nourrissante | AC24: 114 | AD24: 263765.7917 | AF24: 1 | AG24: Huile nourrissante | AH24: 114 | AI24: 263765.7917
I25: 19 | J25: 63746 | AB25: Lotion tonique | AC25: 34 | AD25: 77860.65939 | AF25: 16 | AG25: Lotion tonique | AH25: 34 | AI25: 77860.65939
I26: 20 | J26: 58099 | AB26: Masque capillaire | AC26: 29 | AD26: 66410.56242 | AF26: 20 | AG26: Masque capillaire | AH26: 29 | AI26: 66410.56242
I27: 21 | J27: 87099 | AB27: Masque purifiant | AC27: 32 | AD27: 69481.41639 | AF27: 19 | AG27: Masque purifiant | AH27: 32 | AI27: 69481.41639
I28: 22 | J28: 62889 | AB28: Mousse volume | AC28: 20 | AD28: 46274.7003 | AF28: 26 | AG28: Mousse volume | AH28: 20 | AI28: 46274.7003
I29: 23 | J29: 58239 | AB29: Palette de fards | AC29: 78 | AD29: 174684.999 | AF29: 5 | AG29: Palette de fards | AH29: 78 | AI29: 174684.999
I30: 24 | J30: 66216 | AB30: Poudre libre fixante | AC30: 54 | AD30: 123661.0473 | AF30: 9 | AG30: Poudre libre fixante | AH30: 54 | AI30: 123661.0473
I31: 25 | J31: 101289 | AB31: Rouge à lèvres mat | AC31: 117 | AD31: 248226.9847 | AF31: 3 | AG31: Rouge à lèvres mat | AH31: 117 | AI31: 248226.9847
I32: 26 | J32: 60428 | AB32: Sérum anti-âge | AC32: 27 | AD32: 63427.225 | AF32: 23 | AG32: Sérum anti-âge | AH32: 27 | AI32: 63427.225
I33: 27 | J33: 70242 | AB33: Shampoing sec | AC33: 112 | AD33: 257656.5744 | AF33: 2 | AG33: Shampoing sec | AH33: 112 | AI33: 257656.5744
I34: 28 | J34: 64438 | AB34: Spray rafraîchissant | AC34: 30 | AD34: 65828.12422 | AF34: 21 | AG34: Spray rafraîchissant | AH34: 30 | AI34: 65828.12422
I35: 29 | J35: 58221 | AB35: Spray thermo-protecteur | AC35: 75 | AD35: 162890.2858 | AF35: 6 | AG35: Spray thermo-protecteur | AH35: 75 | AI35: 162890.2858
I36: 30 | J36: 59041
I37: 31 | J37: 30238
I42: Jours | J42: Ventes par Jour
I43: 1 | J43: 119210.9711
I44: 2 | J44: 91566.21813
I45: 3 | J45: 96314.01518
I46: 4 | J46: 100127.2025
I47: 5 | J47: 140532.1917
I48: 6 | J48: 101767.3083
I49: 7 | J49: 91480.83824
I50: 8 | J50: 84893.45939
I51: 9 | J51: 105526.4729
I52: 10 | J52: 128055.8735
I53: 11 | J53: 82361.43107
I54: 12 | J54: 128570.3519
I55: 13 | J55: 90535.34853
I56: 14 | J56: 90285.5272
I57: 15 | J57: 91651.82239
I58: 16 | J58: 149098.965
I59: 17 | J59: 103313.2196
I60: 18 | J60: 47086.0178
I61: 19 | J61: 100695.2359
I62: 20 | J62: 92330.66592
I63: 21 | J63: 138109.8059
I64: 22 | J64: 100613.1839
I65: 23 | J65: 92142.11786
I66: 24 | J66: 105481.194
I67: 25 | J67: 160698.5223
I68: 26 | J68: 95254.10635
I69: 27 | J69: 110562.4033
I70: 28 | J70: 100092.3692
I71: 29 | J71: 90960.73037
I72: 30 | J72: 93138.35187
I73: 31 | J73: 48667.3595

Sheet Tableau de Bord
T9: TRUE | U9: FALSE | V9: FALSE
GN23: Mois | GO23: Dépenses Totale | GP23: Chiffre d'affaire
GN24: janv | GO24: 192360 | GP24: 305950.5413
GN25: févr | GO25: 213154 | GP25: 342036.0114
GN26: mars | GO26: 239594 | GP26: 376009.6124
GN27: avr | GO27: 237772 | GP27: 377918.2661
GN28: mai | GO28: 176021 | GP28: 280266.5114
GN29: juin | GO29: 215082 | GP29: 337144.7127
GN30: juil | GO30: 164758 | GP30: 259108.9465
GN31: août | GO31: 144556 | GP31: 229065.7541
GN32: sept | GO32: 134973 | GP32: 214723.483
GN33: déc | GO33: 283952 | GP33: 448899.4418
GJ34: 1 | GK34: 20 | GL34: =MIN(GJ34:GK34) -> 1
GJ36: =OFFSET(Analyses!$AB$6,GL34,0,10,1) -> Base de maquillage | GK36: =OFFSET(Analyses!$AB$6,GL34,2,10,1) -> 26575.40613
GJ37: BB crème | GK37: 31997.41486
GJ38: Blush rosé | GK38: 88098.91609 | GN38: Mois | GO38: Chiffre d'affaire | GP38: Profit | GQ38: Profit % | GS38: TRUE | GT38: TRUE | GU38: TRUE
GJ39: Cire coiffante | GK39: 117753.4496 | GN39: janv | GO39: =IF($GS$38=TRUE,VLOOKUP(GN39,$GN$24:$GP$33,3,0),"") -> 305950.5413 | GP39: =IF($GT$38=TRUE,VLOOKUP(GN39,$GN$24:$GP$33,3,0)-VLOOKUP(GN39,$GN$24:$GP$33,2,0),"") -> 113590.5413 | GQ39: =IF($GU$38=TRUE,GP39/SUM($GP$24:$GP$33),"") -> 0.0358202855
GJ40: Contour des yeux | GK40: 50468.22857 | GN40: févr | GO40: 342036.0114 | GP40: 128882.0114 | GQ40: 0.04064238441
GJ41: Crayon à sourcils | GK41: 71443.89992 | GN41: mars | GO41: 376009.6124 | GP41: 136415.6124 | GQ41: 0.04301807289
GJ42: Crème coiffante | GK42: 50600.50196 | GN42: avr | GO42: 377918.2661 | GP42: 140146.2661 | GQ42: 0.04419451837
GJ43: Crème hydratante | GK43: 77105.5268 | GN43: mai | GO43: 280266.5114 | GP43: 104245.5114 | GQ43: 0.03287337078
GJ44: Crème pour les mains | GK44: 107879.9364 | GN44: juin | GO44: 337144.7127 | GP44: 122062.7127 | GQ44: 0.0384919481
GJ45: Crème pour les pieds | GK45: 46092.83866 | GN45: juil | GO45: 259108.9465 | GP45: 94350.94651 | GQ45: 0.02975316257
GN46: août | GO46: 229065.7541 | GP46: 84509.75408 | GQ46: 0.02664978514
GN47: sept | GO47: 214723.483 | GP47: 79750.48305 | GQ47: 0.02514896962
GN48: déc | GO48: 448899.4418 | GP48: 164947.4418 | GQ48: 0.05201546177
